Workbook

Sheet Information
A2: The worksheets in this workbook are customized for :
A3: ='Applicable WLAs determination'!B3 -> Ramsey city of
A4: Instructions
A5: You must complete this form for your applicable waste load allocations (WLAs) for oxygen demand, nitrate, total suspended solids (TSS), and total phosphorus (TP). Navigate the form using the worksheet tabs and complete all of the required fields as needed. MPCA staff have inserted the applicable TMDL projects on the Applicable WLAs determination tab. Applicants will need to determine whether or not they are meeting the WLAs associated with each TMDL and then provide the information required with that determination on subsequent workbook tabs.
A6: Notes for using this workbook
A7: For the workbook to function- you must click Enable Content when opening, and save it as a macro-enabled spreadsheet (.xlsm type file)
A8: This spreadsheet contains macros. Save the file as a macro-enabled file to retain the macros.
A9: If you need to clear a cell, please use the delete button and not the backspace button.
A10: Some entries are optional. Look at the column header to identify cells that are optional.
A11: This workbook contains protected cells that allow you to enter values but do not delete or change coding.
A12: Worksheets with white tabs are for information only and do not require any input from the applicant.
A13: Worksheets with green tabs may require information from the applicant.
A14: This workbook contains worksheets for TMDL Waste Load Allocations
A15: The worksheet called Bacteria Chloride Temp contains a custom list of applicable WLAs for bacteria, chloride or temperature. This provides information to answer questions 141, 146 and 151 on the MS4 Part 2 Permit Application.
A16: The worksheet called Applicable WLAs Determination contains a custom list of oxygen demand, nitrate, TSS and/or TP WLAs for each permittee. Column B in this worksheet needs to be completed by the applicant in order to populate the following worksheets. If there are no TMDLs listed, you have no TMDLs to report on in this workbook, and you should enter 'No' for question 155 on the MS4 Part 2 Permit Application.
A17: The worksheet called Compliance Schedule should be completed for all oxygen demand, nitrate, TSS and/or TP TMDL Waste Load Allocations (WLAs) you are not meeting.
A18: The worksheet called Compliance Schedule BMPs should be completed for all oxygen demand, nitrate, TSS and/or TP TMDL Waste Load Allocations (WLAs) you are not meeting.
A19: The worksheet called Reductions for WLAs met should be completed for all oxygen demand, nitrate, TSS and/or TP TMDL Waste Load Allocations (WLAs) you are claiming to meet.
A20: The worksheet called BMPs for WLAs met should be completed for all oxygen demand, nitrate, TSS and/or TP TMDL Waste Load Allocations (WLAs) you are claiming to meet.
A21: The worksheet called TMDL Master List contains summary information for all U.S. Environmental Protection Agency-approved TMDL waste load allocations. It is for informational/reference purposes only.
A22: Questions?
A23: If you have any questions, see the MS4 staff page to find the staff assigned to your MS4 at:
A24: https://stormwater.pca.state.mn.us/index.php?title=MS4_staff_contact_information_and_staff_assignments
A25: or see the staff contact information on the Minnesota Pollution Control Agency's (MPCA) MS4 webpage at:
A26: https://www.pca.state.mn.us/water/municipal-stormwater-ms4
A27: Useful links
A28: Guidance on completing this form (workbook) - found on the MPCA's website at:
A29: https://stormwater.pca.state.mn.us/index.php?title=Guidance_for_completing_the_MS4_Permit_TMDL_Application_Form
A30: The above link includes guidance for completing the form, examples for completing the form, and a video illustrating how to complete the form.
A31: Link to permit - found on MPCA's website at:
A32: https://stormwater.pca.state.mn.us/index.php?title=Stormwater_Program_for_Municipal_Separate_Storm_Sewer_Systems_(MS4)#MS4_stormwater_permit
A33: Guidance for categorical wasteload allocations - found on the MPCA's website at:
A34: https://stormwater.pca.state.mn.us/index.php?title=Guidance_for_categorical_TMDLs

Sheet Bacteria Chloride Temp
A1: Bacteria, Chloride and Temperature Wasteload Allocation TMDL projects (permit item 12.9)
A2: Column A, rows 9 and beyond, will list any applicable WLAs for bacteria, chloride or temperature TMDL projects (USEPA approved, more than a zero % reduction). Use the information in this tab to answer questions 141, 146 and 151 in the MS4 Part 2 Permit Application. If there is not a project listed for any certain pollutant, you would check the 'No' box for the corresponding question(s) in the MS4 Part 2 Permit Application.
A4: Permittee name | B4: Ramsey city of
A5: Percent Reduction | B5: (Multiple Items)
A7: Applicable WLAs for Bacteria, Temperature, or Chloride

Sheet Applicable WLAs determination
A1: Applicable Oxygen Demand, Nitrate, TSS, TP TMDL projects (permit item 12.8 & 12.10)
A2: Column A, rows 9 and below, includes any applicable WLAs (USEPA approved, more than a zero % reduction) for oxygen demand, nitrate, TSS, or TP TMDL projects. They are listed by TMDL project name-waterbody-(waterbody id)-pollutant. Column F lists the corresponding applicable numeric WLAs for those projects. The applicant needs to make a determination if they are meeting each WLA or not and type 'Yes' or 'No' in Column B. Once you are done with your determination in Column B, click the red text in highlighted cell A7. This will autopopulate the rest of the workbook. If you make any changes in Column B, click on the button with the red text in cell A7 again. For each WLA that is marked as 'Yes' in Column B, please complete the tabs 'Reductions for WLAs met' and 'BMPS for WLAs met'. For each WLA marked 'No' in Column B, please complete 'Compliance Schedule' and 'Compliance Schedule BMPs' tabs.
A3: Permittee name | B3: Ramsey city of
A4: Pollutant | B4: (Multiple Items)
A5: Percent Reduction | B5: (Multiple Items) | D5: Permittee name | E5: Ramsey city of
A6: Notes | B6: (Multiple Items) | D6: Pollutant | E6: (Multiple Items)
A8: Applicable Oxygen Demand, Nitrate, TP and/or TSS WLA TMDLs-Waterbody-Pollutant | B8: Meeting WLA? (Yes/No) | D8: TMDL Project - waterbody - pollutant | E8: WLA type | F8: Numeric WLA | G8: Units | H8: Flow Condition | I8: Percent Reduction | J8: Notes
A9: Rum River WRAPS 2013-Trott Brook-(07010207-680)-Total Oxygen Demand | D9: Rum River WRAPS 2013-Trott Brook-(07010207-680)-Total Oxygen Demand | E9: Individual | F9: 72.000 | G9: lbs/day | H9: Not Applicable | I9: 50% | J9: (blank)

Sheet Compliance Schedule
A1: Compliance schedule for Wasteload Allocations not being met (permit item 12.8)
A2: Fill in the target year that each of the applicable WLA(s) will be achieved for each TMDL , waterbody and pollutant listed in column A. If you have an applicable WLA for total suspended solids (TSS) or total phosphorus (TP), a cumulative estimate of TSS and TP load reductions to be achieved during the permit term and the method used to determine the estimate should be entered in Columns D and E. For further instruction on completing this tab, refer to:
A3: https://stormwater.pca.state.mn.us/index.php?title=Guidance_for_completing_the_MS4_Permit_TMDL_Application_Form#12.8_Compliance_schedule_tab
A4: TMDL Project Name, Waterbody, and Pollutant | B4: Pollutant | C4: Target year WLA will be achieved | D4: Estimated pollutant reduction this permit cycle (include units, such as lbs, percent reduction, lb/acre, etc.) | E4: Method(s) for calculating reduction
A5: =DT!B2 -> 0 | B5: =IF(ISNUMBER(SEARCH("-TP",A5)),"TP",IF(ISNUMBER(SEARCH("-TSS",A5)),"TSS",IF(ISNUMBER(SEARCH("-Total Nitrate",A5)),"Total Nitrate",IF(ISNUMBER(SEARCH("-Total Oxygen Demand",A5)),"Oxygen Demand",IF(ISNUMBER(SEARCH("-Nitrogenous Biological Oxygen Demand",A5)),"Oxygen Demand",""))))) ->  | D5: =IF(OR(B5="Total Nitrate",B5="Oxygen demand"),"NA","") ->  | E5: =IF(OR(B5="Total Nitrate",B5="Oxygen demand"),"NA","") -> 
A6: =DT!B3 -> 0 | B6: =IF(ISNUMBER(SEARCH("-TP",A6)),"TP",IF(ISNUMBER(SEARCH("-TSS",A6)),"TSS",IF(ISNUMBER(SEARCH("-Total Nitrate",A6)),"Total Nitrate",IF(ISNUMBER(SEARCH("-Total Oxygen Demand",A6)),"Oxygen Demand",IF(ISNUMBER(SEARCH("-Nitrogenous Biological Oxygen Demand",A6)),"Oxygen Demand",""))))) ->  | D6: =IF(OR(B6="Total Nitrate",B6="Oxygen demand"),"NA","") ->  | E6: =IF(OR(B6="Total Nitrate",B6="Oxygen demand"),"NA","") -> 
A7: =DT!B4 -> 0 | B7: =IF(ISNUMBER(SEARCH("-TP",A7)),"TP",IF(ISNUMBER(SEARCH("-TSS",A7)),"TSS",IF(ISNUMBER(SEARCH("-Total Nitrate",A7)),"Total Nitrate",IF(ISNUMBER(SEARCH("-Total Oxygen Demand",A7)),"Oxygen Demand",IF(ISNUMBER(SEARCH("-Nitrogenous Biological Oxygen Demand",A7)),"Oxygen Demand",""))))) ->  | D7: =IF(OR(B7="Total Nitrate",B7="Oxygen demand"),"NA","") -> 
A8: =DT!B5 -> 0
A9: =DT!B6 -> 0
A10: =DT!B7 -> 0
A11: =DT!B8 -> 0
A12: =DT!B9 -> 0
A13: =DT!B10 -> 0
A14: =DT!B11 -> 0
A15: =DT!B12 -> 0
A16: =DT!B13 -> 0
A17: =DT!B14 -> 0
A18: =DT!B15 -> 0
A19: =DT!B16 -> 0
A20: =DT!B17 -> 0
A21: =DT!B18 -> 0
A22: =DT!B19 -> 0
A23: =DT!B20 -> 0
A24: =DT!B21 -> 0
A25: =DT!B22 -> 0
A26: =DT!B23 -> 0
A27: =DT!B24 -> 0
A28: =DT!B25 -> 0
A29: =DT!B26 -> 0
A30: =DT!B27 -> 0
A31: =DT!B28 -> 0
A32: =DT!B29 -> 0
A33: =DT!B30 -> 0
A34: =DT!B31 -> 0
A35: =DT!B32 -> 0
A36: =DT!B33 -> 0
A37: =DT!B34 -> 0
A38: =DT!B35 -> 0
A39: =DT!B36 -> 0
A40: =DT!B37 -> 0
A41: =DT!B38 -> 0
A42: =DT!B39 -> 0
A43: =DT!B40 -> 0
A44: =DT!B41 -> 0
A45: =DT!B42 -> 0
A46: =DT!B43 -> 0
A47: =DT!B44 -> 0
A48: =DT!B45 -> 0
A49: =DT!B46 -> 0
A50: =DT!B47 -> 0
A51: =DT!B48 -> 0
A52: =DT!B49 -> 0
A53: =DT!B50 -> 0
A54: =DT!B51 -> 0
A55: =DT!B52 -> 0
A56: =DT!B53 -> 0
A57: =DT!B54 -> 0
A58: =DT!B55 -> 0
A59: =DT!B56 -> 0
A60: =DT!B57 -> 0
A61: =DT!B58 -> 0
A62: =DT!B59 -> 0
A63: =DT!B60 -> 0
A64: =DT!B61 -> 0
A65: =DT!B62 -> 0
A66: =DT!B63 -> 0
A67: =DT!B64 -> 0
A68: =DT!B65 -> 0
A69: =DT!B66 -> 0
A70: =DT!B67 -> 0 | B70: =IF(ISNUMBER(SEARCH("-TP",A70)),"TP",IF(ISNUMBER(SEARCH("-TSS",A70)),"TSS",IF(ISNUMBER(SEARCH("-Total Nitrate",A70)),"Total Nitrate",IF(ISNUMBER(SEARCH("-Total Oxygen Demand",A70)),"Oxygen Demand",IF(ISNUMBER(SEARCH("-Nitrogenous Biological Oxygen Demand",A70)),"Oxygen Demand",""))))) ->  | E70: =IF(OR(B70="Total Nitrate",B70="Oxygen demand"),"NA","") -> 
A71: =DT!B68 -> 0 | D71: =IF(OR(B71="Total Nitrate",B71="Oxygen demand"),"NA","") -> 
A72: =DT!B69 -> 0
A73: =DT!B70 -> 0
A74: =DT!B71 -> 0
A75: =DT!B72 -> 0
A76: =DT!B73 -> 0
A77: =DT!B74 -> 0
A78: =DT!B75 -> 0
A79: =DT!B76 -> 0
A80: =DT!B77 -> 0
A81: =DT!B78 -> 0
A82: =DT!B79 -> 0
A83: =DT!B80 -> 0
A84: =DT!B81 -> 0
A85: =DT!B82 -> 0
A86: =DT!B83 -> 0
A87: =DT!B84 -> 0
A88: =DT!B85 -> 0
A89: =DT!B86 -> 0
A90: =DT!B87 -> 0
A91: =DT!B88 -> 0
A92: =DT!B89 -> 0
A93: =DT!B90 -> 0
A94: =DT!B91 -> 0
A95: =DT!B92 -> 0
A96: =DT!B93 -> 0
A97: =DT!B94 -> 0
A98: =DT!B95 -> 0
A99: =DT!B96 -> 0
A100: =DT!B97 -> 0
A101: =DT!B98 -> 0

Sheet Compliance Schedule BMPs
A1: Compliance schedule Best Management Practices (BMPs) for Wasteload Allocations not being met (permit item 12.8)
A2: Fill in the following table with your proposed best management practices (BMPs) or progress toward implementation of BMPs to be achieved during the permit term, anticipated number of practices (if you are planning to install more than one of any type of BMP), and the year each BMP is expected to be implemented ("Implementation Year(s)" column). Put an "X" in the boxes for the TMDL that corresponds with each BMP. Where possible, please select the appropriate BMP from the dropdown (click on downward arrow to see options) in the "Best Management Practice/Activity" column. Otherwise, you are free to enter text in this worksheet. For more guidance on completing this tab, see:
A3: https://stormwater.pca.state.mn.us/index.php?title=Guidance_for_completing_the_MS4_Permit_TMDL_Application_Form#12.8_Compliance_schedule_BMPs_tab
A4: Required | B4: Optional | C4: Optional | D4: Required | E4: TMDL-Waterbody-Pollutant
A5: Best Management Practice/Activity | B5: BMP description (Select all that apply) | C5: Anticipated number of practices (if applicable) | D5: Expected Implementation Year(s) | CZ5: b | DA5: b

Sheet Reductions for WLA met
A1: Documentation for Waste load Allocations being met (permit item 12.10)
A2: Fill in the following table for each applicable oxyen demand, nitrate, TSS and/or TP WLA you are claiming to meet using the MPCA-approved method. This should either demonstrate the cumulative estimated reductions from BMPs that serve to meet the MS4 WLA reductions included in the TMDL report OR demonstrates the MS4's existing load meets the WLA. For more guidance on completing this tab, see:
A3: https://stormwater.pca.state.mn.us/index.php?title=Guidance_for_completing_the_MS4_Permit_TMDL_Application_Form#12.10_Reductions_for_WLAs_met_tab
A4: Required | B4: Cumulative Estimated Reductions - Required | D4: Required | E4: Required if "other" selected in column D | F4: Required | G4: Required | H4: Required if WLA is categorical | I4: Required if WLA is categorical | J4: Optional
A5: TMDL project name, waterbody and pollutant | B5: Cumulative estimated reduction-How are you claiming to meet the WLA? | C5: Cumulative estimated reduction (Enter value corresponding to units specified in Column B) | D5: Method(s) used to calculate | E5: Name of other model | F5: Do you have the calculations available on file? | G5: Is this part of a categorical WLA? (See Column E on Applicable WLAs determination tab) | H5: If part of a Categorical WLA, how did you determine your portion of the WLA? | I5: What is your portion of the categorical WLA? (Include units) | J5: Notes
A6: =DT!D2 -> 0 | E6: =IF(D6="Other","Enter_method(s)"," ") ->  | I6: =IF(G6="No","NA","") -> 
A7: =DT!D3 -> 0 | E7: =IF(D7="Other","Enter_method(s)"," ") ->  | I7: =IF(G7="No","NA","") -> 
A8: =DT!D4 -> 0
A9: =DT!D5 -> 0
A10: =DT!D6 -> 0
A11: =DT!D7 -> 0
A12: =DT!D8 -> 0
A13: =DT!D9 -> 0
A14: =DT!D10 -> 0
A15: =DT!D11 -> 0
A16: =DT!D12 -> 0
A17: =DT!D13 -> 0
A18: =DT!D14 -> 0
A19: =DT!D15 -> 0
A20: =DT!D16 -> 0
A21: =DT!D17 -> 0
A22: =DT!D18 -> 0
A23: =DT!D19 -> 0
A24: =DT!D20 -> 0
A25: =DT!D21 -> 0
A26: =DT!D22 -> 0
A27: =DT!D23 -> 0
A28: =DT!D24 -> 0
A29: =DT!D25 -> 0
A30: =DT!D26 -> 0
A31: =DT!D27 -> 0
A32: =DT!D28 -> 0
A33: =DT!D29 -> 0
A34: =DT!D30 -> 0
A35: =DT!D31 -> 0
A36: =DT!D32 -> 0
A37: =DT!D33 -> 0
A38: =DT!D34 -> 0
A39: =DT!D35 -> 0
A40: =DT!D36 -> 0
A41: =DT!D37 -> 0
A42: =DT!D38 -> 0
A43: =DT!D39 -> 0
A44: =DT!D40 -> 0
A45: =DT!D41 -> 0
A46: =DT!D42 -> 0
A47: =DT!D43 -> 0
A48: =DT!D44 -> 0
A49: =DT!D45 -> 0
A50: =DT!D46 -> 0
A51: =DT!D47 -> 0
A52: =DT!D48 -> 0
A53: =DT!D49 -> 0
A54: =DT!D50 -> 0
A55: =DT!D51 -> 0
A56: =DT!D52 -> 0
A57: =DT!D53 -> 0
A58: =DT!D54 -> 0
A59: =DT!D55 -> 0
A60: =DT!D56 -> 0
A61: =DT!D57 -> 0
A62: =DT!D58 -> 0
A63: =DT!D59 -> 0
A64: =DT!D60 -> 0
A65: =DT!D61 -> 0
A66: =DT!D62 -> 0
A67: =DT!D63 -> 0
A68: =DT!D64 -> 0
A69: =DT!D65 -> 0
A70: =DT!D66 -> 0
A71: =DT!D67 -> 0 | E71: =IF(D71="Other","Enter_method(s)"," ") ->  | I71: =IF(G71="No","NA","") -> 
A72: =DT!D68 -> 0
A73: =DT!D69 -> 0
A74: =DT!D70 -> 0
A75: =DT!D71 -> 0
A76: =DT!D72 -> 0
A77: =DT!D73 -> 0
A78: =DT!D74 -> 0
A79: =DT!D75 -> 0
A80: =DT!D76 -> 0
A81: =DT!D77 -> 0
A82: =DT!D78 -> 0
A83: =DT!D79 -> 0
A84: =DT!D80 -> 0
A85: =DT!D81 -> 0
A86: =DT!D82 -> 0
A87: =DT!D83 -> 0
A88: =DT!D84 -> 0
A89: =DT!D85 -> 0
A90: =DT!D86 -> 0
A91: =DT!D87 -> 0
A92: =DT!D88 -> 0
A93: =DT!D89 -> 0
A94: =DT!D90 -> 0
A95: =DT!D91 -> 0
A96: =DT!D92 -> 0
A97: =DT!D93 -> 0
A98: =DT!D94 -> 0
A99: =DT!D95 -> 0
A100: =DT!D96 -> 0
A101: =DT!D97 -> 0

Sheet BMPs for WLAs met
A1: BMPs (Best Management Practices) for Wasteload Allocations being met (permit item 12.10)
A2: Fill in the following table with a list of all stormwater BMPs implemented to achieve the applicable WLA. For structural BMPs, it is required to include the BMP type, year implemented, location in geographic coordinates (x coordinate and y coordinate), and owner. Then put an "X" in the boxes for the TMDL that corresponds with each BMP. Also make sure to complete the tab, "Reduction for WLAs met" worksheet. For more guidance on completing this tab, see:
A3: https://stormwater.pca.state.mn.us/index.php?title=Guidance_for_completing_the_MS4_Permit_TMDL_Application_Form#12.10_BMPs_for_WLAs_met_tab
A4: For the "Best Management Practice/Activity" column, please use the dropdown (click on downward arrow to see options) whenever possible.
A5: Required | B5: Optional | C5: Required field | D5: Optional | E5: Geographic coordinates required if not autofilled with "NA" | G5: Required | H5: Required if cell says "Enter owner" | I5: Optional | J5: Optional | K5: Optional | L5: Optional | M5: TMDL Project-Waterbody-Pollutant
A6: Best Management Practice/Activity | B6: BMP description (optional) | C6: Implementation Year(s) | D6: Are you lumping multiple BMPs? | E6: X coordinate (e.g. -93.38494434) | F6: Y coordinate (e.g., 45.21049133) | G6: Owner | H6: Other owner | I6: Estimated TSS reduction (lbs) | J6: Estimated phosphorus reduction (lbs) | K6: Estimated Oxygen Demand reduction (lbs) | L6: Estimated Total Nitrate reduction (lbs)
E7: =IF(OR(DD7=FALSE, $D7="yes"),"NA"," ") ->  | F7: =IF(OR($DD7=FALSE, $D7="yes"),"NA"," ") ->  | H7: =IF(G7="Permittee (you)","NA","Enter owner") -> Enter owner | I7: =IF($DD7=FALSE,"NA"," ") ->  | J7: =IF(DD7=FALSE,"NA"," ") ->  | DD7: =IF(OR(A7="BMP_improvement_enhancement_retrofitting",A7="Chemical_treatment_of_stormwater",A7="Eliminate_illicit_discharge_connection",A7="Enhanced_road_salt_management",A7="Establish_ordinance",A7="Impervious_disconnection",A7="Improved_lawn_turf_vegetation_soil_practices ",A7="Manufactured_device",A7="Stormwater_reuse",A7="Supplemental_employee_education_training",A7="Supplemental_public_education_outreach",A7="Supplemental_street_sweeping"),FALSE,TRUE) -> TRUE
E8: =IF(OR(DD8=FALSE, $D8="yes"),"NA"," ") ->  | F8: =IF(OR($DD8=FALSE, $D8="yes"),"NA"," ") ->  | H8: Enter owner | I8: =IF($DD8=FALSE,"NA"," ") ->  | J8: =IF(DD8=FALSE,"NA"," ") ->  | DD8: =IF(OR(A8="BMP_improvement_enhancement_retrofitting",A8="Chemical_treatment_of_stormwater",A8="Eliminate_illicit_discharge_connection",A8="Enhanced_road_salt_management",A8="Establish_ordinance",A8="Impervious_disconnection",A8="Improved_lawn_turf_vegetation_soil_practices ",A8="Manufactured_device",A8="Stormwater_reuse",A8="Supplemental_employee_education_training",A8="Supplemental_public_education_outreach",A8="Supplemental_street_sweeping"),FALSE,TRUE) -> TRUE
H9: Enter owner | DD9: TRUE
H10: Enter owner | DD10: TRUE
H11: Enter owner | DD11: TRUE
H12: Enter owner | DD12: TRUE
H13: Enter owner | J13: =IF(DD13=FALSE,"NA"," ") ->  | DD13: TRUE
H14: Enter owner | DD14: TRUE
H15: Enter owner | DD15: TRUE
H16: Enter owner | DD16: TRUE
H17: Enter owner | DD17: TRUE
H18: Enter owner | DD18: TRUE
H19: Enter owner | DD19: TRUE
H20: Enter owner | DD20: TRUE
H21: Enter owner | DD21: TRUE
H22: Enter owner | DD22: TRUE
H23: Enter owner | DD23: TRUE
H24: Enter owner | DD24: TRUE
H25: Enter owner | DD25: TRUE
H26: Enter owner | DD26: TRUE
H27: Enter owner | DD27: TRUE
H28: Enter owner | DD28: TRUE
H29: Enter owner | DD29: TRUE
H30: Enter owner | DD30: TRUE
H31: Enter owner | DD31: TRUE
H32: Enter owner | DD32: TRUE
H33: Enter owner | DD33: TRUE
H34: Enter owner | DD34: TRUE
H35: Enter owner | DD35: TRUE
H36: Enter owner | DD36: TRUE
H37: Enter owner | DD37: TRUE
H38: Enter owner | DD38: TRUE
H39: Enter owner | DD39: TRUE
H40: Enter owner | DD40: TRUE
H41: Enter owner | DD41: TRUE
H42: Enter owner | DD42: TRUE
H43: Enter owner | DD43: TRUE
H44: Enter owner | DD44: TRUE
H45: Enter owner | DD45: TRUE
H46: Enter owner | DD46: TRUE
H47: Enter owner | DD47: TRUE
H48: Enter owner | DD48: TRUE
H49: Enter owner | DD49: TRUE
H50: Enter owner | DD50: TRUE
H51: Enter owner | DD51: TRUE
H52: Enter owner | DD52: TRUE
H53: Enter owner | DD53: TRUE
H54: Enter owner | DD54: TRUE
H55: Enter owner | DD55: TRUE
H56: Enter owner | DD56: TRUE
H57: Enter owner | DD57: TRUE
H58: Enter owner | DD58: TRUE
H59: Enter owner | DD59: TRUE
H60: Enter owner | DD60: TRUE
H61: Enter owner | DD61: TRUE
H62: Enter owner | DD62: TRUE
H63: Enter owner | DD63: TRUE
H64: Enter owner | DD64: TRUE
H65: Enter owner | DD65: TRUE
H66: Enter owner | DD66: TRUE
H67: Enter owner | DD67: TRUE
H68: Enter owner | DD68: TRUE
H69: Enter owner | DD69: TRUE
H70: Enter owner | DD70: TRUE
H71: Enter owner | DD71: TRUE
E72: =IF(OR(DD72=FALSE, $D72="yes"),"NA"," ") ->  | F72: =IF(OR($DD72=FALSE, $D72="yes"),"NA"," ") ->  | H72: =IF(G72="Permittee (you)","NA","Enter owner") -> Enter owner | I72: =IF($DD72=FALSE,"NA"," ") ->  | J72: =IF(DD72=FALSE,"NA"," ") ->  | DD72: =IF(OR(A72="BMP_improvement_enhancement_retrofitting",A72="Chemical_treatment_of_stormwater",A72="Eliminate_illicit_discharge_connection",A72="Enhanced_road_salt_management",A72="Establish_ordinance",A72="Impervious_disconnection",A72="Improved_lawn_turf_vegetation_soil_practices ",A72="Manufactured_device",A72="Stormwater_reuse",A72="Supplemental_employee_education_training",A72="Supplemental_public_education_outreach",A72="Supplemental_street_sweeping"),FALSE,TRUE) -> TRUE
H73: Enter owner | DD73: TRUE
H74: Enter owner | DD74: TRUE
H75: Enter owner | DD75: TRUE
H76: Enter owner | DD76: TRUE
H77: Enter owner | DD77: TRUE
H78: Enter owner | DD78: TRUE
H79: Enter owner | DD79: TRUE
H80: Enter owner | DD80: TRUE
H81: Enter owner | DD81: TRUE
H82: Enter owner | DD82: TRUE
H83: Enter owner | DD83: TRUE
H84: Enter owner | DD84: TRUE
H85: Enter owner | DD85: TRUE
H86: Enter owner | DD86: TRUE
H87: Enter owner | DD87: TRUE
H88: Enter owner | DD88: TRUE
H89: Enter owner | DD89: TRUE
H90: Enter owner | DD90: TRUE
H91: Enter owner | DD91: TRUE
H92: Enter owner | DD92: TRUE
H93: Enter owner | DD93: TRUE
H94: Enter owner | DD94: TRUE
H95: Enter owner | DD95: TRUE
H96: Enter owner | DD96: TRUE
H97: Enter owner | DD97: TRUE
H98: Enter owner | DD98: TRUE
H99: Enter owner | DD99: TRUE
H100: Enter owner | DD100: TRUE
H101: Enter owner | DD101: TRUE
H102: Enter owner | DD102: TRUE
H103: Enter owner | DD103: TRUE
H104: Enter owner | DD104: TRUE
H105: Enter owner | DD105: TRUE
H106: Enter owner | DD106: TRUE
H107: Enter owner | DD107: TRUE
H108: Enter owner | DD108: TRUE
H109: Enter owner | DD109: TRUE
H110: Enter owner | DD110: TRUE
H111: Enter owner | DD111: TRUE
H112: Enter owner | DD112: TRUE
H113: Enter owner | DD113: TRUE
H114: Enter owner | DD114: TRUE
H115: Enter owner | DD115: TRUE
H116: Enter owner | DD116: TRUE
H117: Enter owner | DD117: TRUE
H118: Enter owner | DD118: TRUE
H119: Enter owner | DD119: TRUE
H120: Enter owner | DD120: TRUE
H121: Enter owner | DD121: TRUE
H122: Enter owner | DD122: TRUE
H123: Enter owner | DD123: TRUE
H124: Enter owner | DD124: TRUE
H125: Enter owner | DD125: TRUE
H126: Enter owner | DD126: TRUE
H127: Enter owner | DD127: TRUE
H128: Enter owner | DD128: TRUE
H129: Enter owner | DD129: TRUE
H130: Enter owner | DD130: TRUE
H131: Enter owner | DD131: TRUE
H132: Enter owner | DD132: TRUE
H133: Enter owner | DD133: TRUE
H134: Enter owner | DD134: TRUE
H135: Enter owner | DD135: TRUE
E136: =IF(OR(DD136=FALSE, $D136="yes"),"NA"," ") ->  | F136: =IF(OR($DD136=FALSE, $D136="yes"),"NA"," ") ->  | H136: =IF(G136="Permittee (you)","NA","Enter owner") -> Enter owner | I136: =IF($DD136=FALSE,"NA"," ") ->  | J136: =IF(DD136=FALSE,"NA"," ") ->  | DD136: =IF(OR(A136="BMP_improvement_enhancement_retrofitting",A136="Chemical_treatment_of_stormwater",A136="Eliminate_illicit_discharge_connection",A136="Enhanced_road_salt_management",A136="Establish_ordinance",A136="Impervious_disconnection",A136="Improved_lawn_turf_vegetation_soil_practices ",A136="Manufactured_device",A136="Stormwater_reuse",A136="Supplemental_employee_education_training",A136="Supplemental_public_education_outreach",A136="Supplemental_street_sweeping"),FALSE,TRUE) -> TRUE
H137: Enter owner | DD137: TRUE
H138: Enter owner | DD138: TRUE
H139: Enter owner | DD139: TRUE
H140: Enter owner | DD140: TRUE
H141: Enter owner | DD141: TRUE
H142: Enter owner | DD142: TRUE
H143: Enter owner | DD143: TRUE
H144: Enter owner | DD144: TRUE
H145: Enter owner | DD145: TRUE
H146: Enter owner | DD146: TRUE
H147: Enter owner | DD147: TRUE
H148: Enter owner | DD148: TRUE
H149: Enter owner | DD149: TRUE
H150: Enter owner | DD150: TRUE
H151: Enter owner | DD151: TRUE
H152: Enter owner | DD152: TRUE
H153: Enter owner | DD153: TRUE
H154: Enter owner | DD154: TRUE
H155: Enter owner | DD155: TRUE
H156: Enter owner | DD156: TRUE
H157: Enter owner | DD157: TRUE
H158: Enter owner | DD158: TRUE
H159: Enter owner | DD159: TRUE
H160: Enter owner | DD160: TRUE
H161: Enter owner | DD161: TRUE
H162: Enter owner | DD162: TRUE
H163: Enter owner | DD163: TRUE
H164: Enter owner | DD164: TRUE
H165: Enter owner | DD165: TRUE
H166: Enter owner | DD166: TRUE
H167: Enter owner | DD167: TRUE
H168: Enter owner | DD168: TRUE
H169: Enter owner | DD169: TRUE
H170: Enter owner | DD170: TRUE
H171: Enter owner | DD171: TRUE
H172: Enter owner | DD172: TRUE
H173: Enter owner | DD173: TRUE
H174: Enter owner | DD174: TRUE
H175: Enter owner | DD175: TRUE
H176: Enter owner | DD176: TRUE
H177: Enter owner | DD177: TRUE
H178: Enter owner | DD178: TRUE
H179: Enter owner | DD179: TRUE
H180: Enter owner | DD180: TRUE
H181: Enter owner | DD181: TRUE
H182: Enter owner | DD182: TRUE
H183: Enter owner | DD183: TRUE
H184: Enter owner | DD184: TRUE
H185: Enter owner | DD185: TRUE
H186: Enter owner | DD186: TRUE
H187: Enter owner | DD187: TRUE
H188: Enter owner | DD188: TRUE
H189: Enter owner | DD189: TRUE
H190: Enter owner | DD190: TRUE
H191: Enter owner | DD191: TRUE
H192: Enter owner | DD192: TRUE
H193: Enter owner | DD193: TRUE
H194: Enter owner | DD194: TRUE
H195: Enter owner | DD195: TRUE
H196: Enter owner | DD196: TRUE
H197: Enter owner | DD197: TRUE
H198: Enter owner | DD198: TRUE
H199: Enter owner | DD199: TRUE
E200: =IF(OR(DD200=FALSE, $D200="yes"),"NA"," ") ->  | F200: =IF(OR($DD200=FALSE, $D200="yes"),"NA"," ") ->  | H200: =IF(G200="Permittee (you)","NA","Enter owner") -> Enter owner | I200: =IF($DD200=FALSE,"NA"," ") ->  | J200: =IF(DD200=FALSE,"NA"," ") ->  | DD200: =IF(OR(A200="BMP_improvement_enhancement_retrofitting",A200="Chemical_treatment_of_stormwater",A200="Eliminate_illicit_discharge_connection",A200="Enhanced_road_salt_management",A200="Establish_ordinance",A200="Impervious_disconnection",A200="Improved_lawn_turf_vegetation_soil_practices ",A200="Manufactured_device",A200="Stormwater_reuse",A200="Supplemental_employee_education_training",A200="Supplemental_public_education_outreach",A200="Supplemental_street_sweeping"),FALSE,TRUE) -> TRUE
... 300 more rows

Sheet MPCA estimator (hidden)
A1: * This estimator can only be used for one TMDL at a time. For guidance on how to use the estimator for multiple TMDLs, please see the Minnesota Stormwater Manual.*
A2: TMDL Name (User must enter name of TMDL here):
A3: The total load
A4: Land use | B4: Phosphorus EMC | C4: TSS EMC | D4: E. coli EMC | E4: Fecal Coliform EMC | F4: Area | G4: Annual Rainfall | H4: Runoff coefficient | I4: Phosphorus load | J4: TSS load | K4: E. coli load | L4: Fecal Coliform load
B5: (mg/L) | C5: (mg/L) | D5: #/100mL | E5: #/100mL | F5: (acres) | G5: (inches) | I5: (lbs) | J5: (lbs) | K5: #/100mL | L5: #/100mL
A6: Commercial | B6: ='Input values for MPCA estimator'!B14 -> 0.25 | C6: ='Input values for MPCA estimator'!C14 -> 201 | D6: ='Input values for MPCA estimator'!D14 -> 3958.218695 | E6: ='Input values for MPCA estimator'!E14 -> 4500 | F6: 0.001 | G6: 30.65 | H6: ='Input values for MPCA estimator'!F14 -> 0.8 | I6: =0.227*H6*G6*F6*B6 -> 0.00139151 | J6: =0.227*C6*F6*G6*H6 -> 1.11877404 | K6: =G6*25.4*F6*92903.04*D6*0.001/100*H6 -> 2290.255282 | L6: =G6*25.4*F6*92903.04*E6*0.001/100*H6 -> 2603.734044
A7: Industrial | B7: ='Input values for MPCA estimator'!B15 -> 0.33 | C7: ='Input values for MPCA estimator'!C15 -> 177 | D7: ='Input values for MPCA estimator'!D15 -> 2122.809049 | E7: ='Input values for MPCA estimator'!E15 -> 2500 | F7: 0.001 | G7: 30.65 | H7: ='Input values for MPCA estimator'!F15 -> 0.8 | I7: =0.227*H7*G7*F7*B7 -> 0.0018367932 | J7: =0.227*C7*F7*G7*H7 -> 0.98518908 | K7: 1228.273376 | L7: =G7*25.4*F7*92903.04*E7*0.001/100*H7 -> 1446.518913
A8: Institutional | B8: ='Input values for MPCA estimator'!B16 -> 0.21 | C8: ='Input values for MPCA estimator'!C16 -> 91 | D8: ='Input values for MPCA estimator'!D16 -> 2666.477458 | E8: ='Input values for MPCA estimator'!E16 -> 3100 | F8: 0.001 | G8: 30.65 | H8: ='Input values for MPCA estimator'!F16 -> 0.75 | I8: 0.001095814125 | J8: 0.4748527875 | K8: 1446.416278 | L8: 1681.578237
A9: Multi-use | B9: ='Input values for MPCA estimator'!B17 -> 0.29 | C9: ='Input values for MPCA estimator'!C17 -> 189 | D9: ='Input values for MPCA estimator'!D17 -> 4501.950004 | E9: ='Input values for MPCA estimator'!E17 -> 5081 | F9: 0.001 | G9: 30.65 | H9: ='Input values for MPCA estimator'!F17 -> 0.5 | I9: 0.00100884475 | J9: 0.657488475 | K9: 1628.038957 | L9: 1837.44065
A10: Municipal | B10: ='Input values for MPCA estimator'!B18 -> 0.29 | C10: ='Input values for MPCA estimator'!C18 -> 189 | D10: ='Input values for MPCA estimator'!D18 -> 4501.950004 | E10: ='Input values for MPCA estimator'!E18 -> 5081 | F10: 0.001 | G10: 30.65 | H10: ='Input values for MPCA estimator'!F18 -> 0.5 | I10: 0.00100884475 | J10: 0.657488475 | K10: 1628.038957 | L10: 1837.44065
A11: Open space | B11: ='Input values for MPCA estimator'!B19 -> 0.125 | C11: ='Input values for MPCA estimator'!C19 -> 176 | D11: ='Input values for MPCA estimator'!D19 -> 2666.477458 | E11: ='Input values for MPCA estimator'!E19 -> 3100 | F11: 0.001 | G11: 30.65 | H11: ='Input values for MPCA estimator'!F19 -> 0.2 | I11: 0.00017393875 | J11: 0.24490576 | K11: 385.7110075 | L11: 448.4208632
A12: Residential - high density | B12: ='Input values for MPCA estimator'!B20 -> 0.4 | C12: ='Input values for MPCA estimator'!C20 -> 132 | D12: ='Input values for MPCA estimator'!D20 -> 7042.945468 | E12: ='Input values for MPCA estimator'!E20 -> 7750 | F12: 0.001 | G12: 30.65 | H12: ='Input values for MPCA estimator'!F20 -> 0.44 | I12: 0.0012245288 | J12: 0.404094504 | K12: =G12*25.4*F12*92903.04*D12*0.001/100*H12 -> 2241.305842 | L12: 2466.314747
A13: Residential - low density | B13: ='Input values for MPCA estimator'!B21 -> 0.4 | C13: ='Input values for MPCA estimator'!C21 -> 132 | D13: ='Input values for MPCA estimator'!D21 -> 7042.945468 | E13: ='Input values for MPCA estimator'!E21 -> 7750 | F13: 0.001 | G13: 30.65 | H13: ='Input values for MPCA estimator'!F21 -> 0.34 | I13: 0.0009462268 | J13: 0.312254844 | K13: 1731.91815 | L13: 1905.788668
A14: Residential - medium density | B14: ='Input values for MPCA estimator'!B22 -> 0.4 | C14: ='Input values for MPCA estimator'!C22 -> 132 | D14: ='Input values for MPCA estimator'!D22 -> 7042.945468 | E14: ='Input values for MPCA estimator'!E22 -> 7750 | F14: 0.001 | G14: 30.65 | H14: ='Input values for MPCA estimator'!F22 -> 0.4 | I14: 0.001113208 | J14: 0.36735864 | K14: 2037.550765 | L14: 2242.104316
A15: Transportation | B15: ='Input values for MPCA estimator'!B23 -> 0.43 | C15: ='Input values for MPCA estimator'!C23 -> 114 | D15: ='Input values for MPCA estimator'!D23 -> 1410.49119 | E15: ='Input values for MPCA estimator'!E23 -> 1700 | F15: 0.001 | G15: 30.65 | H15: ='Input values for MPCA estimator'!F23 -> 0.8 | I15: 0.0023933972 | J15: 0.63452856 | K15: 816.1208732 | L15: 983.6328611
A16: User specified | F16: 0.001 | I16: =0.227*H16*G16*F16*B16 -> 0 | J16: =0.227*C16*F16*G16*H16 -> 0 | K16: =G16*25.4*F16*92903.04*D16*0.001/100*H16 -> 0 | L16: =G16*25.4*F16*92903.04*E16*0.001/100*H16 -> 0
A17: User specified | F17: 0.001 | I17: =0.227*H17*G17*F17*B17 -> 0 | J17: =0.227*C17*F17*G17*H17 -> 0 | K17: 0 | L17: 0
A18: TOTAL ---> | F18: =SUM(F6:F17) -> 0.012 | I18: =SUM(I6:I17) -> 0.01219310638 | J18: =SUM(J6:J17) -> 5.856935165 | K18: =SUM(K6:K17) -> 15433.62949 | L18: =SUM(L6:L17) -> 17452.97395
A20: PHOSPHORUS LOAD REDUCTIONS
A21: Land use | B21: Area treated by Best Management Practice (acres)
B22: Biofiltration (bioretention with underdrain) | C22: Infiltration (BMP with no underdrain) | D22: Filter strip | E22: Landscaped roof (green roof) | F22: Permeable pavement with underdrain | G22: Sand filter | H22: Swale | I22: Wet basin | J22: Wetland | K22: Other | L22: TOTAL
A23: Commercial | L23: =SUM(B23:K23) -> 0 | M23: =IF(L23>F6,"WARNING:Total acres treated exceed total acres for this land use"," ") -> 
A24: Industrial | L24: 0
A25: Institutional | L25: 0
A26: Multi-use | L26: 0
A27: Municipal | L27: 0
A28: Open space | L28: 0
A29: Residential - high density | L29: 0 | M29: =IF(L29>F12,"WARNING:Total acres treated exceed total acres for this land use"," ") -> 
A30: Residential - low density | L30: 0
A31: Residential - medium density | L31: 0
A32: =$A$15 -> Transportation | L32: 0
A33: =$A$16 -> User specified | L33: 0
A34: =$A$17 -> User specified | L34: 0
A35: EMC removal efficiency for non-infiltrated water---> | B35: ='Input values for MPCA estimator'!B3 -> 0.44 | C35: ='Input values for MPCA estimator'!B4 -> 0 | D35: ='Input values for MPCA estimator'!B5 -> 0 | E35: ='Input values for MPCA estimator'!B6 -> 0 | F35: ='Input values for MPCA estimator'!B7 -> 0.45 | G35: ='Input values for MPCA estimator'!B8 -> 0.47 | H35: ='Input values for MPCA estimator'!B9 -> 0.4 | I35: ='Input values for MPCA estimator'!B10 -> 0.5 | J35: ='Input values for MPCA estimator'!B11 -> 0.38 | K35: 0.4
A36: Fraction of annual runoff treated by BMP ---> | B36: ='Input values for MPCA estimator'!$B$26 -> 0.9 | C36: ='Input values for MPCA estimator'!C26 -> 0.9 | D36: ='Input values for MPCA estimator'!$D$26 -> 0.9 | E36: ='Input values for MPCA estimator'!$E$26 -> 0.9 | F36: ='Input values for MPCA estimator'!$F$26 -> 0.9 | G36: ='Input values for MPCA estimator'!$G$26 -> 0.9 | H36: ='Input values for MPCA estimator'!$H$26 -> 0.9 | I36: ='Input values for MPCA estimator'!$I$26 -> 1 | J36: ='Input values for MPCA estimator'!$J$26 -> 1 | K36: ='Input values for MPCA estimator'!$K$26 -> 0.9
A37: Fraction of annual runoff that is infiltrated ---> | B37: ='Input values for MPCA estimator'!$B$27 -> 0 | C37: ='Input values for MPCA estimator'!$C$27 -> 0.9 | D37: ='Input values for MPCA estimator'!$D$27 -> 0 | E37: ='Input values for MPCA estimator'!$E$27 -> 0 | F37: ='Input values for MPCA estimator'!$F$27 -> 0.9 | G37: ='Input values for MPCA estimator'!$G$27 -> 0 | H37: ='Input values for MPCA estimator'!$H$27 -> 0 | I37: ='Input values for MPCA estimator'!$I$27 -> 0 | J37: ='Input values for MPCA estimator'!$J$27 -> 0 | K37: ='Input values for MPCA estimator'!$K$27 -> 0
A38: Total pounds reduced ---> | B38: =(((B23/$F6*$I6)+(B24/$F7*$I7)+(B25/$F8*$I8)+(B26/$F9*$I9)+(B27/$F10*$I10)+(B28/$F11*$I11)+(B29/$F12*$I12)+(B30/$F13*$I13)+(B31/$F14*$I14)+(B32/$F15*$I15)+(B33/$F16*$I16)+(B34/$F17*$I17))*B35*(B36-B37))+(((B23/$F6*$I6)+(B24/$F7*$I7)+(B25/$F8*$I8)+(B26/$F9*$I9)+(B27/$F10*$I10)+(B28/$F11*$I11)+(B29/$F12*$I12)+(B30/$F13*$I13)+(B31/$F14*$I14)+(B32/$F15*$I15)+(B33/$F16*$I16)+(B34/$F17*$I17))*B37) -> 0 | C38: =(((C23/$F6*$I6)+(C24/$F7*$I7)+(C25/$F8*$I8)+(C26/$F9*$I9)+(C27/$F10*$I10)+(C28/$F11*$I11)+(C29/$F12*$I12)+(C30/$F13*$I13)+(C31/$F14*$I14)+(C32/$F15*$I15)+(C33/$F16*$I16)+(C34/$F17*$I17))*C35*(C36-C37))+(((C23/$F6*$I6)+(C24/$F7*$I7)+(C25/$F8*$I8)+(C26/$F9*$I9)+(C27/$F10*$I10)+(C28/$F11*$I11)+(C29/$F12*$I12)+(C30/$F13*$I13)+(C31/$F14*$I14)+(C32/$F15*$I15)+(C33/$F16*$I16)+(C34/$F17*$I17))*C37) -> 0 | D38: =(((D23/$F6*$I6)+(D24/$F7*$I7)+(D25/$F8*$I8)+(D26/$F9*$I9)+(D27/$F10*$I10)+(D28/$F11*$I11)+(D29/$F12*$I12)+(D30/$F13*$I13)+(D31/$F14*$I14)+(D32/$F15*$I15)+(D33/$F16*$I16)+(D34/$F17*$I17))*D35*(D36-D37))+(((D23/$F6*$I6)+(D24/$F7*$I7)+(D25/$F8*$I8)+(D26/$F9*$I9)+(D27/$F10*$I10)+(D28/$F11*$I11)+(D29/$F12*$I12)+(D30/$F13*$I13)+(D31/$F14*$I14)+(D32/$F15*$I15)+(D33/$F16*$I16)+(D34/$F17*$I17))*D37) -> 0 | E38: 0 | F38: 0 | G38: 0 | H38: 0 | I38: 0 | J38: 0 | K38: 0 | L38: =SUM(B38:K38) -> 0
A39: Percent load reduced ---> | B39: =B38/$I$18 -> 0 | C39: =C38/$I$18 -> 0 | D39: =D38/$I$18 -> 0 | E39: 0 | F39: 0 | G39: 0 | H39: 0 | I39: 0 | J39: 0 | K39: 0 | L39: =L38/$I$18 -> 0
A41: TSS LOAD REDUCTIONS
A42: Land use | B42: Area treated by Best Management Practice (acres)
B43: Biofiltration | C43: Infiltration (basin, trench, vault, bioinfiltration) | D43: Filter strip | E43: Landscaped roof (green roof) | F43: Permeable pavement | G43: Sand filter | H43: Swale | I43: Wet basin | J43: Wetland | K43: Other | L43: TOTAL
A44: Commercial | L44: =SUM(B44:K44) -> 0 | M44: =IF(L44>F6,"WARNING:Total acres treated exceed total acres for this land use"," ") -> 
A45: Industrial | L45: 0
A46: Institutional | L46: 0
A47: Multi-use | L47: 0
A48: Municipal | L48: 0
A49: Open space | L49: 0
A50: Residential - high density | L50: 0
A51: Residential - low density | L51: 0
A52: Residential - medium density | L52: 0
A53: =$A$15 -> Transportation | L53: 0
A54: =$A$16 -> User specified | L54: 0
A55: =$A$17 -> User specified | L55: 0
A56: Removal efficiency ---> | B56: ='Input values for MPCA estimator'!C3 -> 0.85 | C56: ='Input values for MPCA estimator'!C4 -> 0 | D56: ='Input values for MPCA estimator'!C5 -> 0.68 | E56: ='Input values for MPCA estimator'!C6 -> 0.96 | F56: ='Input values for MPCA estimator'!C7 -> 0.74 | G56: ='Input values for MPCA estimator'!C8 -> 0.85 | H56: ='Input values for MPCA estimator'!C9 -> 0.68 | I56: ='Input values for MPCA estimator'!C10 -> 0.73 | J56: ='Input values for MPCA estimator'!C11 -> 0.84 | K56: 0.4
A57: Fraction of annual runoff treated by BMP ---> | B57: ='Input values for MPCA estimator'!$B$26 -> 0.9 | C57: ='Input values for MPCA estimator'!C47 -> 0 | D57: ='Input values for MPCA estimator'!$D$26 -> 0.9 | E57: ='Input values for MPCA estimator'!$E$26 -> 0.9 | F57: ='Input values for MPCA estimator'!$F$26 -> 0.9 | G57: ='Input values for MPCA estimator'!$G$26 -> 0.9 | H57: ='Input values for MPCA estimator'!$H$26 -> 0.9 | I57: ='Input values for MPCA estimator'!$I$26 -> 1 | J57: ='Input values for MPCA estimator'!$J$26 -> 1 | K57: ='Input values for MPCA estimator'!$K$26 -> 0.9
A58: Fraction of annual runoff that is infiltrated ---> | B58: ='Input values for MPCA estimator'!$B$27 -> 0 | C58: ='Input values for MPCA estimator'!$C$27 -> 0.9 | D58: ='Input values for MPCA estimator'!$D$27 -> 0 | E58: ='Input values for MPCA estimator'!$E$27 -> 0 | F58: ='Input values for MPCA estimator'!$F$27 -> 0.9 | G58: ='Input values for MPCA estimator'!$G$27 -> 0 | H58: ='Input values for MPCA estimator'!$H$27 -> 0 | I58: ='Input values for MPCA estimator'!$I$27 -> 0 | J58: ='Input values for MPCA estimator'!$J$27 -> 0 | K58: ='Input values for MPCA estimator'!$K$27 -> 0
A59: Total pounds reduced ---> | B59: =(((B44/$F6*$J6)+(B45/$F7*$J7)+(B46/$F8*$J8)+(B47/$F9*$J9)+(B48/$F10*$J10)+(B49/$F11*$J11)+(B50/$F12*$J12)+(B51/$F13*$J13)+(B52/$F14*$J14)+(B53/$F15*$J15)+(B54/$F16*$J16)+(B55/$F17*$J17))*B56*(B57-B58))+(((B44/$F6*$J6)+(B45/$F7*$J7)+(B46/$F8*$J8)+(B47/$F9*$J9)+(B48/$F10*$J10)+(B49/$F11*$J11)+(B50/$F12*$J12)+(B51/$F13*$J13)+(B52/$F14*$J14)+(B53/$F15*$J15)+(B54/$F16*$J16)+(B55/$F17*$J17))*B58) -> 0 | C59: =(((C44/$F6*$J6)+(C45/$F7*$J7)+(C46/$F8*$J8)+(C47/$F9*$J9)+(C48/$F10*$J10)+(C49/$F11*$J11)+(C50/$F12*$J12)+(C51/$F13*$J13)+(C52/$F14*$J14)+(C53/$F15*$J15)+(C54/$F16*$J16)+(C55/$F17*$J17))*C56*(C57-C58))+(((C44/$F6*$J6)+(C45/$F7*$J7)+(C46/$F8*$J8)+(C47/$F9*$J9)+(C48/$F10*$J10)+(C49/$F11*$J11)+(C50/$F12*$J12)+(C51/$F13*$J13)+(C52/$F14*$J14)+(C53/$F15*$J15)+(C54/$F16*$J16)+(C55/$F17*$J17))*C58) -> 0 | D59: 0 | E59: 0 | F59: 0 | G59: 0 | H59: 0 | I59: 0 | J59: 0 | K59: 0 | L59: =SUM(B59:K59) -> 0
A60: Percent load reduced ---> | B60: =B59/$J$18 -> 0 | C60: 0 | D60: 0 | E60: 0 | F60: 0 | G60: 0 | H60: 0 | I60: 0 | J60: 0 | K60: 0 | L60: 0
A62: E. coli LOAD REDUCTIONS
A63: Land use | B63: Area treated by Best Management Practice (acres)
B64: Biofiltration | C64: Infiltration (basin, trench, vault, bioinfiltration) | D64: Filter strip | E64: Landscaped roof (green roof) | F64: Permeable pavement | G64: Sand filter | H64: Swale | I64: Wet basin | J64: Wetland | K64: Other | L64: TOTAL
A65: Commercial | L65: =SUM(B65:K65) -> 0 | M65: =IF(L65>F6,"WARNING:Total acres treated exceed total acres for this land use"," ") -> 
A66: Industrial | L66: 0
A67: Institutional | L67: 0
A68: Multi-use | L68: 0
A69: Municipal | L69: 0
A70: Open space | L70: 0
A71: Residential - high density | L71: 0
A72: Residential - low density | L72: 0
A73: Residential - medium density | L73: 0
A74: =$A$15 -> Transportation | L74: 0
A75: =$A$16 -> User specified | L75: 0
A76: =$A$17 -> User specified | L76: 0
A77: Removal efficiency ---> | B77: ='Input values for MPCA estimator'!D3 -> 0.75 | C77: ='Input values for MPCA estimator'!D4 -> 0 | D77: ='Input values for MPCA estimator'!D5 -> 0.25 | E77: ='Input values for MPCA estimator'!D6 -> 0.9 | F77: ='Input values for MPCA estimator'!D7 -> 0.7 | G77: ='Input values for MPCA estimator'!D8 -> 0.75 | H77: ='Input values for MPCA estimator'!D9 -> 0 | I77: ='Input values for MPCA estimator'!D10 -> 0.7 | J77: ='Input values for MPCA estimator'!D11 -> 0.7 | K77: 0.4
A78: Fraction of annual runoff treated by BMP ---> | B78: ='Input values for MPCA estimator'!$B$26 -> 0.9 | C78: ='Input values for MPCA estimator'!C68 -> 0 | D78: ='Input values for MPCA estimator'!$D$26 -> 0.9 | E78: ='Input values for MPCA estimator'!$E$26 -> 0.9 | F78: ='Input values for MPCA estimator'!$F$26 -> 0.9 | G78: ='Input values for MPCA estimator'!$G$26 -> 0.9 | H78: ='Input values for MPCA estimator'!$H$26 -> 0.9 | I78: ='Input values for MPCA estimator'!$I$26 -> 1 | J78: ='Input values for MPCA estimator'!$J$26 -> 1 | K78: ='Input values for MPCA estimator'!$K$26 -> 0.9
A79: Fraction of annual runoff that is infiltrated ---> | B79: ='Input values for MPCA estimator'!$B$27 -> 0 | C79: ='Input values for MPCA estimator'!$C$27 -> 0.9 | D79: ='Input values for MPCA estimator'!$D$27 -> 0 | E79: ='Input values for MPCA estimator'!$E$27 -> 0 | F79: ='Input values for MPCA estimator'!$F$27 -> 0.9 | G79: ='Input values for MPCA estimator'!$G$27 -> 0 | H79: ='Input values for MPCA estimator'!$H$27 -> 0 | I79: ='Input values for MPCA estimator'!$I$27 -> 0 | J79: ='Input values for MPCA estimator'!$J$27 -> 0 | K79: ='Input values for MPCA estimator'!$K$27 -> 0
A80: Total pounds reduced ---> | B80: =(((B65/$F6*$K6)+(B66/$F7*$K7)+(B67/$F8*$K8)+(B68/$F9*$K9)+(B69/$F10*$K10)+(B70/$F11*$K11)+(B71/$F12*$K12)+(B72/$F13*$K13)+(B73/$F14*$K14)+(B74/$F15*$K15)+(B75/$F16*$K16)+(B76/$F17*$K17))*B77*(B78-B79))+(((B65/$F6*$K6)+(B66/$F7*$K7)+(B67/$F8*$K8)+(B68/$F9*$K9)+(B69/$F10*$K10)+(B70/$F11*$K11)+(B71/$F12*$K12)+(B72/$F13*$K13)+(B73/$F14*$K14)+(B74/$F15*$K15)+(B75/$F16*$K16)+(B76/$F17*$K17))*B79) -> 0 | C80: =(((C65/$F6*$K6)+(C66/$F7*$K7)+(C67/$F8*$K8)+(C68/$F9*$K9)+(C69/$F10*$K10)+(C70/$F11*$K11)+(C71/$F12*$K12)+(C72/$F13*$K13)+(C73/$F14*$K14)+(C74/$F15*$K15)+(C75/$F16*$K16)+(C76/$F17*$K17))*C77*(C78-C79))+(((C65/$F6*$K6)+(C66/$F7*$K7)+(C67/$F8*$K8)+(C68/$F9*$K9)+(C69/$F10*$K10)+(C70/$F11*$K11)+(C71/$F12*$K12)+(C72/$F13*$K13)+(C73/$F14*$K14)+(C74/$F15*$K15)+(C75/$F16*$K16)+(C76/$F17*$K17))*C79) -> 0 | D80: 0 | E80: 0 | F80: 0 | G80: 0 | H80: 0 | I80: 0 | J80: 0 | K80: 0 | L80: =SUM(B80:K80) -> 0
A81: Percent load reduced ---> | B81: =B80/$K$18 -> 0 | C81: 0 | D81: 0 | E81: 0 | F81: 0 | G81: 0 | H81: 0 | I81: 0 | J81: 0 | K81: 0 | L81: 0
A83: FECAL COLIFORM LOAD REDUCTIONS
A84: Land use | B84: Area treated by Best Management Practice (acres)
B85: Biofiltration | C85: Infiltration (basin, trench, vault, bioinfiltration) | D85: Dry basin - detention pond | E85: Landscaped roof (green roof) | F85: Permeable pavement | G85: Sand filter | H85: Swale | I85: Wet basin | J85: Wetland | K85: Other | L85: TOTAL
A86: Commercial | L86: =SUM(B86:K86) -> 0 | M86: =IF(L86>F6,"WARNING:Total acres treated exceed total acres for this land use"," ") -> 
A87: Industrial | L87: 0
A88: Institutional | L88: 0
A89: Multi-use | L89: 0
A90: Municipal | L90: 0
A91: Open space | L91: 0
A92: Residential - high density | L92: 0
A93: Residential - low density | L93: 0
A94: Residential - medium density | L94: 0
A95: =$A$15 -> Transportation | L95: 0
A96: =$A$16 -> User specified | L96: 0
A97: =$A$17 -> User specified | L97: 0
A98: Removal efficiency ---> | B98: ='Input values for MPCA estimator'!E3 -> 0.75 | C98: ='Input values for MPCA estimator'!E4 -> 0 | D98: ='Input values for MPCA estimator'!E5 -> 0.25 | E98: ='Input values for MPCA estimator'!E6 -> 0.9 | F98: ='Input values for MPCA estimator'!E7 -> 0.7 | G98: ='Input values for MPCA estimator'!E8 -> 0.75 | H98: ='Input values for MPCA estimator'!E9 -> 0 | I98: ='Input values for MPCA estimator'!E10 -> 0.7 | J98: ='Input values for MPCA estimator'!E11 -> 0.7 | K98: 0.4
A99: Fraction of annual runoff treated by BMP ---> | B99: ='Input values for MPCA estimator'!$B$26 -> 0.9 | C99: ='Input values for MPCA estimator'!C89 -> 0 | D99: ='Input values for MPCA estimator'!$D$26 -> 0.9 | E99: ='Input values for MPCA estimator'!$E$26 -> 0.9 | F99: ='Input values for MPCA estimator'!$F$26 -> 0.9 | G99: ='Input values for MPCA estimator'!$G$26 -> 0.9 | H99: ='Input values for MPCA estimator'!$H$26 -> 0.9 | I99: ='Input values for MPCA estimator'!$I$26 -> 1 | J99: ='Input values for MPCA estimator'!$J$26 -> 1 | K99: ='Input values for MPCA estimator'!$K$26 -> 0.9
A100: Fraction of annual runoff that is infiltrated ---> | B100: ='Input values for MPCA estimator'!$B$27 -> 0 | C100: ='Input values for MPCA estimator'!$C$27 -> 0.9 | D100: ='Input values for MPCA estimator'!$D$27 -> 0 | E100: ='Input values for MPCA estimator'!$E$27 -> 0 | F100: ='Input values for MPCA estimator'!$F$27 -> 0.9 | G100: ='Input values for MPCA estimator'!$G$27 -> 0 | H100: ='Input values for MPCA estimator'!$H$27 -> 0 | I100: ='Input values for MPCA estimator'!$I$27 -> 0 | J100: ='Input values for MPCA estimator'!$J$27 -> 0 | K100: ='Input values for MPCA estimator'!$K$27 -> 0
A101: Total pounds reduced ---> | B101: =(((B86/$F6*$L6)+(B87/$F7*$L7)+(B88/$F8*$L8)+(B89/$F9*$L9)+(B90/$F10*$L10)+(B91/$F11*$L11)+(B92/$F12*$L12)+(B93/$F13*$L13)+(B94/$F14*$L14)+(B95/$F15*$L15)+(B96/$F16*$L16)+(B97/$F17*$L17))*B98*(B99-B100))+(((B86/$F6*$L6)+(B87/$F7*$L7)+(B88/$F8*$L8)+(B89/$F9*$L9)+(B90/$F10*$L10)+(B91/$F11*$L11)+(B92/$F12*$L12)+(B93/$F13*$L13)+(B94/$F14*$L14)+(B95/$F15*$L15)+(B96/$F16*$L16)+(B97/$F17*$L17))*B100) -> 0 | C101: =(((C86/$F6*$L6)+(C87/$F7*$L7)+(C88/$F8*$L8)+(C89/$F9*$L9)+(C90/$F10*$L10)+(C91/$F11*$L11)+(C92/$F12*$L12)+(C93/$F13*$L13)+(C94/$F14*$L14)+(C95/$F15*$L15)+(C96/$F16*$L16)+(C97/$F17*$L17))*C98*(C99-C100))+(((C86/$F6*$L6)+(C87/$F7*$L7)+(C88/$F8*$L8)+(C89/$F9*$L9)+(C90/$F10*$L10)+(C91/$F11*$L11)+(C92/$F12*$L12)+(C93/$F13*$L13)+(C94/$F14*$L14)+(C95/$F15*$L15)+(C96/$F16*$L16)+(C97/$F17*$L17))*C100) -> 0 | D101: =(((D86/$F6*$L6)+(D87/$F7*$L7)+(D88/$F8*$L8)+(D89/$F9*$L9)+(D90/$F10*$L10)+(D91/$F11*$L11)+(D92/$F12*$L12)+(D93/$F13*$L13)+(D94/$F14*$L14)+(D95/$F15*$L15)+(D96/$F16*$L16)+(D97/$F17*$L17))*D98*(D99-D100))+(((D86/$F6*$L6)+(D87/$F7*$L7)+(D88/$F8*$L8)+(D89/$F9*$L9)+(D90/$F10*$L10)+(D91/$F11*$L11)+(D92/$F12*$L12)+(D93/$F13*$L13)+(D94/$F14*$L14)+(D95/$F15*$L15)+(D96/$F16*$L16)+(D97/$F17*$L17))*D100) -> 0 | E101: 0 | F101: 0 | G101: 0 | H101: 0 | I101: 0 | J101: 0 | K101: 0 | L101: =SUM(B101:K101) -> 0
A102: Percent load reduced ---> | B102: =B101/$L$18 -> 0 | C102: 0 | D102: 0 | E102: 0 | F102: 0 | G102: 0 | H102: 0 | I102: 0 | J102: 0 | K102: 0 | L102: 0

Sheet Input values for MPCA estimator (hidden)
A1: BMP | B1: Phosphorus removal (fraction) | C1: TSS removal (fraction) | D1: E. coli removal (fraction) | E1: Fecal coliform removal (fraction) | F1: *You may change the values on this tab in order to change the ones used in the estimator. Default input values will be lost if you change them, but default values are listed in the guidance document in the wiki*
B2: MPCA Values | C2: MPCA Values | D2: MPCA Values | E2: MPCA Values
A3: Biofiltration | B3: 0.44 | C3: 0.85 | D3: 0.75 | E3: 0.75
A4: Infiltration (basin, trench, tree trench, vault, bioinfiltration)* | B4: 0 | C4: 0 | D4: 0 | E4: 0
A5: Filter strip | B5: 0 | C5: 0.68 | D5: 0.25 | E5: 0.25
A6: Landscaped roof (green roof) | B6: 0 | C6: 0.96 | D6: 0.9 | E6: 0.9
A7: Permeable pavement | B7: 0.45 | C7: 0.74 | D7: 0.7 | E7: 0.7
A8: Sand filter | B8: 0.47 | C8: 0.85 | D8: 0.75 | E8: 0.75
A9: Swale | B9: 0.4 | C9: 0.68 | D9: 0 | E9: 0
A10: Wet basin | B10: 0.5 | C10: 0.73 | D10: 0.7 | E10: 0.7
A11: Wetland | B11: 0.38 | C11: 0.84 | D11: 0.7 | E11: 0.7
A12: Land Use | B12: EMC (mg/L)** | D12: EMC (CFU/100mL) | F12: Runoff coefficient (Rv)****
B13: TP | C13: TSS | D13: E coli*** | E13: Fecal coliform
A14: Commercial | B14: 0.25 | C14: 201 | D14: =0.531*E14^1.06 -> 3958.218695 | E14: 4500 | F14: 0.8
A15: Industrial | B15: 0.33 | C15: 177 | D15: =0.531*E15^1.06 -> 2122.809049 | E15: 2500 | F15: 0.8
A16: Institutional | B16: 0.21 | C16: 91 | D16: 2666.477458 | E16: 3100 | F16: 0.75
A17: Multi-use | B17: 0.29 | C17: 189 | D17: 4501.950004 | E17: 5081 | F17: 0.5
A18: Municipal | B18: 0.29 | C18: 189 | D18: 4501.950004 | E18: 5081 | F18: 0.5
A19: Open space | B19: 0.125 | C19: 176 | D19: 2666.477458 | E19: 3100 | F19: 0.2
A20: Residential - high density | B20: 0.4 | C20: 132 | D20: 7042.945468 | E20: 7750 | F20: 0.44
A21: Residential - low density | B21: 0.4 | C21: 132 | D21: 7042.945468 | E21: 7750 | F21: 0.34
A22: Residential - medium density | B22: 0.4 | C22: 132 | D22: 7042.945468 | E22: 7750 | F22: 0.4
A23: Transportation | B23: 0.43 | C23: 114 | D23: 1410.49119 | E23: 1700 | F23: 0.8
A24: Runoff Treatment Fractions for All Pollutants
B25: Biofiltration | C25: Infiltration (basin, trench, tree trench, vault, bioinfiltration)* | D25: Filter strip | E25: Landscaped roof (green roof) | F25: Permeable pavement | G25: Sand filter | H25: Swale | I25: Wet basin | J25: Wetland | K25: Other
A26: Fraction of annual runoff treated by BMP ---> | B26: 0.9 | C26: 0.9 | D26: 0.9 | E26: 0.9 | F26: 0.9 | G26: 0.9 | H26: 0.9 | I26: 1 | J26: 1 | K26: 0.9
A27: Fraction of annual runoff that is infiltrated ---> | B27: 0 | C27: 0.9 | D27: 0 | E27: 0 | F27: 0.9 | G27: 0 | H27: 0 | I27: 0 | J27: 0 | K27: 0
A28: * Links:
A29: Bioinfiltration
A30: Infiltration basin or trench
A31: Tree trench
A33: ** Source: National Stormwater Quality Database, 2011, Zone 1 data was used
A34: *** Based on the regression: e coli = 0.531 * (fecal coliform)1.06; Source: Cude, 2005
A35: **** Multiple sources

Sheet TMDL Master List
A1: 2020-10-29
C2: TMDL Master List
C3: Municipal Separate Storm Sewer Systems (MS4) Program
C4: Total Maximum Daily Load (TMDL), Wasteload Allocations (WLAs)
A6: This table is for reference only and shows ALL waste load allocations assigned to an MS4 and all flow zones, whether they need to be reported on in this application or not. See 'Applicable WLAs determination' tab for oxygen demand, nitrogen, TSS and TP WLAs that need compliance schedules or documentation to demonstrate that the WLAs are being met.
A7: Permittee name | B7: MS4 Permit # | C7: TMDL project name | D7: Waterbody ID | E7: Waterbody name | F7: WLA type | G7: Numeric WLA | H7: Units | I7: Flow Condition | J7: Percent Reduction | K7: Pollutant | L7: Annual/Daily | M7: MPCA Recommended Baseline year | N7: TMDL Approval Date | O7: Notes
A8: Albert Lea city of | B8: MS400263 | C8: Lower Mississippi River Basin-Fecal Coliform TMDL | D8: 07080202-501 | E8: Shell Rock River | F8: Individual | G8: 2.7 | H8: trillions of organisms/month | I8: Very High | J8: Not Available | K8: Fecal Coliform | L8: Monthly | M8: 1988 | N8: 2006-04-05
A9: Albert Lea city of | B9: MS400263 | C9: Lower Mississippi River Basin-Fecal Coliform TMDL | D9: 07080202-501 | E9: Shell Rock River | F9: Individual | G9: 0.72 | H9: trillions of organisms/month | I9: High | J9: Not Available | K9: Fecal Coliform | L9: Monthly | M9: 1988 | N9: 2006-04-05
A10: Albert Lea city of | B10: MS400263 | C10: Lower Mississippi River Basin-Fecal Coliform TMDL | D10: 07080202-501 | E10: Shell Rock River | F10: Individual | G10: 0.25 | H10: trillions of organisms/month | I10: Mid | J10: Not Available | K10: Fecal Coliform | L10: Monthly | M10: 1988 | N10: 2006-04-05
A11: Albert Lea city of | B11: MS400263 | C11: Lower Mississippi River Basin-Fecal Coliform TMDL | D11: 07080202-501 | E11: Shell Rock River | F11: Individual | G11: ** | H11: trillions of organisms/month | I11: Low | J11: Not Available | K11: Fecal Coliform | L11: Monthly | M11: 1988 | N11: 2006-04-05
A12: Albert Lea city of | B12: MS400263 | C12: Lower Mississippi River Basin-Fecal Coliform TMDL | D12: 07080202-501 | E12: Shell Rock River | F12: Individual | G12: ** | H12: trillions of organisms/month | I12: Very Low | J12: Not Available | K12: Fecal Coliform | L12: Monthly | M12: 1988 | N12: 2006-04-05
A13: Albertville city of | B13: MS400281 | C13: North Fork Crow and Lower Crow Bacteria, Turbidity, and Low DO TMDL | D13: 07010204-502 | E13: Crow River | F13: Individual | G13: 8.3 | H13: billions of organisms/day | I13: Very High | J13: Not Available | K13: E. coli | L13: Daily | M13: 2005 | N13: Original TMDL approved 8/20/2013, modification approved 6/5/19
A14: Albertville city of | B14: MS400281 | C14: North Fork Crow and Lower Crow Bacteria, Turbidity, and Low DO TMDL | D14: 07010204-502 | E14: Crow River | F14: Individual | G14: 4.8 | H14: billions of organisms/day | I14: High | J14: Not Available | K14: E. coli | L14: Daily | M14: 2005 | N14: Original TMDL approved 8/20/2013, modification approved 6/5/19
A15: Albertville city of | B15: MS400281 | C15: North Fork Crow and Lower Crow Bacteria, Turbidity, and Low DO TMDL | D15: 07010204-502 | E15: Crow River | F15: Individual | G15: 2.5 | H15: billions of organisms/day | I15: Mid | J15: Not Available | K15: E. coli | L15: Daily | M15: 2005 | N15: Original TMDL approved 8/20/2013, modification approved 6/5/19
A16: Albertville city of | B16: MS400281 | C16: North Fork Crow and Lower Crow Bacteria, Turbidity, and Low DO TMDL | D16: 07010204-502 | E16: Crow River | F16: Individual | G16: 0.8 | H16: billions of organisms/day | I16: Low | J16: Not Available | K16: E. coli | L16: Daily | M16: 2005 | N16: Original TMDL approved 8/20/2013, modification approved 6/5/19
A17: Albertville city of | B17: MS400281 | C17: North Fork Crow and Lower Crow Bacteria, Turbidity, and Low DO TMDL | D17: 07010204-502 | E17: Crow River | F17: Individual | G17: 0.2 | H17: billions of organisms/day | I17: Very Low | J17: Not Available | K17: E. coli | L17: Daily | M17: 2005 | N17: Original TMDL approved 8/20/2013, modification approved 6/5/19
A18: Albertville city of | B18: MS400281 | C18: North Fork Crow and Lower Crow Bacteria, Turbidity, and Low DO TMDL | D18: 07010204-502 | E18: Crow River | F18: Individual | G18: 1.8 | H18: tons/day | I18: Very High | J18: Not Available | K18: TSS | L18: Daily | M18: 2004 | N18: Original TMDL approved 8/20/2013, modification approved 6/5/19
A19: Albertville city of | B19: MS400281 | C19: North Fork Crow and Lower Crow Bacteria, Turbidity, and Low DO TMDL | D19: 07010204-502 | E19: Crow River | F19: Individual | G19: 0.6 | H19: tons/day | I19: High | J19: Not Available | K19: TSS | L19: Daily | M19: 2004 | N19: Original TMDL approved 8/20/2013, modification approved 6/5/19
A20: Albertville city of | B20: MS400281 | C20: North Fork Crow and Lower Crow Bacteria, Turbidity, and Low DO TMDL | D20: 07010204-502 | E20: Crow River | F20: Individual | G20: 0.2 | H20: tons/day | I20: Mid | J20: Not Available | K20: TSS | L20: Daily | M20: 2004 | N20: Original TMDL approved 8/20/2013, modification approved 6/5/19
A21: Albertville city of | B21: MS400281 | C21: North Fork Crow and Lower Crow Bacteria, Turbidity, and Low DO TMDL | D21: 07010204-502 | E21: Crow River | F21: Individual | G21: 0.1 | H21: tons/day | I21: Low | J21: Not Available | K21: TSS | L21: Daily | M21: 2004 | N21: Original TMDL approved 8/20/2013, modification approved 6/5/19
A22: Albertville city of | B22: MS400281 | C22: North Fork Crow and Lower Crow Bacteria, Turbidity, and Low DO TMDL | D22: 07010204-502 | E22: Crow River | F22: Individual | G22: 0.1 | H22: tons/day | I22: Very Low | J22: Not Available | K22: TSS | L22: Daily | M22: 2004 | N22: Original TMDL approved 8/20/2013, modification approved 6/5/19
A23: Albertville city of | B23: MS400281 | C23: North Fork Crow River WRAPS 2007 | D23: 07010204-542 | E23: Unnamed creek (Regal Creek) | F23: Individual | G23: 19.2 | H23: billions of organisms/day | I23: Very High | J23: 0.01 | K23: E. coli | L23: Daily | M23: 2008 | N23: 2015-04-08
A24: Albertville city of | B24: MS400281 | C24: North Fork Crow River WRAPS 2007 | D24: 07010204-542 | E24: Unnamed creek (Regal Creek) | F24: Individual | G24: 6.7 | H24: billions of organisms/day | I24: High | J24: 0 | K24: E. coli | L24: Daily | M24: 2008 | N24: 2015-04-08
A25: Albertville city of | B25: MS400281 | C25: North Fork Crow River WRAPS 2007 | D25: 07010204-542 | E25: Unnamed creek (Regal Creek) | F25: Individual | G25: 2 | H25: billions of organisms/day | I25: Mid | J25: 0.46 | K25: E. coli | L25: Daily | M25: 2008 | N25: 2015-04-08
A26: Albertville city of | B26: MS400281 | C26: North Fork Crow River WRAPS 2007 | D26: 07010204-542 | E26: Unnamed creek (Regal Creek) | F26: Individual | G26: 0.7 | H26: billions of organisms/day | I26: Low | J26: 0.83 | K26: E. coli | L26: Daily | M26: 2008 | N26: 2015-04-08
A27: Albertville city of | B27: MS400281 | C27: North Fork Crow River WRAPS 2007 | D27: 07010204-542 | E27: Unnamed creek (Regal Creek) | F27: Individual | G27: 0.4 | H27: billions of organisms/day | I27: Very Low | J27: 0.81 | K27: E. coli | L27: Daily | M27: 2008 | N27: 2015-04-08
A28: Albertville city of | B28: MS400281 | C28: Upper Mississippi River Bacteria TMDL | D28: 07010203-528 | E28: Unnamed creek | F28: Categorical | G28: 11.2 | H28: billions of organisms/day | I28: Very High | J28: 0.66 | K28: E. coli | L28: Daily | M28: 2010 | N28: Original TMDL approved 11/20/2014, modification approved 6/5/2019
A29: Albertville city of | B29: MS400281 | C29: Upper Mississippi River Bacteria TMDL | D29: 07010203-528 | E29: Unnamed creek | F29: Categorical | G29: 3.91 | H29: billions of organisms/day | I29: High | J29: 0.54 | K29: E. coli | L29: Daily | M29: 2010 | N29: Original TMDL approved 11/20/2014, modification approved 6/5/2019
A30: Albertville city of | B30: MS400281 | C30: Upper Mississippi River Bacteria TMDL | D30: 07010203-528 | E30: Unnamed creek | F30: Categorical | G30: 1.1 | H30: billions of organisms/day | I30: Mid | J30: 0.64 | K30: E. coli | L30: Daily | M30: 2010 | N30: Original TMDL approved 11/20/2014, modification approved 6/5/2019
A31: Albertville city of | B31: MS400281 | C31: Upper Mississippi River Bacteria TMDL | D31: 07010203-528 | E31: Unnamed creek | F31: Categorical | G31: 0.161 | H31: billions of organisms/day | I31: Low | J31: Insufficient Data | K31: E. coli | L31: Daily | M31: 2010 | N31: Original TMDL approved 11/20/2014, modification approved 6/5/2019
A32: Albertville city of | B32: MS400281 | C32: Upper Mississippi River Bacteria TMDL | D32: 07010203-528 | E32: Unnamed creek | F32: Categorical | G32: ** | H32: billions of organisms/day | I32: Very Low | J32: Insufficient Data | K32: E. coli | L32: Daily | M32: 2010 | N32: Original TMDL approved 11/20/2014, modification approved 6/5/2019
A33: Albertville city of | B33: MS400281 | C33: South Metro Mississippi TSS TMDL | D33: 07040001-531 | E33: Mississippi River | F33: Categorical | G33: 154 | H33: lbs/acre/year | I33: Not Applicable | J33: Not Available | K33: TSS | L33: Annual | M33: Not Applicable | N33: 2016-04-26
A34: Alexandria city of | B34: MS400264 | C34: South Metro Mississippi TSS TMDL | D34: 07040001-531 | E34: Mississippi River | F34: Categorical | G34: 154 | H34: lbs/acre/year | I34: Not Applicable | J34: 0 | K34: TSS | L34: Annual | M34: Not Applicable | N34: 2016-04-26
A35: Andover city of | B35: MS400073 | C35: Coon Creek Watershed District WRAPS 2010 | D35: 07010206-530 | E35: Coon Creek | F35: Categorical | G35: 340.16 | H35: billions of organisms/day | I35: Very High | J35: 0.39 | K35: E. coli | L35: Daily | M35: 2009 | N35: 2016-09-26
A36: Andover city of | B36: MS400073 | C36: Coon Creek Watershed District WRAPS 2010 | D36: 07010206-530 | E36: Coon Creek | F36: Categorical | G36: 167.48 | H36: billions of organisms/day | I36: High | J36: 0.09 | K36: E. coli | L36: Daily | M36: 2009 | N36: 2016-09-26
A37: Andover city of | B37: MS400073 | C37: Coon Creek Watershed District WRAPS 2010 | D37: 07010206-530 | E37: Coon Creek | F37: Categorical | G37: 103.69 | H37: billions of organisms/day | I37: Mid | J37: 0.49 | K37: E. coli | L37: Daily | M37: 2009 | N37: 2016-09-26
A38: Andover city of | B38: MS400073 | C38: Coon Creek Watershed District WRAPS 2010 | D38: 07010206-530 | E38: Coon Creek | F38: Categorical | G38: 69.14 | H38: billions of organisms/day | I38: Low | J38: 0.34 | K38: E. coli | L38: Daily | M38: 2009 | N38: 2016-09-26
A39: Andover city of | B39: MS400073 | C39: Coon Creek Watershed District WRAPS 2010 | D39: 07010206-530 | E39: Coon Creek | F39: Categorical | G39: 44.67 | H39: billions of organisms/day | I39: Very Low | J39: ** | K39: E. coli | L39: Daily | M39: 2009 | N39: 2016-09-26
A40: Andover city of | B40: MS400073 | C40: Coon Creek Watershed District WRAPS 2010 | D40: 07010206-530 | E40: Coon Creek | F40: Categorical | G40: 60.05 | H40: lbs/day | I40: Very high | J40: 0.61 | K40: TP | L40: Daily | M40: 2009 | N40: 2016-09-26
A41: Andover city of | B41: MS400073 | C41: Coon Creek Watershed District WRAPS 2010 | D41: 07010206-530 | E41: Coon Creek | F41: Categorical | G41: 29.41 | H41: lbs/day | I41: High | J41: 0.47 | K41: TP | L41: Daily | M41: 2009 | N41: 2016-09-26
A42: Andover city of | B42: MS400073 | C42: Coon Creek Watershed District WRAPS 2010 | D42: 07010206-530 | E42: Coon Creek | F42: Categorical | G42: 18.33 | H42: lbs/day | I42: Mid | J42: 0.19 | K42: TP | L42: Daily | M42: 2009 | N42: 2016-09-26
A43: Andover city of | B43: MS400073 | C43: Coon Creek Watershed District WRAPS 2010 | D43: 07010206-530 | E43: Coon Creek | F43: Categorical | G43: 11.28 | H43: lbs/day | I43: Low | J43: 0 | K43: TP | L43: Daily | M43: 2009 | N43: 2016-09-26
A44: Andover city of | B44: MS400073 | C44: Coon Creek Watershed District WRAPS 2010 | D44: 07010206-530 | E44: Coon Creek | F44: Categorical | G44: 5.58 | H44: lbs/day | I44: Very Low | J44: 0 | K44: TP | L44: Daily | M44: 2009 | N44: 2016-09-26
A45: Andover city of | B45: MS400073 | C45: Coon Creek Watershed District WRAPS 2010 | D45: 07010206-530 | E45: Coon Creek | F45: Categorical | G45: 8.94 | H45: tons/day | I45: Very High | J45: 0.49 | K45: TSS | L45: Daily | M45: 2009 | N45: 2016-09-26
A46: Andover city of | B46: MS400073 | C46: Coon Creek Watershed District WRAPS 2010 | D46: 07010206-530 | E46: Coon Creek | F46: Categorical | G46: 4.41 | H46: tons/day | I46: High | J46: 0.49 | K46: TSS | L46: Daily | M46: 2009 | N46: 2016-09-26
A47: Andover city of | B47: MS400073 | C47: Coon Creek Watershed District WRAPS 2010 | D47: 07010206-530 | E47: Coon Creek | F47: Categorical | G47: 2.75 | H47: tons/day | I47: Mid | J47: 0.08 | K47: TSS | L47: Daily | M47: 2009 | N47: 2016-09-26
A48: Andover city of | B48: MS400073 | C48: Coon Creek Watershed District WRAPS 2010 | D48: 07010206-530 | E48: Coon Creek | F48: Categorical | G48: 0.96 | H48: tons/day | I48: Low | J48: 0 | K48: TSS | L48: Daily | M48: 2009 | N48: 2016-09-26
A49: Andover city of | B49: MS400073 | C49: Coon Creek Watershed District WRAPS 2010 | D49: 07010206-530 | E49: Coon Creek | F49: Categorical | G49: 0.49 | H49: tons/day | I49: Very Low | J49: 0 | K49: TSS | L49: Daily | M49: 2009 | N49: 2016-09-26
A50: Andover city of | B50: MS400073 | C50: Rum River WRAPS 2013 | D50: 07010207-521 | E50: Cedar Creek | F50: Individual | G50: 25.64 | H50: billions of organisms/day | I50: Very High | J50: 0.58 | K50: E. coli | L50: Daily | M50: 2006 | N50: 2017-09-26 | O50: Overall reduction
A51: Andover city of | B51: MS400073 | C51: Rum River WRAPS 2013 | D51: 07010207-521 | E51: Cedar Creek | F51: Individual | G51: 13.39 | H51: billions of organisms/day | I51: High | J51: 0.58 | K51: E. coli | L51: Daily | M51: 2006 | N51: 2017-09-26 | O51: Overall reduction
A52: Andover city of | B52: MS400073 | C52: Rum River WRAPS 2013 | D52: 07010207-521 | E52: Cedar Creek | F52: Individual | G52: 8.31 | H52: billions of organisms/day | I52: Mid | J52: 0.58 | K52: E. coli | L52: Daily | M52: 2006 | N52: 2017-09-26 | O52: Overall reduction
A53: Andover city of | B53: MS400073 | C53: Rum River WRAPS 2013 | D53: 07010207-521 | E53: Cedar Creek | F53: Individual | G53: 5.83 | H53: billions of organisms/day | I53: Low | J53: 0.58 | K53: E. coli | L53: Daily | M53: 2006 | N53: 2017-09-26 | O53: Overall reduction
A54: Andover city of | B54: MS400073 | C54: Rum River WRAPS 2013 | D54: 07010207-521 | E54: Cedar Creek | F54: Individual | G54: 3.09 | H54: billions of organisms/day | I54: Very Low | J54: 0.58 | K54: E. coli | L54: Daily | M54: 2006 | N54: 2017-09-26 | O54: Overall reduction
A55: Andover city of | B55: MS400073 | C55: South Metro Mississippi TSS TMDL | D55: 07040001-531 | E55: Mississippi River | F55: Categorical | G55: 154 | H55: lbs/acre/year | I55: Not Applicable | J55: 0 | K55: TSS | L55: Annual | M55: Not Applicable | N55: 2016-04-26
A56: Anoka city of | B56: MS400001 | C56: Hardwood Creek Impaired Biota and Dissolved Oxygen TMDL | D56: 07010206-596 | E56: Hardwood Creek | F56: Categorical | G56: 413 | H56: lbs/day | I56: Very High | J56: Not Available | K56: TSS | L56: Daily | M56: 2002 | N56: 2009-06-18
A57: Anoka city of | B57: MS400001 | C57: Hardwood Creek Impaired Biota and Dissolved Oxygen TMDL | D57: 07010206-596 | E57: Hardwood Creek | F57: Categorical | G57: 100 | H57: lbs/day | I57: High | J57: Not Available | K57: TSS | L57: Daily | M57: 2002 | N57: 2009-06-18
A58: Anoka city of | B58: MS400001 | C58: Hardwood Creek Impaired Biota and Dissolved Oxygen TMDL | D58: 07010206-596 | E58: Hardwood Creek | F58: Categorical | G58: 38 | H58: lbs/day | I58: Mid | J58: Not Available | K58: TSS | L58: Daily | M58: 2002 | N58: 2009-06-18
A59: Anoka city of | B59: MS400001 | C59: Hardwood Creek Impaired Biota and Dissolved Oxygen TMDL | D59: 07010206-596 | E59: Hardwood Creek | F59: Categorical | G59: 17 | H59: lbs/day | I59: Low | J59: Not Available | K59: TSS | L59: Daily | M59: 2002 | N59: 2009-06-18
A60: Anoka city of | B60: MS400001 | C60: Hardwood Creek Impaired Biota and Dissolved Oxygen TMDL | D60: 07010206-596 | E60: Hardwood Creek | F60: Categorical | G60: 6 | H60: lbs/day | I60: Very Low | J60: Not Available | K60: TSS | L60: Daily | M60: 2002 | N60: 2009-06-18
A61: Anoka city of | B61: MS400001 | C61: Hardwood Creek Impaired Biota and Dissolved Oxygen TMDL | D61: 07010206-596 | E61: Hardwood Creek | F61: Categorical | G61: 104 | H61: lbs/day | I61: Very High | J61: Not Available | K61: Total Oxygen Demand | L61: Daily | M61: 2002 | N61: 2009-06-18
A62: Anoka city of | B62: MS400001 | C62: Hardwood Creek Impaired Biota and Dissolved Oxygen TMDL | D62: 07010206-596 | E62: Hardwood Creek | F62: Categorical | G62: 25 | H62: lbs/day | I62: High | J62: Not Available | K62: Total Oxygen Demand | L62: Daily | M62: 2002 | N62: 2009-06-18
A63: Anoka city of | B63: MS400001 | C63: Hardwood Creek Impaired Biota and Dissolved Oxygen TMDL | D63: 07010206-596 | E63: Hardwood Creek | F63: Categorical | G63: 10 | H63: lbs/day | I63: Mid | J63: Not Available | K63: Total Oxygen Demand | L63: Daily | M63: 2002 | N63: 2009-06-18
A64: Anoka city of | B64: MS400001 | C64: Hardwood Creek Impaired Biota and Dissolved Oxygen TMDL | D64: 07010206-596 | E64: Hardwood Creek | F64: Categorical | G64: 5 | H64: lbs/day | I64: Low | J64: Not Available | K64: Total Oxygen Demand | L64: Daily | M64: 2002 | N64: 2009-06-18
A65: Anoka city of | B65: MS400001 | C65: Hardwood Creek Impaired Biota and Dissolved Oxygen TMDL | D65: 07010206-596 | E65: Hardwood Creek | F65: Categorical | G65: 2 | H65: lbs/day | I65: Very Low | J65: Not Available | K65: Total Oxygen Demand | L65: Daily | M65: 2002 | N65: 2009-06-18
A66: Anoka city of | B66: MS400001 | C66: Rum River WRAPS 2013 | D66: 07010207-680 | E66: Trott Brook | F66: Individual | G66: 1 | H66: lbs/day | I66: Not Applicable | J66: 0.5 | K66: Total Oxygen Demand | L66: Daily | M66: 2006 | N66: 2017-09-26
A67: Anoka city of | B67: MS400001 | C67: South Metro Mississippi TSS TMDL | D67: 07040001-531 | E67: Mississippi River | F67: Categorical | G67: 154 | H67: lbs/acre/year | I67: Not Applicable | J67: 0 | K67: TSS | L67: Annual | M67: Not Applicable | N67: 2016-04-26
A68: Anoka county of | B68: MS400066 | C68: Coon Creek Watershed District WRAPS 2010 | D68: 07010206-530 | E68: Coon Creek | F68: Individual | G68: 9.9 | H68: billions of organisms/day | I68: Very High | J68: 0.39 | K68: E. coli | L68: Daily | M68: 2009 | N68: 2016-09-26
A69: Anoka county of | B69: MS400066 | C69: Coon Creek Watershed District WRAPS 2010 | D69: 07010206-530 | E69: Coon Creek | F69: Individual | G69: 4.87 | H69: billions of organisms/day | I69: High | J69: 0.09 | K69: E. coli | L69: Daily | M69: 2009 | N69: 2016-09-26
A70: Anoka county of | B70: MS400066 | C70: Coon Creek Watershed District WRAPS 2010 | D70: 07010206-530 | E70: Coon Creek | F70: Individual | G70: 3.02 | H70: billions of organisms/day | I70: Mid | J70: 0.49 | K70: E. coli | L70: Daily | M70: 2009 | N70: 2016-09-26
A71: Anoka county of | B71: MS400066 | C71: Coon Creek Watershed District WRAPS 2010 | D71: 07010206-530 | E71: Coon Creek | F71: Individual | G71: 2.01 | H71: billions of organisms/day | I71: Low | J71: 0.34 | K71: E. coli | L71: Daily | M71: 2009 | N71: 2016-09-26
A72: Anoka county of | B72: MS400066 | C72: Coon Creek Watershed District WRAPS 2010 | D72: 07010206-530 | E72: Coon Creek | F72: Individual | G72: 1.3 | H72: billions of organisms/day | I72: Very Low | J72: Not Available | K72: E. coli | L72: Daily | M72: 2009 | N72: 2016-09-26
A73: Anoka county of | B73: MS400066 | C73: Coon Creek Watershed District WRAPS 2010 | D73: 07010206-530 | E73: Coon Creek | F73: Individual | G73: 1.75 | H73: lbs/day | I73: Very High | J73: 0.61 | K73: TP | L73: Daily | M73: 2009 | N73: 2016-09-26
A74: Anoka county of | B74: MS400066 | C74: Coon Creek Watershed District WRAPS 2010 | D74: 07010206-530 | E74: Coon Creek | F74: Individual | G74: 0.86 | H74: lbs/day | I74: High | J74: 0.47 | K74: TP | L74: Daily | M74: 2009 | N74: 2016-09-26
A75: Anoka county of | B75: MS400066 | C75: Coon Creek Watershed District WRAPS 2010 | D75: 07010206-530 | E75: Coon Creek | F75: Individual | G75: 0.53 | H75: lbs/day | I75: Mid | J75: 0.19 | K75: TP | L75: Daily | M75: 2009 | N75: 2016-09-26
A76: Anoka county of | B76: MS400066 | C76: Coon Creek Watershed District WRAPS 2010 | D76: 07010206-530 | E76: Coon Creek | F76: Individual | G76: 0.33 | H76: lbs/day | I76: Low | J76: 0 | K76: TP | L76: Daily | M76: 2009 | N76: 2016-09-26
A77: Anoka county of | B77: MS400066 | C77: Coon Creek Watershed District WRAPS 2010 | D77: 07010206-530 | E77: Coon Creek | F77: Individual | G77: 0.16 | H77: lbs/day | I77: Very Low | J77: 0 | K77: TP | L77: Daily | M77: 2009 | N77: 2016-09-26
A78: Anoka county of | B78: MS400066 | C78: Coon Creek Watershed District WRAPS 2010 | D78: 07010206-530 | E78: Coon Creek | F78: Individual | G78: 0.26 | H78: tons/day | I78: Very High | J78: 0.49 | K78: TSS | L78: Daily | M78: 2009 | N78: 2016-09-26
A79: Anoka county of | B79: MS400066 | C79: Coon Creek Watershed District WRAPS 2010 | D79: 07010206-530 | E79: Coon Creek | F79: Individual | G79: 0.13 | H79: tons/day | I79: High | J79: 0.49 | K79: TSS | L79: Daily | M79: 2009 | N79: 2016-09-26
A80: Anoka county of | B80: MS400066 | C80: Coon Creek Watershed District WRAPS 2010 | D80: 07010206-530 | E80: Coon Creek | F80: Individual | G80: 0.08 | H80: tons/day | I80: Mid | J80: 0.08 | K80: TSS | L80: Daily | M80: 2009 | N80: 2016-09-26
A81: Anoka county of | B81: MS400066 | C81: Coon Creek Watershed District WRAPS 2010 | D81: 07010206-530 | E81: Coon Creek | F81: Individual | G81: 0.03 | H81: tons/day | I81: Low | J81: 0 | K81: TSS | L81: Daily | M81: 2009 | N81: 2016-09-26
A82: Anoka county of | B82: MS400066 | C82: Coon Creek Watershed District WRAPS 2010 | D82: 07010206-530 | E82: Coon Creek | F82: Individual | G82: 0.01 | H82: tons/day | I82: Very Low | J82: 0 | K82: TSS | L82: Daily | M82: 2009 | N82: 2016-09-26
A83: Anoka county of | B83: MS400066 | C83: Coon Creek Watershed District WRAPS 2010 | D83: 07010206-557 | E83: County Ditch 17 | F83: Individual | G83: 1.94 | H83: billions of organisms/day | I83: Very High | J83: 0.58 | K83: E. coli | L83: Daily | M83: 2012 | N83: 2016-09-26
A84: Anoka county of | B84: MS400066 | C84: Coon Creek Watershed District WRAPS 2010 | D84: 07010206-557 | E84: County Ditch 17 | F84: Individual | G84: 1.29 | H84: billions of organisms/day | I84: High | J84: 0.55 | K84: E. coli | L84: Daily | M84: 2012 | N84: 2016-09-26
A85: Anoka county of | B85: MS400066 | C85: Coon Creek Watershed District WRAPS 2010 | D85: 07010206-557 | E85: County Ditch 17 | F85: Individual | G85: 0.97 | H85: billions of organisms/day | I85: Mid | J85: 0.65 | K85: E. coli | L85: Daily | M85: 2012 | N85: 2016-09-26
A86: Anoka county of | B86: MS400066 | C86: Coon Creek Watershed District WRAPS 2010 | D86: 07010206-557 | E86: County Ditch 17 | F86: Individual | G86: 0.77 | H86: billions of organisms/day | I86: Low | J86: 0.15 | K86: E. coli | L86: Daily | M86: 2012 | N86: 2016-09-26
A87: Anoka county of | B87: MS400066 | C87: Coon Creek Watershed District WRAPS 2010 | D87: 07010206-557 | E87: County Ditch 17 | F87: Individual | G87: 0.52 | H87: billions of organisms/day | I87: Very Low | J87: 0.26 | K87: E. coli | L87: Daily | M87: 2012 | N87: 2016-09-26
A88: Anoka county of | B88: MS400066 | C88: Coon Creek Watershed District WRAPS 2010 | D88: 07010206-557 | E88: County Ditch 17 | F88: Individual | G88: 0.34 | H88: lbs/day | I88: Very High | J88: Not Available | K88: TP | L88: Daily | M88: 2012 | N88: 2016-09-26
A89: Anoka county of | B89: MS400066 | C89: Coon Creek Watershed District WRAPS 2010 | D89: 07010206-557 | E89: County Ditch 17 | F89: Individual | G89: 0.23 | H89: lbs/day | I89: High | J89: 0.06 | K89: TP | L89: Daily | M89: 2012 | N89: 2016-09-26
A90: Anoka county of | B90: MS400066 | C90: Coon Creek Watershed District WRAPS 2010 | D90: 07010206-557 | E90: County Ditch 17 | F90: Individual | G90: 0.17 | H90: lbs/day | I90: Mid | J90: 0.35 | K90: TP | L90: Daily | M90: 2012 | N90: 2016-09-26
A91: Anoka county of | B91: MS400066 | C91: Coon Creek Watershed District WRAPS 2010 | D91: 07010206-557 | E91: County Ditch 17 | F91: Individual | G91: 0.13 | H91: lbs/day | I91: Low | J91: 0.23 | K91: TP | L91: Daily | M91: 2012 | N91: 2016-09-26
A92: Anoka county of | B92: MS400066 | C92: Coon Creek Watershed District WRAPS 2010 | D92: 07010206-557 | E92: County Ditch 17 | F92: Individual | G92: 0.08 | H92: lbs/day | I92: Very Low | J92: 0 | K92: TP | L92: Daily | M92: 2012 | N92: 2016-09-26
A93: Anoka county of | B93: MS400066 | C93: Coon Creek Watershed District WRAPS 2010 | D93: 07010206-558 | E93: Sand Creek | F93: Individual | G93: 3.78 | H93: billions of organisms/day | I93: Very High | J93: 0 | K93: E. coli | L93: Daily | M93: 2010 | N93: 2016-09-26
A94: Anoka county of | B94: MS400066 | C94: Coon Creek Watershed District WRAPS 2010 | D94: 07010206-558 | E94: Sand Creek | F94: Individual | G94: 4.43 | H94: billions of organisms/day | I94: High | J94: 0.77 | K94: E. coli | L94: Daily | M94: 2010 | N94: 2016-09-27
A95: Anoka county of | B95: MS400066 | C95: Coon Creek Watershed District WRAPS 2010 | D95: 07010206-558 | E95: Sand Creek | F95: Individual | G95: 2.8 | H95: billions of organisms/day | I95: Mid | J95: ** | K95: E. coli | L95: Daily | M95: 2010 | N95: 2016-09-28
A96: Anoka county of | B96: MS400066 | C96: Coon Creek Watershed District WRAPS 2010 | D96: 07010206-558 | E96: Sand Creek | F96: Individual | G96: 1.7 | H96: billions of organisms/day | I96: Low | J96: 0.61 | K96: E. coli | L96: Daily | M96: 2010 | N96: 2016-09-29
A97: Anoka county of | B97: MS400066 | C97: Coon Creek Watershed District WRAPS 2010 | D97: 07010206-558 | E97: Sand Creek | F97: Individual | G97: 0.5 | H97: billions of organisms/day | I97: Very Low | J97: 0.89 | K97: E. coli | L97: Daily | M97: 2010 | N97: 2016-09-30
A98: Anoka county of | B98: MS400066 | C98: Coon Creek Watershed District WRAPS 2010 | D98: 07010206-558 | E98: Sand Creek | F98: Individual | G98: 1.36 | H98: lbs/day | I98: Very High | J98: 0.33 | K98: TP | L98: Daily | M98: 2010 | N98: 2016-09-26
A99: Anoka county of | B99: MS400066 | C99: Coon Creek Watershed District WRAPS 2010 | D99: 07010206-558 | E99: Sand Creek | F99: Individual | G99: 0.66 | H99: lbs/day | I99: High | J99: 0 | K99: TP | L99: Daily | M99: 2010 | N99: 2016-09-27
A100: Anoka county of | B100: MS400066 | C100: Coon Creek Watershed District WRAPS 2010 | D100: 07010206-558 | E100: Sand Creek | F100: Individual | G100: 0.37 | H100: lbs/day | I100: Mid | J100: 0 | K100: TP | L100: Daily | M100: 2010 | N100: 2016-09-28
A101: Anoka county of | B101: MS400066 | C101: Coon Creek Watershed District WRAPS 2010 | D101: 07010206-558 | E101: Sand Creek | F101: Individual | G101: 0.21 | H101: lbs/day | I101: Low | J101: 0 | K101: TP | L101: Daily | M101: 2010 | N101: 2016-09-29
A102: Anoka county of | B102: MS400066 | C102: Coon Creek Watershed District WRAPS 2010 | D102: 07010206-558 | E102: Sand Creek | F102: Individual | G102: 0.06 | H102: lbs/day | I102: Very Low | J102: 0 | K102: TP | L102: Daily | M102: 2010 | N102: 2016-09-30
A103: Anoka county of | B103: MS400066 | C103: Coon Creek Watershed District WRAPS 2010 | D103: 07010206-558 | E103: Sand Creek | F103: Individual | G103: 0.2 | H103: tons/day | I103: Very High | J103: 0.1 | K103: TSS | L103: Daily | M103: 2010 | N103: 2016-09-26
A104: Anoka county of | B104: MS400066 | C104: Coon Creek Watershed District WRAPS 2010 | D104: 07010206-558 | E104: Sand Creek | F104: Individual | G104: 0.07 | H104: tons/day | I104: High | J104: 0 | K104: TSS | L104: Daily | M104: 2010 | N104: 2016-09-27
A105: Anoka county of | B105: MS400066 | C105: Coon Creek Watershed District WRAPS 2010 | D105: 07010206-558 | E105: Sand Creek | F105: Individual | G105: 0.01 | H105: tons/day | I105: Mid | J105: 0 | K105: TSS | L105: Daily | M105: 2010 | N105: 2016-09-28
A106: Anoka county of | B106: MS400066 | C106: Coon Creek Watershed District WRAPS 2010 | D106: 07010206-558 | E106: Sand Creek | F106: Individual | G106: 0.02 | H106: tons/day | I106: Low | J106: 0 | K106: TSS | L106: Daily | M106: 2010 | N106: 2016-09-29
A107: Anoka county of | B107: MS400066 | C107: Coon Creek Watershed District WRAPS 2010 | D107: 07010206-558 | E107: Sand Creek | F107: Individual | G107: 0.004 | H107: tons/day | I107: Very Low | J107: 0 | K107: TSS | L107: Daily | M107: 2010 | N107: 2016-09-30
A108: Anoka county of | B108: MS400066 | C108: Coon Creek Watershed District WRAPS 2010 | D108: 07010206-594 | E108: Unnamed ditch | F108: Individual | G108: 0.8 | H108: billions of organisms/day | I108: Very High | J108: 0.48 | K108: E. coli | L108: Daily | M108: 2012 | N108: 2016-09-26
A109: Anoka county of | B109: MS400066 | C109: Coon Creek Watershed District WRAPS 2010 | D109: 07010206-594 | E109: Unnamed ditch | F109: Individual | G109: 0.53 | H109: billions of organisms/day | I109: High | J109: 0.53 | K109: E. coli | L109: Daily | M109: 2012 | N109: 2016-09-26
A110: Anoka county of | B110: MS400066 | C110: Coon Creek Watershed District WRAPS 2010 | D110: 07010206-594 | E110: Unnamed ditch | F110: Individual | G110: 0.4 | H110: billions of organisms/day | I110: Mid | J110: 0.54 | K110: E. coli | L110: Daily | M110: 2012 | N110: 2016-09-26
A111: Anoka county of | B111: MS400066 | C111: Coon Creek Watershed District WRAPS 2010 | D111: 07010206-594 | E111: Unnamed ditch | F111: Individual | G111: 0.32 | H111: billions of organisms/day | I111: Low | J111: 0.52 | K111: E. coli | L111: Daily | M111: 2012 | N111: 2016-09-26
A112: Anoka county of | B112: MS400066 | C112: Coon Creek Watershed District WRAPS 2010 | D112: 07010206-594 | E112: Unnamed ditch | F112: Individual | G112: 0.21 | H112: billions of organisms/day | I112: Very Low | J112: 0.53 | K112: E. coli | L112: Daily | M112: 2012 | N112: 2016-09-26
A113: Anoka county of | B113: MS400066 | C113: Coon Creek Watershed District WRAPS 2010 | D113: 07010206-594 | E113: Unnamed ditch | F113: Individual | G113: 0.14 | H113: lbs/day | I113: Very High | J113: 0.09 | K113: TP | L113: Daily | M113: 2012 | N113: 2016-09-26
A114: Anoka county of | B114: MS400066 | C114: Coon Creek Watershed District WRAPS 2010 | D114: 07010206-594 | E114: Unnamed ditch | F114: Individual | G114: 0.05 | H114: lbs/day | I114: High | J114: 0 | K114: TP | L114: Daily | M114: 2012 | N114: 2016-09-26
A115: Anoka county of | B115: MS400066 | C115: Coon Creek Watershed District WRAPS 2010 | D115: 07010206-594 | E115: Unnamed ditch | F115: Individual | G115: 0.06 | H115: lbs/day | I115: Mid | J115: 0 | K115: TP | L115: Daily | M115: 2012 | N115: 2016-09-26
A116: Anoka county of | B116: MS400066 | C116: Coon Creek Watershed District WRAPS 2010 | D116: 07010206-594 | E116: Unnamed ditch | F116: Individual | G116: 0.04 | H116: lbs/day | I116: Low | J116: 0 | K116: TP | L116: Daily | M116: 2012 | N116: 2016-09-26
A117: Anoka county of | B117: MS400066 | C117: Coon Creek Watershed District WRAPS 2010 | D117: 07010206-594 | E117: Unnamed ditch | F117: Individual | G117: 0.03 | H117: lbs/day | I117: Very Low | J117: 0 | K117: TP | L117: Daily | M117: 2012 | N117: 2016-09-26
A118: Anoka county of | B118: MS400066 | C118: Coon Creek Watershed District WRAPS 2010 | D118: 07010206-594 | E118: Unnamed ditch | F118: Individual | G118: 0.02 | H118: tons/day | I118: Very High | J118: 0.56 | K118: TSS | L118: Daily | M118: 2012 | N118: 2016-09-26
A119: Anoka county of | B119: MS400066 | C119: Coon Creek Watershed District WRAPS 2010 | D119: 07010206-594 | E119: Unnamed ditch | F119: Individual | G119: 0.01 | H119: tons/day | I119: High | J119: 0 | K119: TSS | L119: Daily | M119: 2012 | N119: 2016-09-26
A120: Anoka county of | B120: MS400066 | C120: Coon Creek Watershed District WRAPS 2010 | D120: 07010206-594 | E120: Unnamed ditch | F120: Individual | G120: 0.01 | H120: tons/day | I120: Mid | J120: 0.25 | K120: TSS | L120: Daily | M120: 2012 | N120: 2016-09-26
A121: Anoka county of | B121: MS400066 | C121: Coon Creek Watershed District WRAPS 2010 | D121: 07010206-594 | E121: Unnamed ditch | F121: Individual | G121: 0.003 | H121: tons/day | I121: Low | J121: 0 | K121: TSS | L121: Daily | M121: 2012 | N121: 2016-09-26
A122: Anoka county of | B122: MS400066 | C122: Coon Creek Watershed District WRAPS 2010 | D122: 07010206-594 | E122: Unnamed ditch | F122: Individual | G122: 0.004 | H122: tons/day | I122: Very Low | J122: 0 | K122: TSS | L122: Daily | M122: 2012 | N122: 2016-09-26
A123: Anoka county of | B123: MS400066 | C123: Golden Lake TMDL | D123: 02-0045-00 | E123: Golden | F123: Individual | G123: 3.8 | H123: lbs/yr | I123: Not Applicable | J123: Not Available | K123: TP | L123: Annual | M123: 2004 | N123: 2009-09-30
A124: Anoka county of | B124: MS400066 | C124: Golden Lake TMDL | D124: 02-0045-00 | E124: Golden | F124: Individual | G124: 0.01 | H124: lbs/day | I124: Not Applicable | J124: Not Available | K124: TP | L124: Daily | M124: 2004 | N124: 2009-09-30
A125: Anoka county of | B125: MS400066 | C125: Hardwood Creek Impaired Biota and Dissolved Oxygen TMDL | D125: 07010206-596 | E125: Hardwood Creek | F125: Categorical | G125: 413 | H125: lbs/day | I125: Very High | J125: Not Available | K125: TSS | L125: Daily | M125: 2002 | N125: 2009-06-18
A126: Anoka county of | B126: MS400066 | C126: Hardwood Creek Impaired Biota and Dissolved Oxygen TMDL | D126: 07010206-596 | E126: Hardwood Creek | F126: Categorical | G126: 100 | H126: lbs/day | I126: High | J126: Not Available | K126: TSS | L126: Daily | M126: 2002 | N126: 2009-06-18
A127: Anoka county of | B127: MS400066 | C127: Hardwood Creek Impaired Biota and Dissolved Oxygen TMDL | D127: 07010206-596 | E127: Hardwood Creek | F127: Categorical | G127: 38 | H127: lbs/day | I127: Mid | J127: Not Available | K127: TSS | L127: Daily | M127: 2002 | N127: 2009-06-18
A128: Anoka county of | B128: MS400066 | C128: Hardwood Creek Impaired Biota and Dissolved Oxygen TMDL | D128: 07010206-596 | E128: Hardwood Creek | F128: Categorical | G128: 17 | H128: lbs/day | I128: Low | J128: Not Available | K128: TSS | L128: Daily | M128: 2002 | N128: 2009-06-18
A129: Anoka county of | B129: MS400066 | C129: Hardwood Creek Impaired Biota and Dissolved Oxygen TMDL | D129: 07010206-596 | E129: Hardwood Creek | F129: Categorical | G129: 6 | H129: lbs/day | I129: Very Low | J129: Not Available | K129: TSS | L129: Daily | M129: 2002 | N129: 2009-06-18
A130: Anoka county of | B130: MS400066 | C130: Hardwood Creek Impaired Biota and Dissolved Oxygen TMDL | D130: 07010206-596 | E130: Hardwood Creek | F130: Categorical | G130: 104 | H130: lbs/day | I130: Very High | J130: Not Available | K130: Total Oxygen Demand | L130: Daily | M130: 2002 | N130: 2009-06-18
A131: Anoka county of | B131: MS400066 | C131: Hardwood Creek Impaired Biota and Dissolved Oxygen TMDL | D131: 07010206-596 | E131: Hardwood Creek | F131: Categorical | G131: 25 | H131: lbs/day | I131: High | J131: Not Available | K131: Total Oxygen Demand | L131: Daily | M131: 2002 | N131: 2009-06-18
A132: Anoka county of | B132: MS400066 | C132: Hardwood Creek Impaired Biota and Dissolved Oxygen TMDL | D132: 07010206-596 | E132: Hardwood Creek | F132: Categorical | G132: 10 | H132: lbs/day | I132: Mid | J132: Not Available | K132: Total Oxygen Demand | L132: Daily | M132: 2002 | N132: 2009-06-18
A133: Anoka county of | B133: MS400066 | C133: Hardwood Creek Impaired Biota and Dissolved Oxygen TMDL | D133: 07010206-596 | E133: Hardwood Creek | F133: Categorical | G133: 5 | H133: lbs/day | I133: Low | J133: Not Available | K133: Total Oxygen Demand | L133: Daily | M133: 2002 | N133: 2009-06-18
A134: Anoka county of | B134: MS400066 | C134: Hardwood Creek Impaired Biota and Dissolved Oxygen TMDL | D134: 07010206-596 | E134: Hardwood Creek | F134: Categorical | G134: 2 | H134: lbs/day | I134: Very Low | J134: Not Available | K134: Total Oxygen Demand | L134: Daily | M134: 2002 | N134: 2009-06-18
A135: Anoka county of | B135: MS400066 | C135: Lino Lakes Chain (Metro) | D135: 02-0005-00 | E135: George Watch | F135: Categorical | G135: 0.42 | H135: lbs/day | I135: Not Applicable | J135: 0 | K135: TP | L135: Daily | M135: 2003 | N135: 2013-09-27
A136: Anoka county of | B136: MS400066 | C136: Lino Lakes Chain (Metro) | D136: 02-0007-00 | E136: Marshan | F136: Categorical | G136: 1.54 | H136: lbs/day | I136: Not Applicable | J136: 0 | K136: TP | L136: Daily | M136: 2003 | N136: 2013-09-27
A137: Anoka county of | B137: MS400066 | C137: Lino Lakes Chain (Metro) | D137: 02-0008-00 | E137: Rice | F137: Categorical | G137: 1.21 | H137: lbs/day | I137: Not Applicable | J137: 0 | K137: TP | L137: Daily | M137: 2003 | N137: 2013-09-27
A138: Anoka county of | B138: MS400066 | C138: Lino Lakes Chain (Metro) | D138: 02-0009-00 | E138: Reshanau | F138: Categorical | G138: 0.03 | H138: lbs/day | I138: Not Applicable | J138: 0 | K138: TP | L138: Daily | M138: 2003 | N138: 2013-09-27
A139: Anoka county of | B139: MS400066 | C139: Lino Lakes Chain (Metro) | D139: 02-0013-00 | E139: Baldwin | F139: Categorical | G139: 0.22 | H139: lbs/day | I139: Not Applicable | J139: 0 | K139: TP | L139: Daily | M139: 2003 | N139: 2013-09-27
A140: Anoka county of | B140: MS400066 | C140: Peltier/Centerville Lake Nutrient Impairment TMDL | D140: 02-0004-00 | E140: Peltier | F140: Categorical | G140: 583 | H140: lbs/growing season (see notes) | I140: Not Applicable | J140: 0.618 | K140: TP | L140: Annual | M140: 2001 | N140: 2013-11-25 | O140: TMDL based on June through September growing season (122 days)
A141: Anoka county of | B141: MS400066 | C141: Peltier/Centerville Lake Nutrient Impairment TMDL | D141: 02-0004-00 | E141: Peltier | F141: Categorical | G141: 4.78 | H141: lbs/day (see notes) | I141: Not Applicable | J141: 0.6176 | K141: TP | L141: Daily | M141: 2001 | N141: 2013-11-25 | O141: TMDL based on June through September growing season (122 days)
A142: Anoka county of | B142: MS400066 | C142: Peltier/Centerville Lake Nutrient Impairment TMDL | D142: 02-0006-00 | E142: Centerville | F142: Categorical | G142: 26 | H142: lbs/growing season (see notes) | I142: Not Applicable | J142: 0 | K142: TP | L142: Annual | M142: 2001 | N142: 2013-11-25 | O142: TMDL based on June through September growing season (122 days)
A143: Anoka county of | B143: MS400066 | C143: Peltier/Centerville Lake Nutrient Impairment TMDL | D143: 02-0006-00 | E143: Centerville | F143: Categorical | G143: 0.21 | H143: lbs/day (see notes) | I143: Not Applicable | J143: 0 | K143: TP | L143: Daily | M143: 2001 | N143: 2013-11-25 | O143: TMDL based on June through September growing season (122 days)
A144: Anoka county of | B144: MS400066 | C144: Rice Creek Watershed District Southwest Urban Lakes - Excess Nutrients TMDL | D144: 02-0075-01 | E144: East Moore | F144: Categorical | G144: 97.5 | H144: kg/yr | I144: Not Applicable | J144: 0.2574 | K144: TP | L144: Annual | M144: 2003 | N144: 2015-02-26
A145: Anoka county of | B145: MS400066 | C145: Rice Creek Watershed District Southwest Urban Lakes - Excess Nutrients TMDL | D145: 02-0075-01 | E145: East Moore | F145: Categorical | G145: 0.267 | H145: kg/day | I145: Not Applicable | J145: 0.2574 | K145: TP | L145: Daily | M145: 2003 | N145: 2015-02-26
A146: Anoka county of | B146: MS400066 | C146: Rice Creek Watershed District Southwest Urban Lakes - Excess Nutrients TMDL | D146: 62-0069-00 | E146: Pike | F146: Categorical | G146: 371.1 | H146: kg/yr | I146: Not Applicable | J146: 0.4588 | K146: TP | L146: Annual | M146: 2003 | N146: 2015-02-26
A147: Anoka county of | B147: MS400066 | C147: Rice Creek Watershed District Southwest Urban Lakes - Excess Nutrients TMDL | D147: 62-0069-00 | E147: Pike | F147: Categorical | G147: 1.016 | H147: kg/day | I147: Not Applicable | J147: 0.4588 | K147: TP | L147: Daily | M147: 2003 | N147: 2015-02-26
A148: Anoka county of | B148: MS400066 | C148: Rum River WRAPS 2013 | D148: 07010207-521 | E148: Cedar Creek | F148: Individual | G148: 0.1 | H148: billions of organisms/day | I148: Very High | J148: 0.58 | K148: E. coli | L148: Daily | M148: 2006 | N148: 2017-09-26 | O148: Overall reduction
A149: Anoka county of | B149: MS400066 | C149: Rum River WRAPS 2013 | D149: 07010207-521 | E149: Cedar Creek | F149: Individual | G149: 0.05 | H149: billions of organisms/day | I149: High | J149: 0.58 | K149: E. coli | L149: Daily | M149: 2006 | N149: 2017-09-26 | O149: Overall reduction
A150: Anoka county of | B150: MS400066 | C150: Rum River WRAPS 2013 | D150: 07010207-521 | E150: Cedar Creek | F150: Individual | G150: 0.03 | H150: billions of organisms/day | I150: Mid | J150: 0.58 | K150: E. coli | L150: Daily | M150: 2006 | N150: 2017-09-26 | O150: Overall reduction
A151: Anoka county of | B151: MS400066 | C151: Rum River WRAPS 2013 | D151: 07010207-521 | E151: Cedar Creek | F151: Individual | G151: 0.02 | H151: billions of organisms/day | I151: Low | J151: 0.58 | K151: E. coli | L151: Daily | M151: 2006 | N151: 2017-09-26 | O151: Overall reduction
A152: Anoka county of | B152: MS400066 | C152: Rum River WRAPS 2013 | D152: 07010207-521 | E152: Cedar Creek | F152: Individual | G152: 0.01 | H152: billions of organisms/day | I152: Very Low | J152: 0.58 | K152: E. coli | L152: Daily | M152: 2006 | N152: 2017-09-26 | O152: Overall reduction
A153: Anoka county of | B153: MS400066 | C153: Silver (West) Lake (Metro) | D153: 62-0083-00 | E153: Silver | F153: Categorical | G153: 201 | H153: lbs/yr | I153: Not Applicable | J153: 0.166 | K153: TP | L153: Annual | M153: 2002 | N153: 2010-07-29
A154: Anoka county of | B154: MS400066 | C154: Silver (West) Lake (Metro) | D154: 62-0083-00 | E154: Silver | F154: Categorical | G154: 0.55 | H154: lbs/day | I154: Not Applicable | J154: 0.166 | K154: TP | L154: Daily | M154: 2002 | N154: 2010-07-29
A155: Anoka county of | B155: MS400066 | C155: South Metro Mississippi TSS TMDL | D155: 07040001-531 | E155: Mississippi River | F155: Categorical | G155: 154 | H155: lbs/acre/year | I155: Not Applicable | J155: 0 | K155: TSS | L155: Annual | M155: Not Applicable | N155: 2016-04-26
A156: Anoka county of | B156: MS400066 | C156: Twin Cities Metro Area Chloride TMDL and Management Plan | D156: 62-0067-02 | E156: South Long | F156: Categorical | G156: 21534261 | H156: lbs/yr | I156: Not Applicable | J156: Not Available | K156: Chloride | L156: Annual | M156: Not Applicable | N156: 2016-06-09
A157: Anoka county of | B157: MS400066 | C157: Twin Cities Metro Area Chloride TMDL and Management Plan | D157: 62-0067-02 | E157: South Long | F157: Categorical | G157: 58998 | H157: lbs/day | I157: Not Applicable | J157: Not Available | K157: Chloride | L157: Daily | M157: Not Applicable | N157: 2016-06-09
A158: Anoka county of | B158: MS400066 | C158: Twin Cities Metro Area Chloride TMDL and Management Plan | D158: 62-0069-00 | E158: Pike | F158: Categorical | G158: 2943971 | H158: lbs/yr | I158: Not Applicable | J158: Not Available | K158: Chloride | L158: Annual | M158: Not Applicable | N158: 2016-06-09
A159: Anoka county of | B159: MS400066 | C159: Twin Cities Metro Area Chloride TMDL and Management Plan | D159: 62-0069-00 | E159: Pike | F159: Categorical | G159: 8066 | H159: lbs/day | I159: Not Applicable | J159: Not Available | K159: Chloride | L159: Daily | M159: Not Applicable | N159: 2016-06-09
A160: Anoka county of | B160: MS400066 | C160: Twin Cities Metro Area Chloride TMDL and Management Plan | D160: 62-0083-00 | E160: Silver | F160: Categorical | G160: 303409 | H160: lbs/yr | I160: Not Applicable | J160: Not Available | K160: Chloride | L160: Annual | M160: Not Applicable | N160: 2016-06-09
A161: Anoka county of | B161: MS400066 | C161: Twin Cities Metro Area Chloride TMDL and Management Plan | D161: 62-0083-00 | E161: Silver | F161: Categorical | G161: 831 | H161: lbs/day | I161: Not Applicable | J161: Not Available | K161: Chloride | L161: Daily | M161: Not Applicable | N161: 2016-06-09
A162: Anoka county of | B162: MS400066 | C162: Upper Mississippi River Bacteria TMDL | D162: 07010206-584 | E162: Rice Creek | F162: Categorical | G162: 396 | H162: billions of organisms/day | I162: Very High | J162: 0 | K162: E. coli | L162: Daily | M162: 2010 | N162: Original TMDL approved 11/20/2014, modification approved 6/5/2019
A163: Anoka county of | B163: MS400066 | C163: Upper Mississippi River Bacteria TMDL | D163: 07010206-584 | E163: Rice Creek | F163: Categorical | G163: 96.8 | H163: billions of organisms/day | I163: High | J163: 0.048 | K163: E. coli | L163: Daily | M163: 2010 | N163: Original TMDL approved 11/20/2014, modification approved 6/5/2019
A164: Anoka county of | B164: MS400066 | C164: Upper Mississippi River Bacteria TMDL | D164: 07010206-584 | E164: Rice Creek | F164: Categorical | G164: 23.6 | H164: billions of organisms/day | I164: Mid | J164: 0.44 | K164: E. coli | L164: Daily | M164: 2010 | N164: Original TMDL approved 11/20/2014, modification approved 6/5/2019
A165: Anoka county of | B165: MS400066 | C165: Upper Mississippi River Bacteria TMDL | D165: 07010206-584 | E165: Rice Creek | F165: Categorical | G165: 4.93 | H165: billions of organisms/day | I165: Low | J165: Insufficient Data | K165: E. coli | L165: Daily | M165: 2010 | N165: Original TMDL approved 11/20/2014, modification approved 6/5/2019
A166: Anoka county of | B166: MS400066 | C166: Upper Mississippi River Bacteria TMDL | D166: 07010206-584 | E166: Rice Creek | F166: Categorical | G166: 1.75 | H166: billions of organisms/day | I166: Very Low | J166: Insufficient Data | K166: E. coli | L166: Daily | M166: 2010 | N166: Original TMDL approved 11/20/2014, modification approved 6/5/2019
A167: Anoka county of | B167: MS400066 | C167: Vadnais Lake Area WMO | D167: 62-0043-00 | E167: Wilkinson | F167: Individual | G167: 0.1 | H167: lbs/yr | I167: Not Applicable | J167: 0.76 | K167: TP | L167: Annual | M167: 2007 | N167: 2014-04-03
A168: Anoka county of | B168: MS400066 | C168: Vadnais Lake Area WMO | D168: 62-0043-00 | E168: Wilkinson | F168: Individual | G168: 0.001 | H168: lbs/day | I168: Not Applicable | J168: 0.76 | K168: TP | L168: Daily | M168: 2007 | N168: 2014-04-03
A169: Apple Valley city of | B169: MS400074 | C169: Crystal, Keller, and Lee Lakes Nutrient Impairment TMDL | D169: 19-0025-00 | E169: Keller | F169: Individual | G169: 114 | H169: lbs/yr | I169: Not Applicable | J169: 0.5328 | K169: TP | L169: Annual | M169: 2008 | N169: 2011-09-30
A170: Apple Valley city of | B170: MS400074 | C170: Crystal, Keller, and Lee Lakes Nutrient Impairment TMDL | D170: 19-0025-00 | E170: Keller | F170: Individual | G170: 0.312 | H170: lbs/day | I170: Not Applicable | J170: 0.5328 | K170: TP | L170: Daily | M170: 2008 | N170: 2011-09-30
A171: Apple Valley city of | B171: MS400074 | C171: Long and Farquar Lakes (Metro) | D171: 19-0022-00 | E171: Long | F171: Individual | G171: 48 | H171: lbs/yr | I171: Not Applicable | J171: 0.8395 | K171: TP | L171: Annual | M171: 2005 | N171: 2009-04-08
A172: Apple Valley city of | B172: MS400074 | C172: Long and Farquar Lakes (Metro) | D172: 19-0022-00 | E172: Long | F172: Individual | G172: 0.13 | H172: lbs/day | I172: Not Applicable | J172: 0.8415 | K172: TP | L172: Daily | M172: 2005 | N172: 2009-04-08
A173: Apple Valley city of | B173: MS400074 | C173: Long and Farquar Lakes (Metro) | D173: 19-0023-00 | E173: Farquar | F173: Individual | G173: 63 | H173: lbs/yr | I173: Not Applicable | J173: 0.7284 | K173: TP | L173: Annual | M173: 2005 | N173: 2009-04-08
A174: Apple Valley city of | B174: MS400074 | C174: Long and Farquar Lakes (Metro) | D174: 19-0023-00 | E174: Farquar | F174: Individual | G174: 0.17 | H174: lbs/day | I174: Not Applicable | J174: 0.7344 | K174: TP | L174: Daily | M174: 2005 | N174: 2009-04-08
A175: Apple Valley city of | B175: MS400074 | C175: Lower Mississippi River Basin-Fecal Coliform TMDL | D175: 07040001-507 | E175: Vermillion River | F175: Categorical | G175: 5.99 | H175: trillions of organisms/month | I175: Very High | J175: Not Available | K175: Fecal Coliform | L175: Monthly | M175: 1988 | N175: 2006-04-05
A176: Apple Valley city of | B176: MS400074 | C176: Lower Mississippi River Basin-Fecal Coliform TMDL | D176: 07040001-507 | E176: Vermillion River | F176: Categorical | G176: 1.57 | H176: trillions of organisms/month | I176: High | J176: Not Available | K176: Fecal Coliform | L176: Monthly | M176: 1988 | N176: 2006-04-05
A177: Apple Valley city of | B177: MS400074 | C177: Lower Mississippi River Basin-Fecal Coliform TMDL | D177: 07040001-507 | E177: Vermillion River | F177: Categorical | G177: 0.36 | H177: trillions of organisms/month | I177: Mid | J177: Not Available | K177: Fecal Coliform | L177: Monthly | M177: 1988 | N177: 2006-04-05
A178: Apple Valley city of | B178: MS400074 | C178: Lower Mississippi River Basin-Fecal Coliform TMDL | D178: 07040001-507 | E178: Vermillion River | F178: Categorical | G178: ** | H178: trillions of organisms/month | I178: Low | J178: Not Available | K178: Fecal Coliform | L178: Monthly | M178: 1988 | N178: 2006-04-05
A179: Apple Valley city of | B179: MS400074 | C179: Lower Mississippi River Basin-Fecal Coliform TMDL | D179: 07040001-507 | E179: Vermillion River | F179: Categorical | G179: ** | H179: trillions of organisms/month | I179: Very Low | J179: Not Available | K179: Fecal Coliform | L179: Monthly | M179: 1988 | N179: 2006-04-05
A180: Apple Valley city of | B180: MS400074 | C180: Lower Mississippi River Basin-Fecal Coliform TMDL | D180: 07040001-692 (previous waterbody ID: 07040001-506) | E180: Vermillion River | F180: Categorical | G180: 8.62 | H180: trillions of organisms/month | I180: Very High | J180: Not Available | K180: Fecal Coliform | L180: Monthly | M180: 1988 | N180: 2006-04-05
A181: Apple Valley city of | B181: MS400074 | C181: Lower Mississippi River Basin-Fecal Coliform TMDL | D181: 07040001-692 (previous waterbody ID: 07040001-506) | E181: Vermillion River | F181: Categorical | G181: 3.09 | H181: trillions of organisms/month | I181: High | J181: Not Available | K181: Fecal Coliform | L181: Monthly | M181: 1988 | N181: 2006-04-05
A182: Apple Valley city of | B182: MS400074 | C182: Lower Mississippi River Basin-Fecal Coliform TMDL | D182: 07040001-692 (previous waterbody ID: 07040001-506) | E182: Vermillion River | F182: Categorical | G182: 1.57 | H182: trillions of organisms/month | I182: Mid | J182: Not Available | K182: Fecal Coliform | L182: Monthly | M182: 1988 | N182: 2006-04-05
A183: Apple Valley city of | B183: MS400074 | C183: Lower Mississippi River Basin-Fecal Coliform TMDL | D183: 07040001-692 (previous waterbody ID: 07040001-506) | E183: Vermillion River | F183: Categorical | G183: 0.3 | H183: trillions of organisms/month | I183: Low | J183: Not Available | K183: Fecal Coliform | L183: Monthly | M183: 1988 | N183: 2006-04-05
A184: Apple Valley city of | B184: MS400074 | C184: Lower Mississippi River Basin-Fecal Coliform TMDL | D184: 07040001-692 (previous waterbody ID: 07040001-506) | E184: Vermillion River | F184: Categorical | G184: ** | H184: trillions of organisms/month | I184: Very Low | J184: Not Available | K184: Fecal Coliform | L184: Monthly | M184: 1988 | N184: 2006-04-05
A185: Apple Valley city of | B185: MS400074 | C185: Lower Vermillion River Watershed Turbidity TMDL | D185: 07040001-504 | E185: Vermillion River | F185: Individual | G185: 75 | H185: kg/day | I185: Not Applicable | J185: 0 | K185: TSS | L185: Daily | M185: 2000 | N185: 2009-09-29
A186: Apple Valley city of | B186: MS400074 | C186: South Metro Mississippi TSS TMDL | D186: 07040001-531 | E186: Mississippi River | F186: Categorical | G186: 154 | H186: lbs/acre/year | I186: Not Applicable | J186: Not Available | K186: TSS | L186: Annual | M186: Not Applicable | N186: 2016-04-26
A187: Apple Valley city of | B187: MS400074 | C187: Vermillion River Watershed JPO WRAPS 2008 | D187: 19-0021-00 | E187: Alimagnet | F187: Individual | G187: 39.1 | H187: lbs/yr | I187: Not Applicable | J187: 0.4406 | K187: TP | L187: Annual | M187: 2010 | N187: 2015-12-21
A188: Apple Valley city of | B188: MS400074 | C188: Vermillion River Watershed JPO WRAPS 2008 | D188: 19-0021-00 | E188: Alimagnet | F188: Individual | G188: 0.11 | H188: lbs/day | I188: Not Applicable | J188: 0.4406 | K188: TP | L188: Daily | M188: 2010 | N188: 2015-12-21
A189: Apple Valley city of | B189: MS400074 | C189: Vermillion River Watershed JPO WRAPS 2008 | D189: 19-0349-00 | E189: Unnamed | F189: Individual | G189: 381 | H189: lbs/yr | I189: Not Applicable | J189: 0.3561 | K189: TP | L189: Annual | M189: 2010 | N189: 2015-12-21
A190: Apple Valley city of | B190: MS400074 | C190: Vermillion River Watershed JPO WRAPS 2008 | D190: 19-0349-00 | E190: Unnamed | F190: Individual | G190: 1.04 | H190: lbs/day | I190: Not Applicable | J190: 0.358 | K190: TP | L190: Daily | M190: 2010 | N190: 2015-12-21
A191: Apple Valley city of | B191: MS400074 | C191: Minnesota River and Greater Blue Earth River TMDL for TSS | D191: 07020012-505 | E191: Minnesota River | F191: Categorical | G191: 119.2 | H191: tons/day | I191: Very High | J191: 0 | K191: TSS | L191: Daily | M191: 2010 | N191: 2020-02-12 | O191: For permitted MS4s, TSS loading does not need to be reduced to meet the WLAs but is not allowed to increase relative to the baseline year of 2010
A192: Apple Valley city of | B192: MS400074 | C192: Minnesota River and Greater Blue Earth River TMDL for TSS | D192: 07020012-505 | E192: Minnesota River | F192: Categorical | G192: 44.21 | H192: tons/day | I192: High | J192: 0 | K192: TSS | L192: Daily | M192: 2010 | N192: 2020-02-12 | O192: For permitted MS4s, TSS loading does not need to be reduced to meet the WLAs but is not allowed to increase relative to the baseline year of 2010
A193: Apple Valley city of | B193: MS400074 | C193: Minnesota River and Greater Blue Earth River TMDL for TSS | D193: 07020012-505 | E193: Minnesota River | F193: Categorical | G193: 17.83 | H193: tons/day | I193: Mid | J193: 0 | K193: TSS | L193: Daily | M193: 2010 | N193: 2020-02-12 | O193: For permitted MS4s, TSS loading does not need to be reduced to meet the WLAs but is not allowed to increase relative to the baseline year of 2010
A194: Apple Valley city of | B194: MS400074 | C194: Minnesota River and Greater Blue Earth River TMDL for TSS | D194: 07020012-505 | E194: Minnesota River | F194: Categorical | G194: 8.12 | H194: tons/day | I194: Low | J194: 0 | K194: TSS | L194: Daily | M194: 2010 | N194: 2020-02-12 | O194: For permitted MS4s, TSS loading does not need to be reduced to meet the WLAs but is not allowed to increase relative to the baseline year of 2010
A195: Apple Valley city of | B195: MS400074 | C195: Minnesota River and Greater Blue Earth River TMDL for TSS | D195: 07020012-505 | E195: Minnesota River | F195: Categorical | G195: 3.9 | H195: tons/day | I195: Very Low | J195: 0 | K195: TSS | L195: Daily | M195: 2010 | N195: 2020-02-12 | O195: For permitted MS4s, TSS loading does not need to be reduced to meet the WLAs but is not allowed to increase relative to the baseline year of 2010
A196: Arden Hills city of | B196: MS400002 | C196: Rice Creek Watershed District Southwest Urban Lakes - Excess Nutrients TMDL | D196: 62-0058-00 | E196: Little Johanna | F196: Categorical | G196: 201.6 | H196: kg/yr | I196: Not Applicable | J196: 0.4703 | K196: TP | L196: Annual | M196: 2003 | N196: 2015-02-26
A197: Arden Hills city of | B197: MS400002 | C197: Rice Creek Watershed District Southwest Urban Lakes - Excess Nutrients TMDL | D197: 62-0058-00 | E197: Little Johanna | F197: Categorical | G197: 0.552 | H197: kg/day | I197: Not Applicable | J197: 0.4703 | K197: TP | L197: Daily | M197: 2003 | N197: 2015-02-26
A198: Arden Hills city of | B198: MS400002 | C198: Rice Creek Watershed District Southwest Urban Lakes - Excess Nutrients TMDL | D198: 62-0067-00 | E198: Long | F198: Categorical | G198: 167.4 | H198: kg/yr | I198: Not Applicable | J198: 0.4556 | K198: TP | L198: Annual | M198: 2003 | N198: 2015-02-26
A199: Arden Hills city of | B199: MS400002 | C199: Rice Creek Watershed District Southwest Urban Lakes - Excess Nutrients TMDL | D199: 62-0067-00 | E199: Long | F199: Categorical | G199: 0.459 | H199: kg/day | I199: Not Applicable | J199: 0.4556 | K199: TP | L199: Daily | M199: 2003 | N199: 2015-02-26
A200: Arden Hills city of | B200: MS400002 | C200: Rice Creek Watershed District Southwest Urban Lakes - Excess Nutrients TMDL | D200: 62-0069-00 | E200: Pike | F200: Categorical | G200: 371.1 | H200: kg/yr | I200: Not Applicable | J200: 0.4588 | K200: TP | L200: Annual | M200: 2003 | N200: 2015-02-26
A201: Arden Hills city of | B201: MS400002 | C201: Rice Creek Watershed District Southwest Urban Lakes - Excess Nutrients TMDL | D201: 62-0069-00 | E201: Pike | F201: Categorical | G201: 1.016 | H201: kg/day | I201: Not Applicable | J201: 0.4588 | K201: TP | L201: Daily | M201: 2003 | N201: 2015-02-26
... 4299 more rows

Sheet Source TMDL Master List _HIDE (hidden)
A1: Permittee name | B1: MS4 Permit # | C1: TMDL project name | D1: Waterbody ID | E1: Waterbody name | F1: WLA type | G1: Numeric WLA | H1: Units | I1: Flow Condition | J1: Percent Reduction | K1: Pollutant | L1: Annual/Daily | M1: MPCA Recommended Baseline year | N1: TMDL Approval Date | O1: Notes | P1: TMDL Project, waterbody, pollutant
A2: Albert Lea city of | B2: MS400263 | C2: Lower Mississippi River Basin-Fecal Coliform TMDL | D2: 07080202-501 | E2: Shell Rock River | F2: Individual | G2: 2.7 | H2: trillions of organisms/month | I2: Very High | J2: Not Available | K2: Fecal Coliform | L2: Monthly | M2: 1988 | N2: 2006-04-05 | P2: =CONCATENATE(C2, "-", E2, "-","(", D2,")", "-",K2) -> Lower Mississippi River Basin-Fecal Coliform TMDL-Shell Rock River-(07080202-501)-Fecal Coliform
A3: Albert Lea city of | B3: MS400263 | C3: Lower Mississippi River Basin-Fecal Coliform TMDL | D3: 07080202-501 | E3: Shell Rock River | F3: Individual | G3: 0.72 | H3: trillions of organisms/month | I3: High | J3: Not Available | K3: Fecal Coliform | L3: Monthly | M3: 1988 | N3: 2006-04-05 | P3: =CONCATENATE(C3, "-", E3, "-","(", D3,")", "-",K3) -> Lower Mississippi River Basin-Fecal Coliform TMDL-Shell Rock River-(07080202-501)-Fecal Coliform
A4: Albert Lea city of | B4: MS400263 | C4: Lower Mississippi River Basin-Fecal Coliform TMDL | D4: 07080202-501 | E4: Shell Rock River | F4: Individual | G4: 0.25 | H4: trillions of organisms/month | I4: Mid | J4: Not Available | K4: Fecal Coliform | L4: Monthly | M4: 1988 | N4: 2006-04-05 | P4: Lower Mississippi River Basin-Fecal Coliform TMDL-Shell Rock River-(07080202-501)-Fecal Coliform
A5: Albert Lea city of | B5: MS400263 | C5: Lower Mississippi River Basin-Fecal Coliform TMDL | D5: 07080202-501 | E5: Shell Rock River | F5: Individual | G5: ** | H5: trillions of organisms/month | I5: Low | J5: Not Available | K5: Fecal Coliform | L5: Monthly | M5: 1988 | N5: 2006-04-05 | P5: Lower Mississippi River Basin-Fecal Coliform TMDL-Shell Rock River-(07080202-501)-Fecal Coliform
A6: Albert Lea city of | B6: MS400263 | C6: Lower Mississippi River Basin-Fecal Coliform TMDL | D6: 07080202-501 | E6: Shell Rock River | F6: Individual | G6: ** | H6: trillions of organisms/month | I6: Very Low | J6: Not Available | K6: Fecal Coliform | L6: Monthly | M6: 1988 | N6: 2006-04-05 | P6: Lower Mississippi River Basin-Fecal Coliform TMDL-Shell Rock River-(07080202-501)-Fecal Coliform
A7: Albertville city of | B7: MS400281 | C7: North Fork Crow and Lower Crow Bacteria, Turbidity, and Low DO TMDL | D7: 07010204-502 | E7: Crow River | F7: Individual | G7: 8.3 | H7: billions of organisms/day | I7: Very High | J7: Not Available | K7: E. coli | L7: Daily | M7: 2005 | N7: Original TMDL approved 8/20/2013, modification approved 6/5/19 | P7: North Fork Crow and Lower Crow Bacteria, Turbidity, and Low DO TMDL-Crow River-(07010204-502)-E. coli
A8: Albertville city of | B8: MS400281 | C8: North Fork Crow and Lower Crow Bacteria, Turbidity, and Low DO TMDL | D8: 07010204-502 | E8: Crow River | F8: Individual | G8: 4.8 | H8: billions of organisms/day | I8: High | J8: Not Available | K8: E. coli | L8: Daily | M8: 2005 | N8: Original TMDL approved 8/20/2013, modification approved 6/5/19 | P8: North Fork Crow and Lower Crow Bacteria, Turbidity, and Low DO TMDL-Crow River-(07010204-502)-E. coli
A9: Albertville city of | B9: MS400281 | C9: North Fork Crow and Lower Crow Bacteria, Turbidity, and Low DO TMDL | D9: 07010204-502 | E9: Crow River | F9: Individual | G9: 2.5 | H9: billions of organisms/day | I9: Mid | J9: Not Available | K9: E. coli | L9: Daily | M9: 2005 | N9: Original TMDL approved 8/20/2013, modification approved 6/5/19 | P9: North Fork Crow and Lower Crow Bacteria, Turbidity, and Low DO TMDL-Crow River-(07010204-502)-E. coli
A10: Albertville city of | B10: MS400281 | C10: North Fork Crow and Lower Crow Bacteria, Turbidity, and Low DO TMDL | D10: 07010204-502 | E10: Crow River | F10: Individual | G10: 0.8 | H10: billions of organisms/day | I10: Low | J10: Not Available | K10: E. coli | L10: Daily | M10: 2005 | N10: Original TMDL approved 8/20/2013, modification approved 6/5/19 | P10: North Fork Crow and Lower Crow Bacteria, Turbidity, and Low DO TMDL-Crow River-(07010204-502)-E. coli
A11: Albertville city of | B11: MS400281 | C11: North Fork Crow and Lower Crow Bacteria, Turbidity, and Low DO TMDL | D11: 07010204-502 | E11: Crow River | F11: Individual | G11: 0.2 | H11: billions of organisms/day | I11: Very Low | J11: Not Available | K11: E. coli | L11: Daily | M11: 2005 | N11: Original TMDL approved 8/20/2013, modification approved 6/5/19 | P11: North Fork Crow and Lower Crow Bacteria, Turbidity, and Low DO TMDL-Crow River-(07010204-502)-E. coli
A12: Albertville city of | B12: MS400281 | C12: North Fork Crow and Lower Crow Bacteria, Turbidity, and Low DO TMDL | D12: 07010204-502 | E12: Crow River | F12: Individual | G12: 1.8 | H12: tons/day | I12: Very High | J12: Not Available | K12: TSS | L12: Daily | M12: 2004 | N12: Original TMDL approved 8/20/2013, modification approved 6/5/19 | P12: North Fork Crow and Lower Crow Bacteria, Turbidity, and Low DO TMDL-Crow River-(07010204-502)-TSS
A13: Albertville city of | B13: MS400281 | C13: North Fork Crow and Lower Crow Bacteria, Turbidity, and Low DO TMDL | D13: 07010204-502 | E13: Crow River | F13: Individual | G13: 0.6 | H13: tons/day | I13: High | J13: Not Available | K13: TSS | L13: Daily | M13: 2004 | N13: Original TMDL approved 8/20/2013, modification approved 6/5/19 | P13: North Fork Crow and Lower Crow Bacteria, Turbidity, and Low DO TMDL-Crow River-(07010204-502)-TSS
A14: Albertville city of | B14: MS400281 | C14: North Fork Crow and Lower Crow Bacteria, Turbidity, and Low DO TMDL | D14: 07010204-502 | E14: Crow River | F14: Individual | G14: 0.2 | H14: tons/day | I14: Mid | J14: Not Available | K14: TSS | L14: Daily | M14: 2004 | N14: Original TMDL approved 8/20/2013, modification approved 6/5/19 | P14: North Fork Crow and Lower Crow Bacteria, Turbidity, and Low DO TMDL-Crow River-(07010204-502)-TSS
A15: Albertville city of | B15: MS400281 | C15: North Fork Crow and Lower Crow Bacteria, Turbidity, and Low DO TMDL | D15: 07010204-502 | E15: Crow River | F15: Individual | G15: 0.1 | H15: tons/day | I15: Low | J15: Not Available | K15: TSS | L15: Daily | M15: 2004 | N15: Original TMDL approved 8/20/2013, modification approved 6/5/19 | P15: North Fork Crow and Lower Crow Bacteria, Turbidity, and Low DO TMDL-Crow River-(07010204-502)-TSS
A16: Albertville city of | B16: MS400281 | C16: North Fork Crow and Lower Crow Bacteria, Turbidity, and Low DO TMDL | D16: 07010204-502 | E16: Crow River | F16: Individual | G16: 0.1 | H16: tons/day | I16: Very Low | J16: Not Available | K16: TSS | L16: Daily | M16: 2004 | N16: Original TMDL approved 8/20/2013, modification approved 6/5/19 | P16: North Fork Crow and Lower Crow Bacteria, Turbidity, and Low DO TMDL-Crow River-(07010204-502)-TSS
A17: Albertville city of | B17: MS400281 | C17: North Fork Crow River WRAPS 2007 | D17: 07010204-542 | E17: Unnamed creek (Regal Creek) | F17: Individual | G17: 19.2 | H17: billions of organisms/day | I17: Very High | J17: 0.01 | K17: E. coli | L17: Daily | M17: 2008 | N17: 2015-04-08 | P17: North Fork Crow River WRAPS 2007-Unnamed creek (Regal Creek)-(07010204-542)-E. coli
A18: Albertville city of | B18: MS400281 | C18: North Fork Crow River WRAPS 2007 | D18: 07010204-542 | E18: Unnamed creek (Regal Creek) | F18: Individual | G18: 6.7 | H18: billions of organisms/day | I18: High | J18: 0 | K18: E. coli | L18: Daily | M18: 2008 | N18: 2015-04-08 | P18: North Fork Crow River WRAPS 2007-Unnamed creek (Regal Creek)-(07010204-542)-E. coli
A19: Albertville city of | B19: MS400281 | C19: North Fork Crow River WRAPS 2007 | D19: 07010204-542 | E19: Unnamed creek (Regal Creek) | F19: Individual | G19: 2 | H19: billions of organisms/day | I19: Mid | J19: 0.46 | K19: E. coli | L19: Daily | M19: 2008 | N19: 2015-04-08 | P19: North Fork Crow River WRAPS 2007-Unnamed creek (Regal Creek)-(07010204-542)-E. coli
A20: Albertville city of | B20: MS400281 | C20: North Fork Crow River WRAPS 2007 | D20: 07010204-542 | E20: Unnamed creek (Regal Creek) | F20: Individual | G20: 0.7 | H20: billions of organisms/day | I20: Low | J20: 0.83 | K20: E. coli | L20: Daily | M20: 2008 | N20: 2015-04-08 | P20: North Fork Crow River WRAPS 2007-Unnamed creek (Regal Creek)-(07010204-542)-E. coli
A21: Albertville city of | B21: MS400281 | C21: North Fork Crow River WRAPS 2007 | D21: 07010204-542 | E21: Unnamed creek (Regal Creek) | F21: Individual | G21: 0.4 | H21: billions of organisms/day | I21: Very Low | J21: 0.81 | K21: E. coli | L21: Daily | M21: 2008 | N21: 2015-04-08 | P21: North Fork Crow River WRAPS 2007-Unnamed creek (Regal Creek)-(07010204-542)-E. coli
A22: Albertville city of | B22: MS400281 | C22: Upper Mississippi River Bacteria TMDL | D22: 07010203-528 | E22: Unnamed creek | F22: Categorical | G22: 11.2 | H22: billions of organisms/day | I22: Very High | J22: 0.66 | K22: E. coli | L22: Daily | M22: 2010 | N22: Original TMDL approved 11/20/2014, modification approved 6/5/2019 | P22: Upper Mississippi River Bacteria TMDL-Unnamed creek-(07010203-528)-E. coli
A23: Albertville city of | B23: MS400281 | C23: Upper Mississippi River Bacteria TMDL | D23: 07010203-528 | E23: Unnamed creek | F23: Categorical | G23: 3.91 | H23: billions of organisms/day | I23: High | J23: 0.54 | K23: E. coli | L23: Daily | M23: 2010 | N23: Original TMDL approved 11/20/2014, modification approved 6/5/2019 | P23: Upper Mississippi River Bacteria TMDL-Unnamed creek-(07010203-528)-E. coli
A24: Albertville city of | B24: MS400281 | C24: Upper Mississippi River Bacteria TMDL | D24: 07010203-528 | E24: Unnamed creek | F24: Categorical | G24: 1.1 | H24: billions of organisms/day | I24: Mid | J24: 0.64 | K24: E. coli | L24: Daily | M24: 2010 | N24: Original TMDL approved 11/20/2014, modification approved 6/5/2019 | P24: Upper Mississippi River Bacteria TMDL-Unnamed creek-(07010203-528)-E. coli
A25: Albertville city of | B25: MS400281 | C25: Upper Mississippi River Bacteria TMDL | D25: 07010203-528 | E25: Unnamed creek | F25: Categorical | G25: 0.161 | H25: billions of organisms/day | I25: Low | J25: Insufficient Data | K25: E. coli | L25: Daily | M25: 2010 | N25: Original TMDL approved 11/20/2014, modification approved 6/5/2019 | P25: Upper Mississippi River Bacteria TMDL-Unnamed creek-(07010203-528)-E. coli
A26: Albertville city of | B26: MS400281 | C26: Upper Mississippi River Bacteria TMDL | D26: 07010203-528 | E26: Unnamed creek | F26: Categorical | G26: ** | H26: billions of organisms/day | I26: Very Low | J26: Insufficient Data | K26: E. coli | L26: Daily | M26: 2010 | N26: Original TMDL approved 11/20/2014, modification approved 6/5/2019 | P26: Upper Mississippi River Bacteria TMDL-Unnamed creek-(07010203-528)-E. coli
A27: Albertville city of | B27: MS400281 | C27: South Metro Mississippi TSS TMDL | D27: 07040001-531 | E27: Mississippi River | F27: Categorical | G27: 154 | H27: lbs/acre/year | I27: Not Applicable | J27: Not Available | K27: TSS | L27: Annual | M27: Not Applicable | N27: 2016-04-26 | P27: South Metro Mississippi TSS TMDL-Mississippi River-(07040001-531)-TSS
A28: Alexandria city of | B28: MS400264 | C28: South Metro Mississippi TSS TMDL | D28: 07040001-531 | E28: Mississippi River | F28: Categorical | G28: 154 | H28: lbs/acre/year | I28: Not Applicable | J28: 0 | K28: TSS | L28: Annual | M28: Not Applicable | N28: 2016-04-26 | P28: South Metro Mississippi TSS TMDL-Mississippi River-(07040001-531)-TSS
A29: Andover city of | B29: MS400073 | C29: Coon Creek Watershed District WRAPS 2010 | D29: 07010206-530 | E29: Coon Creek | F29: Categorical | G29: 340.16 | H29: billions of organisms/day | I29: Very High | J29: 0.39 | K29: E. coli | L29: Daily | M29: 2009 | N29: 2016-09-26 | P29: Coon Creek Watershed District WRAPS 2010-Coon Creek-(07010206-530)-E. coli
A30: Andover city of | B30: MS400073 | C30: Coon Creek Watershed District WRAPS 2010 | D30: 07010206-530 | E30: Coon Creek | F30: Categorical | G30: 167.48 | H30: billions of organisms/day | I30: High | J30: 0.09 | K30: E. coli | L30: Daily | M30: 2009 | N30: 2016-09-26 | P30: Coon Creek Watershed District WRAPS 2010-Coon Creek-(07010206-530)-E. coli
A31: Andover city of | B31: MS400073 | C31: Coon Creek Watershed District WRAPS 2010 | D31: 07010206-530 | E31: Coon Creek | F31: Categorical | G31: 103.69 | H31: billions of organisms/day | I31: Mid | J31: 0.49 | K31: E. coli | L31: Daily | M31: 2009 | N31: 2016-09-26 | P31: Coon Creek Watershed District WRAPS 2010-Coon Creek-(07010206-530)-E. coli
A32: Andover city of | B32: MS400073 | C32: Coon Creek Watershed District WRAPS 2010 | D32: 07010206-530 | E32: Coon Creek | F32: Categorical | G32: 69.14 | H32: billions of organisms/day | I32: Low | J32: 0.34 | K32: E. coli | L32: Daily | M32: 2009 | N32: 2016-09-26 | P32: Coon Creek Watershed District WRAPS 2010-Coon Creek-(07010206-530)-E. coli
A33: Andover city of | B33: MS400073 | C33: Coon Creek Watershed District WRAPS 2010 | D33: 07010206-530 | E33: Coon Creek | F33: Categorical | G33: 44.67 | H33: billions of organisms/day | I33: Very Low | J33: ** | K33: E. coli | L33: Daily | M33: 2009 | N33: 2016-09-26 | P33: Coon Creek Watershed District WRAPS 2010-Coon Creek-(07010206-530)-E. coli
A34: Andover city of | B34: MS400073 | C34: Coon Creek Watershed District WRAPS 2010 | D34: 07010206-530 | E34: Coon Creek | F34: Categorical | G34: 60.05 | H34: lbs/day | I34: Very high | J34: 0.61 | K34: TP | L34: Daily | M34: 2009 | N34: 2016-09-26 | P34: Coon Creek Watershed District WRAPS 2010-Coon Creek-(07010206-530)-TP
A35: Andover city of | B35: MS400073 | C35: Coon Creek Watershed District WRAPS 2010 | D35: 07010206-530 | E35: Coon Creek | F35: Categorical | G35: 29.41 | H35: lbs/day | I35: High | J35: 0.47 | K35: TP | L35: Daily | M35: 2009 | N35: 2016-09-26 | P35: Coon Creek Watershed District WRAPS 2010-Coon Creek-(07010206-530)-TP
A36: Andover city of | B36: MS400073 | C36: Coon Creek Watershed District WRAPS 2010 | D36: 07010206-530 | E36: Coon Creek | F36: Categorical | G36: 18.33 | H36: lbs/day | I36: Mid | J36: 0.19 | K36: TP | L36: Daily | M36: 2009 | N36: 2016-09-26 | P36: Coon Creek Watershed District WRAPS 2010-Coon Creek-(07010206-530)-TP
A37: Andover city of | B37: MS400073 | C37: Coon Creek Watershed District WRAPS 2010 | D37: 07010206-530 | E37: Coon Creek | F37: Categorical | G37: 11.28 | H37: lbs/day | I37: Low | J37: 0 | K37: TP | L37: Daily | M37: 2009 | N37: 2016-09-26 | P37: Coon Creek Watershed District WRAPS 2010-Coon Creek-(07010206-530)-TP
A38: Andover city of | B38: MS400073 | C38: Coon Creek Watershed District WRAPS 2010 | D38: 07010206-530 | E38: Coon Creek | F38: Categorical | G38: 5.58 | H38: lbs/day | I38: Very Low | J38: 0 | K38: TP | L38: Daily | M38: 2009 | N38: 2016-09-26 | P38: Coon Creek Watershed District WRAPS 2010-Coon Creek-(07010206-530)-TP
A39: Andover city of | B39: MS400073 | C39: Coon Creek Watershed District WRAPS 2010 | D39: 07010206-530 | E39: Coon Creek | F39: Categorical | G39: 8.94 | H39: tons/day | I39: Very High | J39: 0.49 | K39: TSS | L39: Daily | M39: 2009 | N39: 2016-09-26 | P39: Coon Creek Watershed District WRAPS 2010-Coon Creek-(07010206-530)-TSS
A40: Andover city of | B40: MS400073 | C40: Coon Creek Watershed District WRAPS 2010 | D40: 07010206-530 | E40: Coon Creek | F40: Categorical | G40: 4.41 | H40: tons/day | I40: High | J40: 0.49 | K40: TSS | L40: Daily | M40: 2009 | N40: 2016-09-26 | P40: Coon Creek Watershed District WRAPS 2010-Coon Creek-(07010206-530)-TSS
A41: Andover city of | B41: MS400073 | C41: Coon Creek Watershed District WRAPS 2010 | D41: 07010206-530 | E41: Coon Creek | F41: Categorical | G41: 2.75 | H41: tons/day | I41: Mid | J41: 0.08 | K41: TSS | L41: Daily | M41: 2009 | N41: 2016-09-26 | P41: Coon Creek Watershed District WRAPS 2010-Coon Creek-(07010206-530)-TSS
A42: Andover city of | B42: MS400073 | C42: Coon Creek Watershed District WRAPS 2010 | D42: 07010206-530 | E42: Coon Creek | F42: Categorical | G42: 0.96 | H42: tons/day | I42: Low | J42: 0 | K42: TSS | L42: Daily | M42: 2009 | N42: 2016-09-26 | P42: Coon Creek Watershed District WRAPS 2010-Coon Creek-(07010206-530)-TSS
A43: Andover city of | B43: MS400073 | C43: Coon Creek Watershed District WRAPS 2010 | D43: 07010206-530 | E43: Coon Creek | F43: Categorical | G43: 0.49 | H43: tons/day | I43: Very Low | J43: 0 | K43: TSS | L43: Daily | M43: 2009 | N43: 2016-09-26 | P43: Coon Creek Watershed District WRAPS 2010-Coon Creek-(07010206-530)-TSS
A44: Andover city of | B44: MS400073 | C44: Rum River WRAPS 2013 | D44: 07010207-521 | E44: Cedar Creek | F44: Individual | G44: 25.64 | H44: billions of organisms/day | I44: Very High | J44: 0.58 | K44: E. coli | L44: Daily | M44: 2006 | N44: 2017-09-26 | O44: Overall reduction | P44: Rum River WRAPS 2013-Cedar Creek-(07010207-521)-E. coli
A45: Andover city of | B45: MS400073 | C45: Rum River WRAPS 2013 | D45: 07010207-521 | E45: Cedar Creek | F45: Individual | G45: 13.39 | H45: billions of organisms/day | I45: High | J45: 0.58 | K45: E. coli | L45: Daily | M45: 2006 | N45: 2017-09-26 | O45: Overall reduction | P45: Rum River WRAPS 2013-Cedar Creek-(07010207-521)-E. coli
A46: Andover city of | B46: MS400073 | C46: Rum River WRAPS 2013 | D46: 07010207-521 | E46: Cedar Creek | F46: Individual | G46: 8.31 | H46: billions of organisms/day | I46: Mid | J46: 0.58 | K46: E. coli | L46: Daily | M46: 2006 | N46: 2017-09-26 | O46: Overall reduction | P46: Rum River WRAPS 2013-Cedar Creek-(07010207-521)-E. coli
A47: Andover city of | B47: MS400073 | C47: Rum River WRAPS 2013 | D47: 07010207-521 | E47: Cedar Creek | F47: Individual | G47: 5.83 | H47: billions of organisms/day | I47: Low | J47: 0.58 | K47: E. coli | L47: Daily | M47: 2006 | N47: 2017-09-26 | O47: Overall reduction | P47: Rum River WRAPS 2013-Cedar Creek-(07010207-521)-E. coli
A48: Andover city of | B48: MS400073 | C48: Rum River WRAPS 2013 | D48: 07010207-521 | E48: Cedar Creek | F48: Individual | G48: 3.09 | H48: billions of organisms/day | I48: Very Low | J48: 0.58 | K48: E. coli | L48: Daily | M48: 2006 | N48: 2017-09-26 | O48: Overall reduction | P48: Rum River WRAPS 2013-Cedar Creek-(07010207-521)-E. coli
A49: Andover city of | B49: MS400073 | C49: South Metro Mississippi TSS TMDL | D49: 07040001-531 | E49: Mississippi River | F49: Categorical | G49: 154 | H49: lbs/acre/year | I49: Not Applicable | J49: 0 | K49: TSS | L49: Annual | M49: Not Applicable | N49: 2016-04-26 | P49: South Metro Mississippi TSS TMDL-Mississippi River-(07040001-531)-TSS
A50: Anoka city of | B50: MS400001 | C50: Hardwood Creek Impaired Biota and Dissolved Oxygen TMDL | D50: 07010206-596 | E50: Hardwood Creek | F50: Categorical | G50: 413 | H50: lbs/day | I50: Very High | J50: Not Available | K50: TSS | L50: Daily | M50: 2002 | N50: 2009-06-18 | P50: Hardwood Creek Impaired Biota and Dissolved Oxygen TMDL-Hardwood Creek-(07010206-596)-TSS
A51: Anoka city of | B51: MS400001 | C51: Hardwood Creek Impaired Biota and Dissolved Oxygen TMDL | D51: 07010206-596 | E51: Hardwood Creek | F51: Categorical | G51: 100 | H51: lbs/day | I51: High | J51: Not Available | K51: TSS | L51: Daily | M51: 2002 | N51: 2009-06-18 | P51: Hardwood Creek Impaired Biota and Dissolved Oxygen TMDL-Hardwood Creek-(07010206-596)-TSS
A52: Anoka city of | B52: MS400001 | C52: Hardwood Creek Impaired Biota and Dissolved Oxygen TMDL | D52: 07010206-596 | E52: Hardwood Creek | F52: Categorical | G52: 38 | H52: lbs/day | I52: Mid | J52: Not Available | K52: TSS | L52: Daily | M52: 2002 | N52: 2009-06-18 | P52: Hardwood Creek Impaired Biota and Dissolved Oxygen TMDL-Hardwood Creek-(07010206-596)-TSS
A53: Anoka city of | B53: MS400001 | C53: Hardwood Creek Impaired Biota and Dissolved Oxygen TMDL | D53: 07010206-596 | E53: Hardwood Creek | F53: Categorical | G53: 17 | H53: lbs/day | I53: Low | J53: Not Available | K53: TSS | L53: Daily | M53: 2002 | N53: 2009-06-18 | P53: Hardwood Creek Impaired Biota and Dissolved Oxygen TMDL-Hardwood Creek-(07010206-596)-TSS
A54: Anoka city of | B54: MS400001 | C54: Hardwood Creek Impaired Biota and Dissolved Oxygen TMDL | D54: 07010206-596 | E54: Hardwood Creek | F54: Categorical | G54: 6 | H54: lbs/day | I54: Very Low | J54: Not Available | K54: TSS | L54: Daily | M54: 2002 | N54: 2009-06-18 | P54: Hardwood Creek Impaired Biota and Dissolved Oxygen TMDL-Hardwood Creek-(07010206-596)-TSS
A55: Anoka city of | B55: MS400001 | C55: Hardwood Creek Impaired Biota and Dissolved Oxygen TMDL | D55: 07010206-596 | E55: Hardwood Creek | F55: Categorical | G55: 104 | H55: lbs/day | I55: Very High | J55: Not Available | K55: Total Oxygen Demand | L55: Daily | M55: 2002 | N55: 2009-06-18 | P55: Hardwood Creek Impaired Biota and Dissolved Oxygen TMDL-Hardwood Creek-(07010206-596)-Total Oxygen Demand
A56: Anoka city of | B56: MS400001 | C56: Hardwood Creek Impaired Biota and Dissolved Oxygen TMDL | D56: 07010206-596 | E56: Hardwood Creek | F56: Categorical | G56: 25 | H56: lbs/day | I56: High | J56: Not Available | K56: Total Oxygen Demand | L56: Daily | M56: 2002 | N56: 2009-06-18 | P56: Hardwood Creek Impaired Biota and Dissolved Oxygen TMDL-Hardwood Creek-(07010206-596)-Total Oxygen Demand
A57: Anoka city of | B57: MS400001 | C57: Hardwood Creek Impaired Biota and Dissolved Oxygen TMDL | D57: 07010206-596 | E57: Hardwood Creek | F57: Categorical | G57: 10 | H57: lbs/day | I57: Mid | J57: Not Available | K57: Total Oxygen Demand | L57: Daily | M57: 2002 | N57: 2009-06-18 | P57: Hardwood Creek Impaired Biota and Dissolved Oxygen TMDL-Hardwood Creek-(07010206-596)-Total Oxygen Demand
A58: Anoka city of | B58: MS400001 | C58: Hardwood Creek Impaired Biota and Dissolved Oxygen TMDL | D58: 07010206-596 | E58: Hardwood Creek | F58: Categorical | G58: 5 | H58: lbs/day | I58: Low | J58: Not Available | K58: Total Oxygen Demand | L58: Daily | M58: 2002 | N58: 2009-06-18 | P58: Hardwood Creek Impaired Biota and Dissolved Oxygen TMDL-Hardwood Creek-(07010206-596)-Total Oxygen Demand
A59: Anoka city of | B59: MS400001 | C59: Hardwood Creek Impaired Biota and Dissolved Oxygen TMDL | D59: 07010206-596 | E59: Hardwood Creek | F59: Categorical | G59: 2 | H59: lbs/day | I59: Very Low | J59: Not Available | K59: Total Oxygen Demand | L59: Daily | M59: 2002 | N59: 2009-06-18 | P59: Hardwood Creek Impaired Biota and Dissolved Oxygen TMDL-Hardwood Creek-(07010206-596)-Total Oxygen Demand
A60: Anoka city of | B60: MS400001 | C60: Rum River WRAPS 2013 | D60: 07010207-680 | E60: Trott Brook | F60: Individual | G60: 1 | H60: lbs/day | I60: Not Applicable | J60: 0.5 | K60: Total Oxygen Demand | L60: Daily | M60: 2006 | N60: 2017-09-26 | P60: Rum River WRAPS 2013-Trott Brook-(07010207-680)-Total Oxygen Demand
A61: Anoka city of | B61: MS400001 | C61: South Metro Mississippi TSS TMDL | D61: 07040001-531 | E61: Mississippi River | F61: Categorical | G61: 154 | H61: lbs/acre/year | I61: Not Applicable | J61: 0 | K61: TSS | L61: Annual | M61: Not Applicable | N61: 2016-04-26 | P61: South Metro Mississippi TSS TMDL-Mississippi River-(07040001-531)-TSS
A62: Anoka county of | B62: MS400066 | C62: Coon Creek Watershed District WRAPS 2010 | D62: 07010206-530 | E62: Coon Creek | F62: Individual | G62: 9.9 | H62: billions of organisms/day | I62: Very High | J62: 0.39 | K62: E. coli | L62: Daily | M62: 2009 | N62: 2016-09-26 | P62: Coon Creek Watershed District WRAPS 2010-Coon Creek-(07010206-530)-E. coli
A63: Anoka county of | B63: MS400066 | C63: Coon Creek Watershed District WRAPS 2010 | D63: 07010206-530 | E63: Coon Creek | F63: Individual | G63: 4.87 | H63: billions of organisms/day | I63: High | J63: 0.09 | K63: E. coli | L63: Daily | M63: 2009 | N63: 2016-09-26 | P63: Coon Creek Watershed District WRAPS 2010-Coon Creek-(07010206-530)-E. coli
A64: Anoka county of | B64: MS400066 | C64: Coon Creek Watershed District WRAPS 2010 | D64: 07010206-530 | E64: Coon Creek | F64: Individual | G64: 3.02 | H64: billions of organisms/day | I64: Mid | J64: 0.49 | K64: E. coli | L64: Daily | M64: 2009 | N64: 2016-09-26 | P64: Coon Creek Watershed District WRAPS 2010-Coon Creek-(07010206-530)-E. coli
A65: Anoka county of | B65: MS400066 | C65: Coon Creek Watershed District WRAPS 2010 | D65: 07010206-530 | E65: Coon Creek | F65: Individual | G65: 2.01 | H65: billions of organisms/day | I65: Low | J65: 0.34 | K65: E. coli | L65: Daily | M65: 2009 | N65: 2016-09-26 | P65: Coon Creek Watershed District WRAPS 2010-Coon Creek-(07010206-530)-E. coli
A66: Anoka county of | B66: MS400066 | C66: Coon Creek Watershed District WRAPS 2010 | D66: 07010206-530 | E66: Coon Creek | F66: Individual | G66: 1.3 | H66: billions of organisms/day | I66: Very Low | J66: Not Available | K66: E. coli | L66: Daily | M66: 2009 | N66: 2016-09-26 | P66: Coon Creek Watershed District WRAPS 2010-Coon Creek-(07010206-530)-E. coli
A67: Anoka county of | B67: MS400066 | C67: Coon Creek Watershed District WRAPS 2010 | D67: 07010206-530 | E67: Coon Creek | F67: Individual | G67: 1.75 | H67: lbs/day | I67: Very High | J67: 0.61 | K67: TP | L67: Daily | M67: 2009 | N67: 2016-09-26 | P67: =CONCATENATE(C67, "-", E67, "-","(", D67,")", "-",K67) -> Coon Creek Watershed District WRAPS 2010-Coon Creek-(07010206-530)-TP
A68: Anoka county of | B68: MS400066 | C68: Coon Creek Watershed District WRAPS 2010 | D68: 07010206-530 | E68: Coon Creek | F68: Individual | G68: 0.86 | H68: lbs/day | I68: High | J68: 0.47 | K68: TP | L68: Daily | M68: 2009 | N68: 2016-09-26 | P68: Coon Creek Watershed District WRAPS 2010-Coon Creek-(07010206-530)-TP
A69: Anoka county of | B69: MS400066 | C69: Coon Creek Watershed District WRAPS 2010 | D69: 07010206-530 | E69: Coon Creek | F69: Individual | G69: 0.53 | H69: lbs/day | I69: Mid | J69: 0.19 | K69: TP | L69: Daily | M69: 2009 | N69: 2016-09-26 | P69: Coon Creek Watershed District WRAPS 2010-Coon Creek-(07010206-530)-TP
A70: Anoka county of | B70: MS400066 | C70: Coon Creek Watershed District WRAPS 2010 | D70: 07010206-530 | E70: Coon Creek | F70: Individual | G70: 0.33 | H70: lbs/day | I70: Low | J70: 0 | K70: TP | L70: Daily | M70: 2009 | N70: 2016-09-26 | P70: Coon Creek Watershed District WRAPS 2010-Coon Creek-(07010206-530)-TP
A71: Anoka county of | B71: MS400066 | C71: Coon Creek Watershed District WRAPS 2010 | D71: 07010206-530 | E71: Coon Creek | F71: Individual | G71: 0.16 | H71: lbs/day | I71: Very Low | J71: 0 | K71: TP | L71: Daily | M71: 2009 | N71: 2016-09-26 | P71: Coon Creek Watershed District WRAPS 2010-Coon Creek-(07010206-530)-TP
A72: Anoka county of | B72: MS400066 | C72: Coon Creek Watershed District WRAPS 2010 | D72: 07010206-530 | E72: Coon Creek | F72: Individual | G72: 0.26 | H72: tons/day | I72: Very High | J72: 0.49 | K72: TSS | L72: Daily | M72: 2009 | N72: 2016-09-26 | P72: Coon Creek Watershed District WRAPS 2010-Coon Creek-(07010206-530)-TSS
A73: Anoka county of | B73: MS400066 | C73: Coon Creek Watershed District WRAPS 2010 | D73: 07010206-530 | E73: Coon Creek | F73: Individual | G73: 0.13 | H73: tons/day | I73: High | J73: 0.49 | K73: TSS | L73: Daily | M73: 2009 | N73: 2016-09-26 | P73: Coon Creek Watershed District WRAPS 2010-Coon Creek-(07010206-530)-TSS
A74: Anoka county of | B74: MS400066 | C74: Coon Creek Watershed District WRAPS 2010 | D74: 07010206-530 | E74: Coon Creek | F74: Individual | G74: 0.08 | H74: tons/day | I74: Mid | J74: 0.08 | K74: TSS | L74: Daily | M74: 2009 | N74: 2016-09-26 | P74: Coon Creek Watershed District WRAPS 2010-Coon Creek-(07010206-530)-TSS
A75: Anoka county of | B75: MS400066 | C75: Coon Creek Watershed District WRAPS 2010 | D75: 07010206-530 | E75: Coon Creek | F75: Individual | G75: 0.03 | H75: tons/day | I75: Low | J75: 0 | K75: TSS | L75: Daily | M75: 2009 | N75: 2016-09-26 | P75: Coon Creek Watershed District WRAPS 2010-Coon Creek-(07010206-530)-TSS
A76: Anoka county of | B76: MS400066 | C76: Coon Creek Watershed District WRAPS 2010 | D76: 07010206-530 | E76: Coon Creek | F76: Individual | G76: 0.01 | H76: tons/day | I76: Very Low | J76: 0 | K76: TSS | L76: Daily | M76: 2009 | N76: 2016-09-26 | P76: Coon Creek Watershed District WRAPS 2010-Coon Creek-(07010206-530)-TSS
A77: Anoka county of | B77: MS400066 | C77: Coon Creek Watershed District WRAPS 2010 | D77: 07010206-557 | E77: County Ditch 17 | F77: Individual | G77: 1.94 | H77: billions of organisms/day | I77: Very High | J77: 0.58 | K77: E. coli | L77: Daily | M77: 2012 | N77: 2016-09-26 | P77: Coon Creek Watershed District WRAPS 2010-County Ditch 17-(07010206-557)-E. coli
A78: Anoka county of | B78: MS400066 | C78: Coon Creek Watershed District WRAPS 2010 | D78: 07010206-557 | E78: County Ditch 17 | F78: Individual | G78: 1.29 | H78: billions of organisms/day | I78: High | J78: 0.55 | K78: E. coli | L78: Daily | M78: 2012 | N78: 2016-09-26 | P78: Coon Creek Watershed District WRAPS 2010-County Ditch 17-(07010206-557)-E. coli
A79: Anoka county of | B79: MS400066 | C79: Coon Creek Watershed District WRAPS 2010 | D79: 07010206-557 | E79: County Ditch 17 | F79: Individual | G79: 0.97 | H79: billions of organisms/day | I79: Mid | J79: 0.65 | K79: E. coli | L79: Daily | M79: 2012 | N79: 2016-09-26 | P79: Coon Creek Watershed District WRAPS 2010-County Ditch 17-(07010206-557)-E. coli
A80: Anoka county of | B80: MS400066 | C80: Coon Creek Watershed District WRAPS 2010 | D80: 07010206-557 | E80: County Ditch 17 | F80: Individual | G80: 0.77 | H80: billions of organisms/day | I80: Low | J80: 0.15 | K80: E. coli | L80: Daily | M80: 2012 | N80: 2016-09-26 | P80: Coon Creek Watershed District WRAPS 2010-County Ditch 17-(07010206-557)-E. coli
A81: Anoka county of | B81: MS400066 | C81: Coon Creek Watershed District WRAPS 2010 | D81: 07010206-557 | E81: County Ditch 17 | F81: Individual | G81: 0.52 | H81: billions of organisms/day | I81: Very Low | J81: 0.26 | K81: E. coli | L81: Daily | M81: 2012 | N81: 2016-09-26 | P81: Coon Creek Watershed District WRAPS 2010-County Ditch 17-(07010206-557)-E. coli
A82: Anoka county of | B82: MS400066 | C82: Coon Creek Watershed District WRAPS 2010 | D82: 07010206-557 | E82: County Ditch 17 | F82: Individual | G82: 0.34 | H82: lbs/day | I82: Very High | J82: Not Available | K82: TP | L82: Daily | M82: 2012 | N82: 2016-09-26 | P82: Coon Creek Watershed District WRAPS 2010-County Ditch 17-(07010206-557)-TP
A83: Anoka county of | B83: MS400066 | C83: Coon Creek Watershed District WRAPS 2010 | D83: 07010206-557 | E83: County Ditch 17 | F83: Individual | G83: 0.23 | H83: lbs/day | I83: High | J83: 0.06 | K83: TP | L83: Daily | M83: 2012 | N83: 2016-09-26 | P83: Coon Creek Watershed District WRAPS 2010-County Ditch 17-(07010206-557)-TP
A84: Anoka county of | B84: MS400066 | C84: Coon Creek Watershed District WRAPS 2010 | D84: 07010206-557 | E84: County Ditch 17 | F84: Individual | G84: 0.17 | H84: lbs/day | I84: Mid | J84: 0.35 | K84: TP | L84: Daily | M84: 2012 | N84: 2016-09-26 | P84: Coon Creek Watershed District WRAPS 2010-County Ditch 17-(07010206-557)-TP
A85: Anoka county of | B85: MS400066 | C85: Coon Creek Watershed District WRAPS 2010 | D85: 07010206-557 | E85: County Ditch 17 | F85: Individual | G85: 0.13 | H85: lbs/day | I85: Low | J85: 0.23 | K85: TP | L85: Daily | M85: 2012 | N85: 2016-09-26 | P85: Coon Creek Watershed District WRAPS 2010-County Ditch 17-(07010206-557)-TP
A86: Anoka county of | B86: MS400066 | C86: Coon Creek Watershed District WRAPS 2010 | D86: 07010206-557 | E86: County Ditch 17 | F86: Individual | G86: 0.08 | H86: lbs/day | I86: Very Low | J86: 0 | K86: TP | L86: Daily | M86: 2012 | N86: 2016-09-26 | P86: Coon Creek Watershed District WRAPS 2010-County Ditch 17-(07010206-557)-TP
A87: Anoka county of | B87: MS400066 | C87: Coon Creek Watershed District WRAPS 2010 | D87: 07010206-558 | E87: Sand Creek | F87: Individual | G87: 3.78 | H87: billions of organisms/day | I87: Very High | J87: 0 | K87: E. coli | L87: Daily | M87: 2010 | N87: 2016-09-26 | P87: Coon Creek Watershed District WRAPS 2010-Sand Creek-(07010206-558)-E. coli
A88: Anoka county of | B88: MS400066 | C88: Coon Creek Watershed District WRAPS 2010 | D88: 07010206-558 | E88: Sand Creek | F88: Individual | G88: 4.43 | H88: billions of organisms/day | I88: High | J88: 0.77 | K88: E. coli | L88: Daily | M88: 2010 | N88: 2016-09-27 | P88: Coon Creek Watershed District WRAPS 2010-Sand Creek-(07010206-558)-E. coli
A89: Anoka county of | B89: MS400066 | C89: Coon Creek Watershed District WRAPS 2010 | D89: 07010206-558 | E89: Sand Creek | F89: Individual | G89: 2.8 | H89: billions of organisms/day | I89: Mid | J89: ** | K89: E. coli | L89: Daily | M89: 2010 | N89: 2016-09-28 | P89: Coon Creek Watershed District WRAPS 2010-Sand Creek-(07010206-558)-E. coli
A90: Anoka county of | B90: MS400066 | C90: Coon Creek Watershed District WRAPS 2010 | D90: 07010206-558 | E90: Sand Creek | F90: Individual | G90: 1.7 | H90: billions of organisms/day | I90: Low | J90: 0.61 | K90: E. coli | L90: Daily | M90: 2010 | N90: 2016-09-29 | P90: Coon Creek Watershed District WRAPS 2010-Sand Creek-(07010206-558)-E. coli
A91: Anoka county of | B91: MS400066 | C91: Coon Creek Watershed District WRAPS 2010 | D91: 07010206-558 | E91: Sand Creek | F91: Individual | G91: 0.5 | H91: billions of organisms/day | I91: Very Low | J91: 0.89 | K91: E. coli | L91: Daily | M91: 2010 | N91: 2016-09-30 | P91: Coon Creek Watershed District WRAPS 2010-Sand Creek-(07010206-558)-E. coli
A92: Anoka county of | B92: MS400066 | C92: Coon Creek Watershed District WRAPS 2010 | D92: 07010206-558 | E92: Sand Creek | F92: Individual | G92: 1.36 | H92: lbs/day | I92: Very High | J92: 0.33 | K92: TP | L92: Daily | M92: 2010 | N92: 2016-09-26 | P92: Coon Creek Watershed District WRAPS 2010-Sand Creek-(07010206-558)-TP
A93: Anoka county of | B93: MS400066 | C93: Coon Creek Watershed District WRAPS 2010 | D93: 07010206-558 | E93: Sand Creek | F93: Individual | G93: 0.66 | H93: lbs/day | I93: High | J93: 0 | K93: TP | L93: Daily | M93: 2010 | N93: 2016-09-27 | P93: Coon Creek Watershed District WRAPS 2010-Sand Creek-(07010206-558)-TP
A94: Anoka county of | B94: MS400066 | C94: Coon Creek Watershed District WRAPS 2010 | D94: 07010206-558 | E94: Sand Creek | F94: Individual | G94: 0.37 | H94: lbs/day | I94: Mid | J94: 0 | K94: TP | L94: Daily | M94: 2010 | N94: 2016-09-28 | P94: Coon Creek Watershed District WRAPS 2010-Sand Creek-(07010206-558)-TP
A95: Anoka county of | B95: MS400066 | C95: Coon Creek Watershed District WRAPS 2010 | D95: 07010206-558 | E95: Sand Creek | F95: Individual | G95: 0.21 | H95: lbs/day | I95: Low | J95: 0 | K95: TP | L95: Daily | M95: 2010 | N95: 2016-09-29 | P95: Coon Creek Watershed District WRAPS 2010-Sand Creek-(07010206-558)-TP
A96: Anoka county of | B96: MS400066 | C96: Coon Creek Watershed District WRAPS 2010 | D96: 07010206-558 | E96: Sand Creek | F96: Individual | G96: 0.06 | H96: lbs/day | I96: Very Low | J96: 0 | K96: TP | L96: Daily | M96: 2010 | N96: 2016-09-30 | P96: Coon Creek Watershed District WRAPS 2010-Sand Creek-(07010206-558)-TP
A97: Anoka county of | B97: MS400066 | C97: Coon Creek Watershed District WRAPS 2010 | D97: 07010206-558 | E97: Sand Creek | F97: Individual | G97: 0.2 | H97: tons/day | I97: Very High | J97: 0.1 | K97: TSS | L97: Daily | M97: 2010 | N97: 2016-09-26 | P97: Coon Creek Watershed District WRAPS 2010-Sand Creek-(07010206-558)-TSS
A98: Anoka county of | B98: MS400066 | C98: Coon Creek Watershed District WRAPS 2010 | D98: 07010206-558 | E98: Sand Creek | F98: Individual | G98: 0.07 | H98: tons/day | I98: High | J98: 0 | K98: TSS | L98: Daily | M98: 2010 | N98: 2016-09-27 | P98: Coon Creek Watershed District WRAPS 2010-Sand Creek-(07010206-558)-TSS
A99: Anoka county of | B99: MS400066 | C99: Coon Creek Watershed District WRAPS 2010 | D99: 07010206-558 | E99: Sand Creek | F99: Individual | G99: 0.01 | H99: tons/day | I99: Mid | J99: 0 | K99: TSS | L99: Daily | M99: 2010 | N99: 2016-09-28 | P99: Coon Creek Watershed District WRAPS 2010-Sand Creek-(07010206-558)-TSS
A100: Anoka county of | B100: MS400066 | C100: Coon Creek Watershed District WRAPS 2010 | D100: 07010206-558 | E100: Sand Creek | F100: Individual | G100: 0.02 | H100: tons/day | I100: Low | J100: 0 | K100: TSS | L100: Daily | M100: 2010 | N100: 2016-09-29 | P100: Coon Creek Watershed District WRAPS 2010-Sand Creek-(07010206-558)-TSS
A101: Anoka county of | B101: MS400066 | C101: Coon Creek Watershed District WRAPS 2010 | D101: 07010206-558 | E101: Sand Creek | F101: Individual | G101: 0.004 | H101: tons/day | I101: Very Low | J101: 0 | K101: TSS | L101: Daily | M101: 2010 | N101: 2016-09-30 | P101: Coon Creek Watershed District WRAPS 2010-Sand Creek-(07010206-558)-TSS
A102: Anoka county of | B102: MS400066 | C102: Coon Creek Watershed District WRAPS 2010 | D102: 07010206-594 | E102: Unnamed ditch | F102: Individual | G102: 0.8 | H102: billions of organisms/day | I102: Very High | J102: 0.48 | K102: E. coli | L102: Daily | M102: 2012 | N102: 2016-09-26 | P102: Coon Creek Watershed District WRAPS 2010-Unnamed ditch-(07010206-594)-E. coli
A103: Anoka county of | B103: MS400066 | C103: Coon Creek Watershed District WRAPS 2010 | D103: 07010206-594 | E103: Unnamed ditch | F103: Individual | G103: 0.53 | H103: billions of organisms/day | I103: High | J103: 0.53 | K103: E. coli | L103: Daily | M103: 2012 | N103: 2016-09-26 | P103: Coon Creek Watershed District WRAPS 2010-Unnamed ditch-(07010206-594)-E. coli
A104: Anoka county of | B104: MS400066 | C104: Coon Creek Watershed District WRAPS 2010 | D104: 07010206-594 | E104: Unnamed ditch | F104: Individual | G104: 0.4 | H104: billions of organisms/day | I104: Mid | J104: 0.54 | K104: E. coli | L104: Daily | M104: 2012 | N104: 2016-09-26 | P104: Coon Creek Watershed District WRAPS 2010-Unnamed ditch-(07010206-594)-E. coli
A105: Anoka county of | B105: MS400066 | C105: Coon Creek Watershed District WRAPS 2010 | D105: 07010206-594 | E105: Unnamed ditch | F105: Individual | G105: 0.32 | H105: billions of organisms/day | I105: Low | J105: 0.52 | K105: E. coli | L105: Daily | M105: 2012 | N105: 2016-09-26 | P105: Coon Creek Watershed District WRAPS 2010-Unnamed ditch-(07010206-594)-E. coli
A106: Anoka county of | B106: MS400066 | C106: Coon Creek Watershed District WRAPS 2010 | D106: 07010206-594 | E106: Unnamed ditch | F106: Individual | G106: 0.21 | H106: billions of organisms/day | I106: Very Low | J106: 0.53 | K106: E. coli | L106: Daily | M106: 2012 | N106: 2016-09-26 | P106: Coon Creek Watershed District WRAPS 2010-Unnamed ditch-(07010206-594)-E. coli
A107: Anoka county of | B107: MS400066 | C107: Coon Creek Watershed District WRAPS 2010 | D107: 07010206-594 | E107: Unnamed ditch | F107: Individual | G107: 0.14 | H107: lbs/day | I107: Very High | J107: 0.09 | K107: TP | L107: Daily | M107: 2012 | N107: 2016-09-26 | P107: Coon Creek Watershed District WRAPS 2010-Unnamed ditch-(07010206-594)-TP
A108: Anoka county of | B108: MS400066 | C108: Coon Creek Watershed District WRAPS 2010 | D108: 07010206-594 | E108: Unnamed ditch | F108: Individual | G108: 0.05 | H108: lbs/day | I108: High | J108: 0 | K108: TP | L108: Daily | M108: 2012 | N108: 2016-09-26 | P108: Coon Creek Watershed District WRAPS 2010-Unnamed ditch-(07010206-594)-TP
A109: Anoka county of | B109: MS400066 | C109: Coon Creek Watershed District WRAPS 2010 | D109: 07010206-594 | E109: Unnamed ditch | F109: Individual | G109: 0.06 | H109: lbs/day | I109: Mid | J109: 0 | K109: TP | L109: Daily | M109: 2012 | N109: 2016-09-26 | P109: Coon Creek Watershed District WRAPS 2010-Unnamed ditch-(07010206-594)-TP
A110: Anoka county of | B110: MS400066 | C110: Coon Creek Watershed District WRAPS 2010 | D110: 07010206-594 | E110: Unnamed ditch | F110: Individual | G110: 0.04 | H110: lbs/day | I110: Low | J110: 0 | K110: TP | L110: Daily | M110: 2012 | N110: 2016-09-26 | P110: Coon Creek Watershed District WRAPS 2010-Unnamed ditch-(07010206-594)-TP
A111: Anoka county of | B111: MS400066 | C111: Coon Creek Watershed District WRAPS 2010 | D111: 07010206-594 | E111: Unnamed ditch | F111: Individual | G111: 0.03 | H111: lbs/day | I111: Very Low | J111: 0 | K111: TP | L111: Daily | M111: 2012 | N111: 2016-09-26 | P111: Coon Creek Watershed District WRAPS 2010-Unnamed ditch-(07010206-594)-TP
A112: Anoka county of | B112: MS400066 | C112: Coon Creek Watershed District WRAPS 2010 | D112: 07010206-594 | E112: Unnamed ditch | F112: Individual | G112: 0.02 | H112: tons/day | I112: Very High | J112: 0.56 | K112: TSS | L112: Daily | M112: 2012 | N112: 2016-09-26 | P112: Coon Creek Watershed District WRAPS 2010-Unnamed ditch-(07010206-594)-TSS
A113: Anoka county of | B113: MS400066 | C113: Coon Creek Watershed District WRAPS 2010 | D113: 07010206-594 | E113: Unnamed ditch | F113: Individual | G113: 0.01 | H113: tons/day | I113: High | J113: 0 | K113: TSS | L113: Daily | M113: 2012 | N113: 2016-09-26 | P113: Coon Creek Watershed District WRAPS 2010-Unnamed ditch-(07010206-594)-TSS
A114: Anoka county of | B114: MS400066 | C114: Coon Creek Watershed District WRAPS 2010 | D114: 07010206-594 | E114: Unnamed ditch | F114: Individual | G114: 0.01 | H114: tons/day | I114: Mid | J114: 0.25 | K114: TSS | L114: Daily | M114: 2012 | N114: 2016-09-26 | P114: Coon Creek Watershed District WRAPS 2010-Unnamed ditch-(07010206-594)-TSS
A115: Anoka county of | B115: MS400066 | C115: Coon Creek Watershed District WRAPS 2010 | D115: 07010206-594 | E115: Unnamed ditch | F115: Individual | G115: 0.003 | H115: tons/day | I115: Low | J115: 0 | K115: TSS | L115: Daily | M115: 2012 | N115: 2016-09-26 | P115: Coon Creek Watershed District WRAPS 2010-Unnamed ditch-(07010206-594)-TSS
A116: Anoka county of | B116: MS400066 | C116: Coon Creek Watershed District WRAPS 2010 | D116: 07010206-594 | E116: Unnamed ditch | F116: Individual | G116: 0.004 | H116: tons/day | I116: Very Low | J116: 0 | K116: TSS | L116: Daily | M116: 2012 | N116: 2016-09-26 | P116: Coon Creek Watershed District WRAPS 2010-Unnamed ditch-(07010206-594)-TSS
A117: Anoka county of | B117: MS400066 | C117: Golden Lake TMDL | D117: 02-0045-00 | E117: Golden | F117: Individual | G117: 3.8 | H117: lbs/yr | I117: Not Applicable | J117: Not Available | K117: TP | L117: Annual | M117: 2004 | N117: 2009-09-30 | P117: Golden Lake TMDL-Golden-(02-0045-00)-TP
A118: Anoka county of | B118: MS400066 | C118: Golden Lake TMDL | D118: 02-0045-00 | E118: Golden | F118: Individual | G118: 0.01 | H118: lbs/day | I118: Not Applicable | J118: Not Available | K118: TP | L118: Daily | M118: 2004 | N118: 2009-09-30 | P118: Golden Lake TMDL-Golden-(02-0045-00)-TP
A119: Anoka county of | B119: MS400066 | C119: Hardwood Creek Impaired Biota and Dissolved Oxygen TMDL | D119: 07010206-596 | E119: Hardwood Creek | F119: Categorical | G119: 413 | H119: lbs/day | I119: Very High | J119: Not Available | K119: TSS | L119: Daily | M119: 2002 | N119: 2009-06-18 | P119: Hardwood Creek Impaired Biota and Dissolved Oxygen TMDL-Hardwood Creek-(07010206-596)-TSS
A120: Anoka county of | B120: MS400066 | C120: Hardwood Creek Impaired Biota and Dissolved Oxygen TMDL | D120: 07010206-596 | E120: Hardwood Creek | F120: Categorical | G120: 100 | H120: lbs/day | I120: High | J120: Not Available | K120: TSS | L120: Daily | M120: 2002 | N120: 2009-06-18 | P120: Hardwood Creek Impaired Biota and Dissolved Oxygen TMDL-Hardwood Creek-(07010206-596)-TSS
A121: Anoka county of | B121: MS400066 | C121: Hardwood Creek Impaired Biota and Dissolved Oxygen TMDL | D121: 07010206-596 | E121: Hardwood Creek | F121: Categorical | G121: 38 | H121: lbs/day | I121: Mid | J121: Not Available | K121: TSS | L121: Daily | M121: 2002 | N121: 2009-06-18 | P121: Hardwood Creek Impaired Biota and Dissolved Oxygen TMDL-Hardwood Creek-(07010206-596)-TSS
A122: Anoka county of | B122: MS400066 | C122: Hardwood Creek Impaired Biota and Dissolved Oxygen TMDL | D122: 07010206-596 | E122: Hardwood Creek | F122: Categorical | G122: 17 | H122: lbs/day | I122: Low | J122: Not Available | K122: TSS | L122: Daily | M122: 2002 | N122: 2009-06-18 | P122: Hardwood Creek Impaired Biota and Dissolved Oxygen TMDL-Hardwood Creek-(07010206-596)-TSS
A123: Anoka county of | B123: MS400066 | C123: Hardwood Creek Impaired Biota and Dissolved Oxygen TMDL | D123: 07010206-596 | E123: Hardwood Creek | F123: Categorical | G123: 6 | H123: lbs/day | I123: Very Low | J123: Not Available | K123: TSS | L123: Daily | M123: 2002 | N123: 2009-06-18 | P123: Hardwood Creek Impaired Biota and Dissolved Oxygen TMDL-Hardwood Creek-(07010206-596)-TSS
A124: Anoka county of | B124: MS400066 | C124: Hardwood Creek Impaired Biota and Dissolved Oxygen TMDL | D124: 07010206-596 | E124: Hardwood Creek | F124: Categorical | G124: 104 | H124: lbs/day | I124: Very High | J124: Not Available | K124: Total Oxygen Demand | L124: Daily | M124: 2002 | N124: 2009-06-18 | P124: Hardwood Creek Impaired Biota and Dissolved Oxygen TMDL-Hardwood Creek-(07010206-596)-Total Oxygen Demand
A125: Anoka county of | B125: MS400066 | C125: Hardwood Creek Impaired Biota and Dissolved Oxygen TMDL | D125: 07010206-596 | E125: Hardwood Creek | F125: Categorical | G125: 25 | H125: lbs/day | I125: High | J125: Not Available | K125: Total Oxygen Demand | L125: Daily | M125: 2002 | N125: 2009-06-18 | P125: Hardwood Creek Impaired Biota and Dissolved Oxygen TMDL-Hardwood Creek-(07010206-596)-Total Oxygen Demand
A126: Anoka county of | B126: MS400066 | C126: Hardwood Creek Impaired Biota and Dissolved Oxygen TMDL | D126: 07010206-596 | E126: Hardwood Creek | F126: Categorical | G126: 10 | H126: lbs/day | I126: Mid | J126: Not Available | K126: Total Oxygen Demand | L126: Daily | M126: 2002 | N126: 2009-06-18 | P126: Hardwood Creek Impaired Biota and Dissolved Oxygen TMDL-Hardwood Creek-(07010206-596)-Total Oxygen Demand
A127: Anoka county of | B127: MS400066 | C127: Hardwood Creek Impaired Biota and Dissolved Oxygen TMDL | D127: 07010206-596 | E127: Hardwood Creek | F127: Categorical | G127: 5 | H127: lbs/day | I127: Low | J127: Not Available | K127: Total Oxygen Demand | L127: Daily | M127: 2002 | N127: 2009-06-18 | P127: Hardwood Creek Impaired Biota and Dissolved Oxygen TMDL-Hardwood Creek-(07010206-596)-Total Oxygen Demand
A128: Anoka county of | B128: MS400066 | C128: Hardwood Creek Impaired Biota and Dissolved Oxygen TMDL | D128: 07010206-596 | E128: Hardwood Creek | F128: Categorical | G128: 2 | H128: lbs/day | I128: Very Low | J128: Not Available | K128: Total Oxygen Demand | L128: Daily | M128: 2002 | N128: 2009-06-18 | P128: Hardwood Creek Impaired Biota and Dissolved Oxygen TMDL-Hardwood Creek-(07010206-596)-Total Oxygen Demand
A129: Anoka county of | B129: MS400066 | C129: Lino Lakes Chain (Metro) | D129: 02-0005-00 | E129: George Watch | F129: Categorical | G129: 0.42 | H129: lbs/day | I129: Not Applicable | J129: 0 | K129: TP | L129: Daily | M129: 2003 | N129: 2013-09-27 | P129: Lino Lakes Chain (Metro)-George Watch-(02-0005-00)-TP
A130: Anoka county of | B130: MS400066 | C130: Lino Lakes Chain (Metro) | D130: 02-0007-00 | E130: Marshan | F130: Categorical | G130: 1.54 | H130: lbs/day | I130: Not Applicable | J130: 0 | K130: TP | L130: Daily | M130: 2003 | N130: 2013-09-27 | P130: Lino Lakes Chain (Metro)-Marshan-(02-0007-00)-TP
A131: Anoka county of | B131: MS400066 | C131: Lino Lakes Chain (Metro) | D131: 02-0008-00 | E131: Rice | F131: Categorical | G131: 1.21 | H131: lbs/day | I131: Not Applicable | J131: 0 | K131: TP | L131: Daily | M131: 2003 | N131: 2013-09-27 | P131: =CONCATENATE(C131, "-", E131, "-","(", D131,")", "-",K131) -> Lino Lakes Chain (Metro)-Rice-(02-0008-00)-TP
A132: Anoka county of | B132: MS400066 | C132: Lino Lakes Chain (Metro) | D132: 02-0009-00 | E132: Reshanau | F132: Categorical | G132: 0.03 | H132: lbs/day | I132: Not Applicable | J132: 0 | K132: TP | L132: Daily | M132: 2003 | N132: 2013-09-27 | P132: Lino Lakes Chain (Metro)-Reshanau-(02-0009-00)-TP
A133: Anoka county of | B133: MS400066 | C133: Lino Lakes Chain (Metro) | D133: 02-0013-00 | E133: Baldwin | F133: Categorical | G133: 0.22 | H133: lbs/day | I133: Not Applicable | J133: 0 | K133: TP | L133: Daily | M133: 2003 | N133: 2013-09-27 | P133: Lino Lakes Chain (Metro)-Baldwin-(02-0013-00)-TP
A134: Anoka county of | B134: MS400066 | C134: Peltier/Centerville Lake Nutrient Impairment TMDL | D134: 02-0004-00 | E134: Peltier | F134: Categorical | G134: 583 | H134: lbs/growing season (see notes) | I134: Not Applicable | J134: 0.618 | K134: TP | L134: Annual | M134: 2001 | N134: 2013-11-25 | O134: TMDL based on June through September growing season (122 days) | P134: Peltier/Centerville Lake Nutrient Impairment TMDL-Peltier-(02-0004-00)-TP
A135: Anoka county of | B135: MS400066 | C135: Peltier/Centerville Lake Nutrient Impairment TMDL | D135: 02-0004-00 | E135: Peltier | F135: Categorical | G135: 4.78 | H135: lbs/day (see notes) | I135: Not Applicable | J135: 0.6176 | K135: TP | L135: Daily | M135: 2001 | N135: 2013-11-25 | O135: TMDL based on June through September growing season (122 days) | P135: Peltier/Centerville Lake Nutrient Impairment TMDL-Peltier-(02-0004-00)-TP
A136: Anoka county of | B136: MS400066 | C136: Peltier/Centerville Lake Nutrient Impairment TMDL | D136: 02-0006-00 | E136: Centerville | F136: Categorical | G136: 26 | H136: lbs/growing season (see notes) | I136: Not Applicable | J136: 0 | K136: TP | L136: Annual | M136: 2001 | N136: 2013-11-25 | O136: TMDL based on June through September growing season (122 days) | P136: Peltier/Centerville Lake Nutrient Impairment TMDL-Centerville-(02-0006-00)-TP
A137: Anoka county of | B137: MS400066 | C137: Peltier/Centerville Lake Nutrient Impairment TMDL | D137: 02-0006-00 | E137: Centerville | F137: Categorical | G137: 0.21 | H137: lbs/day (see notes) | I137: Not Applicable | J137: 0 | K137: TP | L137: Daily | M137: 2001 | N137: 2013-11-25 | O137: TMDL based on June through September growing season (122 days) | P137: Peltier/Centerville Lake Nutrient Impairment TMDL-Centerville-(02-0006-00)-TP
A138: Anoka county of | B138: MS400066 | C138: Rice Creek Watershed District Southwest Urban Lakes - Excess Nutrients TMDL | D138: 02-0075-01 | E138: East Moore | F138: Categorical | G138: 97.5 | H138: kg/yr | I138: Not Applicable | J138: 0.2574 | K138: TP | L138: Annual | M138: 2003 | N138: 2015-02-26 | P138: Rice Creek Watershed District Southwest Urban Lakes - Excess Nutrients TMDL-East Moore-(02-0075-01)-TP
A139: Anoka county of | B139: MS400066 | C139: Rice Creek Watershed District Southwest Urban Lakes - Excess Nutrients TMDL | D139: 02-0075-01 | E139: East Moore | F139: Categorical | G139: 0.267 | H139: kg/day | I139: Not Applicable | J139: 0.2574 | K139: TP | L139: Daily | M139: 2003 | N139: 2015-02-26 | P139: Rice Creek Watershed District Southwest Urban Lakes - Excess Nutrients TMDL-East Moore-(02-0075-01)-TP
A140: Anoka county of | B140: MS400066 | C140: Rice Creek Watershed District Southwest Urban Lakes - Excess Nutrients TMDL | D140: 62-0069-00 | E140: Pike | F140: Categorical | G140: 371.1 | H140: kg/yr | I140: Not Applicable | J140: 0.4588 | K140: TP | L140: Annual | M140: 2003 | N140: 2015-02-26 | P140: Rice Creek Watershed District Southwest Urban Lakes - Excess Nutrients TMDL-Pike-(62-0069-00)-TP
A141: Anoka county of | B141: MS400066 | C141: Rice Creek Watershed District Southwest Urban Lakes - Excess Nutrients TMDL | D141: 62-0069-00 | E141: Pike | F141: Categorical | G141: 1.016 | H141: kg/day | I141: Not Applicable | J141: 0.4588 | K141: TP | L141: Daily | M141: 2003 | N141: 2015-02-26 | P141: Rice Creek Watershed District Southwest Urban Lakes - Excess Nutrients TMDL-Pike-(62-0069-00)-TP
A142: Anoka county of | B142: MS400066 | C142: Rum River WRAPS 2013 | D142: 07010207-521 | E142: Cedar Creek | F142: Individual | G142: 0.1 | H142: billions of organisms/day | I142: Very High | J142: 0.58 | K142: E. coli | L142: Daily | M142: 2006 | N142: 2017-09-26 | O142: Overall reduction | P142: Rum River WRAPS 2013-Cedar Creek-(07010207-521)-E. coli
A143: Anoka county of | B143: MS400066 | C143: Rum River WRAPS 2013 | D143: 07010207-521 | E143: Cedar Creek | F143: Individual | G143: 0.05 | H143: billions of organisms/day | I143: High | J143: 0.58 | K143: E. coli | L143: Daily | M143: 2006 | N143: 2017-09-26 | O143: Overall reduction | P143: Rum River WRAPS 2013-Cedar Creek-(07010207-521)-E. coli
A144: Anoka county of | B144: MS400066 | C144: Rum River WRAPS 2013 | D144: 07010207-521 | E144: Cedar Creek | F144: Individual | G144: 0.03 | H144: billions of organisms/day | I144: Mid | J144: 0.58 | K144: E. coli | L144: Daily | M144: 2006 | N144: 2017-09-26 | O144: Overall reduction | P144: Rum River WRAPS 2013-Cedar Creek-(07010207-521)-E. coli
A145: Anoka county of | B145: MS400066 | C145: Rum River WRAPS 2013 | D145: 07010207-521 | E145: Cedar Creek | F145: Individual | G145: 0.02 | H145: billions of organisms/day | I145: Low | J145: 0.58 | K145: E. coli | L145: Daily | M145: 2006 | N145: 2017-09-26 | O145: Overall reduction | P145: Rum River WRAPS 2013-Cedar Creek-(07010207-521)-E. coli
A146: Anoka county of | B146: MS400066 | C146: Rum River WRAPS 2013 | D146: 07010207-521 | E146: Cedar Creek | F146: Individual | G146: 0.01 | H146: billions of organisms/day | I146: Very Low | J146: 0.58 | K146: E. coli | L146: Daily | M146: 2006 | N146: 2017-09-26 | O146: Overall reduction | P146: Rum River WRAPS 2013-Cedar Creek-(07010207-521)-E. coli
A147: Anoka county of | B147: MS400066 | C147: Silver (West) Lake (Metro) | D147: 62-0083-00 | E147: Silver | F147: Categorical | G147: 201 | H147: lbs/yr | I147: Not Applicable | J147: 0.166 | K147: TP | L147: Annual | M147: 2002 | N147: 2010-07-29 | P147: Silver (West) Lake (Metro)-Silver-(62-0083-00)-TP
A148: Anoka county of | B148: MS400066 | C148: Silver (West) Lake (Metro) | D148: 62-0083-00 | E148: Silver | F148: Categorical | G148: 0.55 | H148: lbs/day | I148: Not Applicable | J148: 0.166 | K148: TP | L148: Daily | M148: 2002 | N148: 2010-07-29 | P148: Silver (West) Lake (Metro)-Silver-(62-0083-00)-TP
A149: Anoka county of | B149: MS400066 | C149: South Metro Mississippi TSS TMDL | D149: 07040001-531 | E149: Mississippi River | F149: Categorical | G149: 154 | H149: lbs/acre/year | I149: Not Applicable | J149: 0 | K149: TSS | L149: Annual | M149: Not Applicable | N149: 2016-04-26 | P149: South Metro Mississippi TSS TMDL-Mississippi River-(07040001-531)-TSS
A150: Anoka county of | B150: MS400066 | C150: Twin Cities Metro Area Chloride TMDL and Management Plan | D150: 62-0067-02 | E150: South Long | F150: Categorical | G150: 21534261 | H150: lbs/yr | I150: Not Applicable | J150: Not Available | K150: Chloride | L150: Annual | M150: Not Applicable | N150: 2016-06-09 | P150: Twin Cities Metro Area Chloride TMDL and Management Plan-South Long-(62-0067-02)-Chloride
A151: Anoka county of | B151: MS400066 | C151: Twin Cities Metro Area Chloride TMDL and Management Plan | D151: 62-0067-02 | E151: South Long | F151: Categorical | G151: 58998 | H151: lbs/day | I151: Not Applicable | J151: Not Available | K151: Chloride | L151: Daily | M151: Not Applicable | N151: 2016-06-09 | P151: Twin Cities Metro Area Chloride TMDL and Management Plan-South Long-(62-0067-02)-Chloride
A152: Anoka county of | B152: MS400066 | C152: Twin Cities Metro Area Chloride TMDL and Management Plan | D152: 62-0069-00 | E152: Pike | F152: Categorical | G152: 2943971 | H152: lbs/yr | I152: Not Applicable | J152: Not Available | K152: Chloride | L152: Annual | M152: Not Applicable | N152: 2016-06-09 | P152: Twin Cities Metro Area Chloride TMDL and Management Plan-Pike-(62-0069-00)-Chloride
A153: Anoka county of | B153: MS400066 | C153: Twin Cities Metro Area Chloride TMDL and Management Plan | D153: 62-0069-00 | E153: Pike | F153: Categorical | G153: 8066 | H153: lbs/day | I153: Not Applicable | J153: Not Available | K153: Chloride | L153: Daily | M153: Not Applicable | N153: 2016-06-09 | P153: Twin Cities Metro Area Chloride TMDL and Management Plan-Pike-(62-0069-00)-Chloride
A154: Anoka county of | B154: MS400066 | C154: Twin Cities Metro Area Chloride TMDL and Management Plan | D154: 62-0083-00 | E154: Silver | F154: Categorical | G154: 303409 | H154: lbs/yr | I154: Not Applicable | J154: Not Available | K154: Chloride | L154: Annual | M154: Not Applicable | N154: 2016-06-09 | P154: Twin Cities Metro Area Chloride TMDL and Management Plan-Silver-(62-0083-00)-Chloride
A155: Anoka county of | B155: MS400066 | C155: Twin Cities Metro Area Chloride TMDL and Management Plan | D155: 62-0083-00 | E155: Silver | F155: Categorical | G155: 831 | H155: lbs/day | I155: Not Applicable | J155: Not Available | K155: Chloride | L155: Daily | M155: Not Applicable | N155: 2016-06-09 | P155: Twin Cities Metro Area Chloride TMDL and Management Plan-Silver-(62-0083-00)-Chloride
A156: Anoka county of | B156: MS400066 | C156: Upper Mississippi River Bacteria TMDL | D156: 07010206-584 | E156: Rice Creek | F156: Categorical | G156: 396 | H156: billions of organisms/day | I156: Very High | J156: 0 | K156: E. coli | L156: Daily | M156: 2010 | N156: Original TMDL approved 11/20/2014, modification approved 6/5/2019 | P156: Upper Mississippi River Bacteria TMDL-Rice Creek-(07010206-584)-E. coli
A157: Anoka county of | B157: MS400066 | C157: Upper Mississippi River Bacteria TMDL | D157: 07010206-584 | E157: Rice Creek | F157: Categorical | G157: 96.8 | H157: billions of organisms/day | I157: High | J157: 0.048 | K157: E. coli | L157: Daily | M157: 2010 | N157: Original TMDL approved 11/20/2014, modification approved 6/5/2019 | P157: Upper Mississippi River Bacteria TMDL-Rice Creek-(07010206-584)-E. coli
A158: Anoka county of | B158: MS400066 | C158: Upper Mississippi River Bacteria TMDL | D158: 07010206-584 | E158: Rice Creek | F158: Categorical | G158: 23.6 | H158: billions of organisms/day | I158: Mid | J158: 0.44 | K158: E. coli | L158: Daily | M158: 2010 | N158: Original TMDL approved 11/20/2014, modification approved 6/5/2019 | P158: Upper Mississippi River Bacteria TMDL-Rice Creek-(07010206-584)-E. coli
A159: Anoka county of | B159: MS400066 | C159: Upper Mississippi River Bacteria TMDL | D159: 07010206-584 | E159: Rice Creek | F159: Categorical | G159: 4.93 | H159: billions of organisms/day | I159: Low | J159: Insufficient Data | K159: E. coli | L159: Daily | M159: 2010 | N159: Original TMDL approved 11/20/2014, modification approved 6/5/2019 | P159: Upper Mississippi River Bacteria TMDL-Rice Creek-(07010206-584)-E. coli
A160: Anoka county of | B160: MS400066 | C160: Upper Mississippi River Bacteria TMDL | D160: 07010206-584 | E160: Rice Creek | F160: Categorical | G160: 1.75 | H160: billions of organisms/day | I160: Very Low | J160: Insufficient Data | K160: E. coli | L160: Daily | M160: 2010 | N160: Original TMDL approved 11/20/2014, modification approved 6/5/2019 | P160: Upper Mississippi River Bacteria TMDL-Rice Creek-(07010206-584)-E. coli
A161: Anoka county of | B161: MS400066 | C161: Vadnais Lake Area WMO | D161: 62-0043-00 | E161: Wilkinson | F161: Individual | G161: 0.1 | H161: lbs/yr | I161: Not Applicable | J161: 0.76 | K161: TP | L161: Annual | M161: 2007 | N161: 2014-04-03 | P161: Vadnais Lake Area WMO-Wilkinson-(62-0043-00)-TP
A162: Anoka county of | B162: MS400066 | C162: Vadnais Lake Area WMO | D162: 62-0043-00 | E162: Wilkinson | F162: Individual | G162: 0.001 | H162: lbs/day | I162: Not Applicable | J162: 0.76 | K162: TP | L162: Daily | M162: 2007 | N162: 2014-04-03 | P162: Vadnais Lake Area WMO-Wilkinson-(62-0043-00)-TP
A163: Apple Valley city of | B163: MS400074 | C163: Crystal, Keller, and Lee Lakes Nutrient Impairment TMDL | D163: 19-0025-00 | E163: Keller | F163: Individual | G163: 114 | H163: lbs/yr | I163: Not Applicable | J163: 0.5328 | K163: TP | L163: Annual | M163: 2008 | N163: 2011-09-30 | P163: Crystal, Keller, and Lee Lakes Nutrient Impairment TMDL-Keller-(19-0025-00)-TP
A164: Apple Valley city of | B164: MS400074 | C164: Crystal, Keller, and Lee Lakes Nutrient Impairment TMDL | D164: 19-0025-00 | E164: Keller | F164: Individual | G164: 0.312 | H164: lbs/day | I164: Not Applicable | J164: 0.5328 | K164: TP | L164: Daily | M164: 2008 | N164: 2011-09-30 | P164: Crystal, Keller, and Lee Lakes Nutrient Impairment TMDL-Keller-(19-0025-00)-TP
A165: Apple Valley city of | B165: MS400074 | C165: Long and Farquar Lakes (Metro) | D165: 19-0022-00 | E165: Long | F165: Individual | G165: 48 | H165: lbs/yr | I165: Not Applicable | J165: 0.8395 | K165: TP | L165: Annual | M165: 2005 | N165: 2009-04-08 | P165: Long and Farquar Lakes (Metro)-Long-(19-0022-00)-TP
A166: Apple Valley city of | B166: MS400074 | C166: Long and Farquar Lakes (Metro) | D166: 19-0022-00 | E166: Long | F166: Individual | G166: 0.13 | H166: lbs/day | I166: Not Applicable | J166: 0.8415 | K166: TP | L166: Daily | M166: 2005 | N166: 2009-04-08 | P166: Long and Farquar Lakes (Metro)-Long-(19-0022-00)-TP
A167: Apple Valley city of | B167: MS400074 | C167: Long and Farquar Lakes (Metro) | D167: 19-0023-00 | E167: Farquar | F167: Individual | G167: 63 | H167: lbs/yr | I167: Not Applicable | J167: 0.7284 | K167: TP | L167: Annual | M167: 2005 | N167: 2009-04-08 | P167: Long and Farquar Lakes (Metro)-Farquar-(19-0023-00)-TP
A168: Apple Valley city of | B168: MS400074 | C168: Long and Farquar Lakes (Metro) | D168: 19-0023-00 | E168: Farquar | F168: Individual | G168: 0.17 | H168: lbs/day | I168: Not Applicable | J168: 0.7344 | K168: TP | L168: Daily | M168: 2005 | N168: 2009-04-08 | P168: Long and Farquar Lakes (Metro)-Farquar-(19-0023-00)-TP
A169: Apple Valley city of | B169: MS400074 | C169: Lower Mississippi River Basin-Fecal Coliform TMDL | D169: 07040001-507 | E169: Vermillion River | F169: Categorical | G169: 5.99 | H169: trillions of organisms/month | I169: Very High | J169: Not Available | K169: Fecal Coliform | L169: Monthly | M169: 1988 | N169: 2006-04-05 | P169: Lower Mississippi River Basin-Fecal Coliform TMDL-Vermillion River-(07040001-507)-Fecal Coliform
A170: Apple Valley city of | B170: MS400074 | C170: Lower Mississippi River Basin-Fecal Coliform TMDL | D170: 07040001-507 | E170: Vermillion River | F170: Categorical | G170: 1.57 | H170: trillions of organisms/month | I170: High | J170: Not Available | K170: Fecal Coliform | L170: Monthly | M170: 1988 | N170: 2006-04-05 | P170: Lower Mississippi River Basin-Fecal Coliform TMDL-Vermillion River-(07040001-507)-Fecal Coliform
A171: Apple Valley city of | B171: MS400074 | C171: Lower Mississippi River Basin-Fecal Coliform TMDL | D171: 07040001-507 | E171: Vermillion River | F171: Categorical | G171: 0.36 | H171: trillions of organisms/month | I171: Mid | J171: Not Available | K171: Fecal Coliform | L171: Monthly | M171: 1988 | N171: 2006-04-05 | P171: Lower Mississippi River Basin-Fecal Coliform TMDL-Vermillion River-(07040001-507)-Fecal Coliform
A172: Apple Valley city of | B172: MS400074 | C172: Lower Mississippi River Basin-Fecal Coliform TMDL | D172: 07040001-507 | E172: Vermillion River | F172: Categorical | G172: ** | H172: trillions of organisms/month | I172: Low | J172: Not Available | K172: Fecal Coliform | L172: Monthly | M172: 1988 | N172: 2006-04-05 | P172: Lower Mississippi River Basin-Fecal Coliform TMDL-Vermillion River-(07040001-507)-Fecal Coliform
A173: Apple Valley city of | B173: MS400074 | C173: Lower Mississippi River Basin-Fecal Coliform TMDL | D173: 07040001-507 | E173: Vermillion River | F173: Categorical | G173: ** | H173: trillions of organisms/month | I173: Very Low | J173: Not Available | K173: Fecal Coliform | L173: Monthly | M173: 1988 | N173: 2006-04-05 | P173: Lower Mississippi River Basin-Fecal Coliform TMDL-Vermillion River-(07040001-507)-Fecal Coliform
A174: Apple Valley city of | B174: MS400074 | C174: Lower Mississippi River Basin-Fecal Coliform TMDL | D174: 07040001-692 (previous waterbody ID: 07040001-506) | E174: Vermillion River | F174: Categorical | G174: 8.62 | H174: trillions of organisms/month | I174: Very High | J174: Not Available | K174: Fecal Coliform | L174: Monthly | M174: 1988 | N174: 2006-04-05 | P174: Lower Mississippi River Basin-Fecal Coliform TMDL-Vermillion River-(07040001-692 (previous waterbody ID: 07040001-506))-Fecal Coliform
A175: Apple Valley city of | B175: MS400074 | C175: Lower Mississippi River Basin-Fecal Coliform TMDL | D175: 07040001-692 (previous waterbody ID: 07040001-506) | E175: Vermillion River | F175: Categorical | G175: 3.09 | H175: trillions of organisms/month | I175: High | J175: Not Available | K175: Fecal Coliform | L175: Monthly | M175: 1988 | N175: 2006-04-05 | P175: Lower Mississippi River Basin-Fecal Coliform TMDL-Vermillion River-(07040001-692 (previous waterbody ID: 07040001-506))-Fecal Coliform
A176: Apple Valley city of | B176: MS400074 | C176: Lower Mississippi River Basin-Fecal Coliform TMDL | D176: 07040001-692 (previous waterbody ID: 07040001-506) | E176: Vermillion River | F176: Categorical | G176: 1.57 | H176: trillions of organisms/month | I176: Mid | J176: Not Available | K176: Fecal Coliform | L176: Monthly | M176: 1988 | N176: 2006-04-05 | P176: Lower Mississippi River Basin-Fecal Coliform TMDL-Vermillion River-(07040001-692 (previous waterbody ID: 07040001-506))-Fecal Coliform
A177: Apple Valley city of | B177: MS400074 | C177: Lower Mississippi River Basin-Fecal Coliform TMDL | D177: 07040001-692 (previous waterbody ID: 07040001-506) | E177: Vermillion River | F177: Categorical | G177: 0.3 | H177: trillions of organisms/month | I177: Low | J177: Not Available | K177: Fecal Coliform | L177: Monthly | M177: 1988 | N177: 2006-04-05 | P177: Lower Mississippi River Basin-Fecal Coliform TMDL-Vermillion River-(07040001-692 (previous waterbody ID: 07040001-506))-Fecal Coliform
A178: Apple Valley city of | B178: MS400074 | C178: Lower Mississippi River Basin-Fecal Coliform TMDL | D178: 07040001-692 (previous waterbody ID: 07040001-506) | E178: Vermillion River | F178: Categorical | G178: ** | H178: trillions of organisms/month | I178: Very Low | J178: Not Available | K178: Fecal Coliform | L178: Monthly | M178: 1988 | N178: 2006-04-05 | P178: Lower Mississippi River Basin-Fecal Coliform TMDL-Vermillion River-(07040001-692 (previous waterbody ID: 07040001-506))-Fecal Coliform
A179: Apple Valley city of | B179: MS400074 | C179: Lower Vermillion River Watershed Turbidity TMDL | D179: 07040001-504 | E179: Vermillion River | F179: Individual | G179: 75 | H179: kg/day | I179: Not Applicable | J179: 0 | K179: TSS | L179: Daily | M179: 2000 | N179: 2009-09-29 | P179: Lower Vermillion River Watershed Turbidity TMDL-Vermillion River-(07040001-504)-TSS
A180: Apple Valley city of | B180: MS400074 | C180: South Metro Mississippi TSS TMDL | D180: 07040001-531 | E180: Mississippi River | F180: Categorical | G180: 154 | H180: lbs/acre/year | I180: Not Applicable | J180: Not Available | K180: TSS | L180: Annual | M180: Not Applicable | N180: 2016-04-26 | P180: South Metro Mississippi TSS TMDL-Mississippi River-(07040001-531)-TSS
A181: Apple Valley city of | B181: MS400074 | C181: Vermillion River Watershed JPO WRAPS 2008 | D181: 19-0021-00 | E181: Alimagnet | F181: Individual | G181: 39.1 | H181: lbs/yr | I181: Not Applicable | J181: 0.4406 | K181: TP | L181: Annual | M181: 2010 | N181: 2015-12-21 | P181: Vermillion River Watershed JPO WRAPS 2008-Alimagnet-(19-0021-00)-TP
A182: Apple Valley city of | B182: MS400074 | C182: Vermillion River Watershed JPO WRAPS 2008 | D182: 19-0021-00 | E182: Alimagnet | F182: Individual | G182: 0.11 | H182: lbs/day | I182: Not Applicable | J182: 0.4406 | K182: TP | L182: Daily | M182: 2010 | N182: 2015-12-21 | P182: Vermillion River Watershed JPO WRAPS 2008-Alimagnet-(19-0021-00)-TP
A183: Apple Valley city of | B183: MS400074 | C183: Vermillion River Watershed JPO WRAPS 2008 | D183: 19-0349-00 | E183: Unnamed | F183: Individual | G183: 381 | H183: lbs/yr | I183: Not Applicable | J183: 0.3561 | K183: TP | L183: Annual | M183: 2010 | N183: 2015-12-21 | P183: Vermillion River Watershed JPO WRAPS 2008-Unnamed-(19-0349-00)-TP
A184: Apple Valley city of | B184: MS400074 | C184: Vermillion River Watershed JPO WRAPS 2008 | D184: 19-0349-00 | E184: Unnamed | F184: Individual | G184: 1.04 | H184: lbs/day | I184: Not Applicable | J184: 0.358 | K184: TP | L184: Daily | M184: 2010 | N184: 2015-12-21 | P184: Vermillion River Watershed JPO WRAPS 2008-Unnamed-(19-0349-00)-TP
A185: Apple Valley city of | B185: MS400074 | C185: Minnesota River and Greater Blue Earth River TMDL for TSS | D185: 07020012-505 | E185: Minnesota River | F185: Categorical | G185: 119.2 | H185: tons/day | I185: Very High | J185: 0 | K185: TSS | L185: Daily | M185: 2010 | N185: 2020-02-12 | O185: For permitted MS4s, TSS loading does not need to be reduced to meet the WLAs but is not allowed to increase relative to the baseline year of 2010 | P185: Minnesota River and Greater Blue Earth River TMDL for TSS-Minnesota River-(07020012-505)-TSS
A186: Apple Valley city of | B186: MS400074 | C186: Minnesota River and Greater Blue Earth River TMDL for TSS | D186: 07020012-505 | E186: Minnesota River | F186: Categorical | G186: 44.21 | H186: tons/day | I186: High | J186: 0 | K186: TSS | L186: Daily | M186: 2010 | N186: 2020-02-12 | O186: For permitted MS4s, TSS loading does not need to be reduced to meet the WLAs but is not allowed to increase relative to the baseline year of 2010 | P186: Minnesota River and Greater Blue Earth River TMDL for TSS-Minnesota River-(07020012-505)-TSS
A187: Apple Valley city of | B187: MS400074 | C187: Minnesota River and Greater Blue Earth River TMDL for TSS | D187: 07020012-505 | E187: Minnesota River | F187: Categorical | G187: 17.83 | H187: tons/day | I187: Mid | J187: 0 | K187: TSS | L187: Daily | M187: 2010 | N187: 2020-02-12 | O187: For permitted MS4s, TSS loading does not need to be reduced to meet the WLAs but is not allowed to increase relative to the baseline year of 2010 | P187: Minnesota River and Greater Blue Earth River TMDL for TSS-Minnesota River-(07020012-505)-TSS
A188: Apple Valley city of | B188: MS400074 | C188: Minnesota River and Greater Blue Earth River TMDL for TSS | D188: 07020012-505 | E188: Minnesota River | F188: Categorical | G188: 8.12 | H188: tons/day | I188: Low | J188: 0 | K188: TSS | L188: Daily | M188: 2010 | N188: 2020-02-12 | O188: For permitted MS4s, TSS loading does not need to be reduced to meet the WLAs but is not allowed to increase relative to the baseline year of 2010 | P188: Minnesota River and Greater Blue Earth River TMDL for TSS-Minnesota River-(07020012-505)-TSS
A189: Apple Valley city of | B189: MS400074 | C189: Minnesota River and Greater Blue Earth River TMDL for TSS | D189: 07020012-505 | E189: Minnesota River | F189: Categorical | G189: 3.9 | H189: tons/day | I189: Very Low | J189: 0 | K189: TSS | L189: Daily | M189: 2010 | N189: 2020-02-12 | O189: For permitted MS4s, TSS loading does not need to be reduced to meet the WLAs but is not allowed to increase relative to the baseline year of 2010 | P189: Minnesota River and Greater Blue Earth River TMDL for TSS-Minnesota River-(07020012-505)-TSS
A190: Arden Hills city of | B190: MS400002 | C190: Rice Creek Watershed District Southwest Urban Lakes - Excess Nutrients TMDL | D190: 62-0058-00 | E190: Little Johanna | F190: Categorical | G190: 201.6 | H190: kg/yr | I190: Not Applicable | J190: 0.4703 | K190: TP | L190: Annual | M190: 2003 | N190: 2015-02-26 | P190: Rice Creek Watershed District Southwest Urban Lakes - Excess Nutrients TMDL-Little Johanna-(62-0058-00)-TP
A191: Arden Hills city of | B191: MS400002 | C191: Rice Creek Watershed District Southwest Urban Lakes - Excess Nutrients TMDL | D191: 62-0058-00 | E191: Little Johanna | F191: Categorical | G191: 0.552 | H191: kg/day | I191: Not Applicable | J191: 0.4703 | K191: TP | L191: Daily | M191: 2003 | N191: 2015-02-26 | P191: Rice Creek Watershed District Southwest Urban Lakes - Excess Nutrients TMDL-Little Johanna-(62-0058-00)-TP
A192: Arden Hills city of | B192: MS400002 | C192: Rice Creek Watershed District Southwest Urban Lakes - Excess Nutrients TMDL | D192: 62-0067-00 | E192: Long | F192: Categorical | G192: 167.4 | H192: kg/yr | I192: Not Applicable | J192: 0.4556 | K192: TP | L192: Annual | M192: 2003 | N192: 2015-02-26 | P192: Rice Creek Watershed District Southwest Urban Lakes - Excess Nutrients TMDL-Long-(62-0067-00)-TP
A193: Arden Hills city of | B193: MS400002 | C193: Rice Creek Watershed District Southwest Urban Lakes - Excess Nutrients TMDL | D193: 62-0067-00 | E193: Long | F193: Categorical | G193: 0.459 | H193: kg/day | I193: Not Applicable | J193: 0.4556 | K193: TP | L193: Daily | M193: 2003 | N193: 2015-02-26 | P193: Rice Creek Watershed District Southwest Urban Lakes - Excess Nutrients TMDL-Long-(62-0067-00)-TP
A194: Arden Hills city of | B194: MS400002 | C194: Rice Creek Watershed District Southwest Urban Lakes - Excess Nutrients TMDL | D194: 62-0069-00 | E194: Pike | F194: Categorical | G194: 371.1 | H194: kg/yr | I194: Not Applicable | J194: 0.4588 | K194: TP | L194: Annual | M194: 2003 | N194: 2015-02-26 | P194: Rice Creek Watershed District Southwest Urban Lakes - Excess Nutrients TMDL-Pike-(62-0069-00)-TP
A195: Arden Hills city of | B195: MS400002 | C195: Rice Creek Watershed District Southwest Urban Lakes - Excess Nutrients TMDL | D195: 62-0069-00 | E195: Pike | F195: Categorical | G195: 1.016 | H195: kg/day | I195: Not Applicable | J195: 0.4588 | K195: TP | L195: Daily | M195: 2003 | N195: 2015-02-26 | P195: =CONCATENATE(C195, "-", E195, "-","(", D195,")", "-",K195) -> Rice Creek Watershed District Southwest Urban Lakes - Excess Nutrients TMDL-Pike-(62-0069-00)-TP
A196: Arden Hills city of | B196: MS400002 | C196: Rice Creek Watershed District Southwest Urban Lakes - Excess Nutrients TMDL | D196: 62-0071-00 | E196: Valentine | F196: Categorical | G196: 229.5 | H196: kg/yr | I196: Not Applicable | J196: 0.3102 | K196: TP | L196: Annual | M196: 2003 | N196: 2015-02-26 | P196: Rice Creek Watershed District Southwest Urban Lakes - Excess Nutrients TMDL-Valentine-(62-0071-00)-TP
A197: Arden Hills city of | B197: MS400002 | C197: Rice Creek Watershed District Southwest Urban Lakes - Excess Nutrients TMDL | D197: 62-0071-00 | E197: Valentine | F197: Categorical | G197: 0.629 | H197: kg/day | I197: Not Applicable | J197: 0.3102 | K197: TP | L197: Daily | M197: 2003 | N197: 2015-02-26 | P197: Rice Creek Watershed District Southwest Urban Lakes - Excess Nutrients TMDL-Valentine-(62-0071-00)-TP
A198: Arden Hills city of | B198: MS400002 | C198: South Metro Mississippi TSS TMDL | D198: 07040001-531 | E198: Mississippi River | F198: Categorical | G198: 154 | H198: lbs/acre/year | I198: Not Applicable | J198: 0 | K198: TSS | L198: Annual | M198: Not Applicable | N198: 2016-04-26 | P198: South Metro Mississippi TSS TMDL-Mississippi River-(07040001-531)-TSS
A199: Arden Hills city of | B199: MS400002 | C199: Twin Cities Metro Area Chloride TMDL and Management Plan | D199: 62-0058-00 | E199: Little Johanna | F199: Categorical | G199: 1003879 | H199: lbs/yr | I199: Not Applicable | J199: Not Available | K199: Chloride | L199: Annual | M199: Not Applicable | N199: 2016-06-09 | P199: Twin Cities Metro Area Chloride TMDL and Management Plan-Little Johanna-(62-0058-00)-Chloride
A200: Arden Hills city of | B200: MS400002 | C200: Twin Cities Metro Area Chloride TMDL and Management Plan | D200: 62-0058-00 | E200: Little Johanna | F200: Categorical | G200: 2750 | H200: lbs/day | I200: Not Applicable | J200: Not Available | K200: Chloride | L200: Daily | M200: Not Applicable | N200: 2016-06-09 | P200: Twin Cities Metro Area Chloride TMDL and Management Plan-Little Johanna-(62-0058-00)-Chloride
... 4300 more rows

Sheet DT
A1: Requires Compliance Schedule | B1: Requires Compliance Schedule | C1: Meeting WLAs | D1: Meeting WLAs
A2: =IF('Applicable WLAs determination'!B9="No",'Applicable WLAs determination'!$A9,"") ->  | C2: =IF('Applicable WLAs determination'!B9="Yes",'Applicable WLAs determination'!$A9,"") -> 
A3: =IF('Applicable WLAs determination'!B10="No",'Applicable WLAs determination'!$A10,"") ->  | C3: =IF('Applicable WLAs determination'!B10="Yes",'Applicable WLAs determination'!$A10,"") -> 
A4: =IF('Applicable WLAs determination'!B11="No",'Applicable WLAs determination'!$A11,"") ->  | C4: =IF('Applicable WLAs determination'!B11="Yes",'Applicable WLAs determination'!$A11,"") -> 
A5: =IF('Applicable WLAs determination'!B12="No",'Applicable WLAs determination'!$A12,"") ->  | C5: =IF('Applicable WLAs determination'!B12="Yes",'Applicable WLAs determination'!$A12,"") -> 
A6: =IF('Applicable WLAs determination'!B13="No",'Applicable WLAs determination'!$A13,"") ->  | C6: =IF('Applicable WLAs determination'!B13="Yes",'Applicable WLAs determination'!$A13,"") -> 
A7: =IF('Applicable WLAs determination'!B14="No",'Applicable WLAs determination'!$A14,"") ->  | C7: =IF('Applicable WLAs determination'!B14="Yes",'Applicable WLAs determination'!$A14,"") -> 
A8: =IF('Applicable WLAs determination'!B15="No",'Applicable WLAs determination'!$A15,"") ->  | C8: =IF('Applicable WLAs determination'!B15="Yes",'Applicable WLAs determination'!$A15,"") -> 
A9: =IF('Applicable WLAs determination'!B16="No",'Applicable WLAs determination'!$A16,"") ->  | C9: =IF('Applicable WLAs determination'!B16="Yes",'Applicable WLAs determination'!$A16,"") -> 
A10: =IF('Applicable WLAs determination'!B17="No",'Applicable WLAs determination'!$A17,"") ->  | C10: =IF('Applicable WLAs determination'!B17="Yes",'Applicable WLAs determination'!$A17,"") -> 
A11: =IF('Applicable WLAs determination'!B18="No",'Applicable WLAs determination'!$A18,"") ->  | C11: =IF('Applicable WLAs determination'!B18="Yes",'Applicable WLAs determination'!$A18,"") -> 
A12: =IF('Applicable WLAs determination'!B19="No",'Applicable WLAs determination'!$A19,"") ->  | C12: =IF('Applicable WLAs determination'!B19="Yes",'Applicable WLAs determination'!$A19,"") -> 
A13: =IF('Applicable WLAs determination'!B20="No",'Applicable WLAs determination'!$A20,"") ->  | C13: =IF('Applicable WLAs determination'!B20="Yes",'Applicable WLAs determination'!$A20,"") -> 
A14: =IF('Applicable WLAs determination'!B21="No",'Applicable WLAs determination'!$A21,"") ->  | C14: =IF('Applicable WLAs determination'!B21="Yes",'Applicable WLAs determination'!$A21,"") -> 
A15: =IF('Applicable WLAs determination'!B22="No",'Applicable WLAs determination'!$A22,"") ->  | C15: =IF('Applicable WLAs determination'!B22="Yes",'Applicable WLAs determination'!$A22,"") -> 
A16: =IF('Applicable WLAs determination'!B23="No",'Applicable WLAs determination'!$A23,"") ->  | C16: =IF('Applicable WLAs determination'!B23="Yes",'Applicable WLAs determination'!$A23,"") -> 
A17: =IF('Applicable WLAs determination'!B24="No",'Applicable WLAs determination'!$A24,"") ->  | C17: =IF('Applicable WLAs determination'!B24="Yes",'Applicable WLAs determination'!$A24,"") -> 
A18: =IF('Applicable WLAs determination'!B25="No",'Applicable WLAs determination'!$A25,"") ->  | C18: =IF('Applicable WLAs determination'!B25="Yes",'Applicable WLAs determination'!$A25,"") -> 
A19: =IF('Applicable WLAs determination'!B26="No",'Applicable WLAs determination'!$A26,"") ->  | C19: =IF('Applicable WLAs determination'!B26="Yes",'Applicable WLAs determination'!$A26,"") -> 
A20: =IF('Applicable WLAs determination'!B27="No",'Applicable WLAs determination'!$A27,"") ->  | C20: =IF('Applicable WLAs determination'!B27="Yes",'Applicable WLAs determination'!$A27,"") -> 
A21: =IF('Applicable WLAs determination'!B28="No",'Applicable WLAs determination'!$A28,"") ->  | C21: =IF('Applicable WLAs determination'!B28="Yes",'Applicable WLAs determination'!$A28,"") -> 
A22: =IF('Applicable WLAs determination'!B29="No",'Applicable WLAs determination'!$A29,"") ->  | C22: =IF('Applicable WLAs determination'!B29="Yes",'Applicable WLAs determination'!$A29,"") -> 
A23: =IF('Applicable WLAs determination'!B30="No",'Applicable WLAs determination'!$A30,"") ->  | C23: =IF('Applicable WLAs determination'!B30="Yes",'Applicable WLAs determination'!$A30,"") -> 
A24: =IF('Applicable WLAs determination'!B31="No",'Applicable WLAs determination'!$A31,"") ->  | C24: =IF('Applicable WLAs determination'!B31="Yes",'Applicable WLAs determination'!$A31,"") -> 
A25: =IF('Applicable WLAs determination'!B32="No",'Applicable WLAs determination'!$A32,"") ->  | C25: =IF('Applicable WLAs determination'!B32="Yes",'Applicable WLAs determination'!$A32,"") -> 
A26: =IF('Applicable WLAs determination'!B33="No",'Applicable WLAs determination'!$A33,"") ->  | C26: =IF('Applicable WLAs determination'!B33="Yes",'Applicable WLAs determination'!$A33,"") -> 
A27: =IF('Applicable WLAs determination'!B34="No",'Applicable WLAs determination'!$A34,"") ->  | C27: =IF('Applicable WLAs determination'!B34="Yes",'Applicable WLAs determination'!$A34,"") -> 
A28: =IF('Applicable WLAs determination'!B35="No",'Applicable WLAs determination'!$A35,"") ->  | C28: =IF('Applicable WLAs determination'!B35="Yes",'Applicable WLAs determination'!$A35,"") -> 
A29: =IF('Applicable WLAs determination'!B36="No",'Applicable WLAs determination'!$A36,"") ->  | C29: =IF('Applicable WLAs determination'!B36="Yes",'Applicable WLAs determination'!$A36,"") -> 
A30: =IF('Applicable WLAs determination'!B37="No",'Applicable WLAs determination'!$A37,"") ->  | C30: =IF('Applicable WLAs determination'!B37="Yes",'Applicable WLAs determination'!$A37,"") -> 
A31: =IF('Applicable WLAs determination'!B38="No",'Applicable WLAs determination'!$A38,"") ->  | C31: =IF('Applicable WLAs determination'!B38="Yes",'Applicable WLAs determination'!$A38,"") -> 
A32: =IF('Applicable WLAs determination'!B39="No",'Applicable WLAs determination'!$A39,"") ->  | C32: =IF('Applicable WLAs determination'!B39="Yes",'Applicable WLAs determination'!$A39,"") -> 
A33: =IF('Applicable WLAs determination'!B40="No",'Applicable WLAs determination'!$A40,"") ->  | C33: =IF('Applicable WLAs determination'!B40="Yes",'Applicable WLAs determination'!$A40,"") -> 
A34: =IF('Applicable WLAs determination'!B41="No",'Applicable WLAs determination'!$A41,"") ->  | C34: =IF('Applicable WLAs determination'!B41="Yes",'Applicable WLAs determination'!$A41,"") -> 
A35: =IF('Applicable WLAs determination'!B42="No",'Applicable WLAs determination'!$A42,"") ->  | C35: =IF('Applicable WLAs determination'!B42="Yes",'Applicable WLAs determination'!$A42,"") -> 
A36: =IF('Applicable WLAs determination'!B43="No",'Applicable WLAs determination'!$A43,"") ->  | C36: =IF('Applicable WLAs determination'!B43="Yes",'Applicable WLAs determination'!$A43,"") -> 
A37: =IF('Applicable WLAs determination'!B44="No",'Applicable WLAs determination'!$A44,"") ->  | C37: =IF('Applicable WLAs determination'!B44="Yes",'Applicable WLAs determination'!$A44,"") -> 
A38: =IF('Applicable WLAs determination'!B45="No",'Applicable WLAs determination'!$A45,"") ->  | C38: =IF('Applicable WLAs determination'!B45="Yes",'Applicable WLAs determination'!$A45,"") -> 
A39: =IF('Applicable WLAs determination'!B46="No",'Applicable WLAs determination'!$A46,"") ->  | C39: =IF('Applicable WLAs determination'!B46="Yes",'Applicable WLAs determination'!$A46,"") -> 
A40: =IF('Applicable WLAs determination'!B47="No",'Applicable WLAs determination'!$A47,"") ->  | C40: =IF('Applicable WLAs determination'!B47="Yes",'Applicable WLAs determination'!$A47,"") -> 
A41: =IF('Applicable WLAs determination'!B48="No",'Applicable WLAs determination'!$A48,"") ->  | C41: =IF('Applicable WLAs determination'!B48="Yes",'Applicable WLAs determination'!$A48,"") -> 
A42: =IF('Applicable WLAs determination'!B49="No",'Applicable WLAs determination'!$A49,"") ->  | C42: =IF('Applicable WLAs determination'!B49="Yes",'Applicable WLAs determination'!$A49,"") -> 
A43: =IF('Applicable WLAs determination'!B50="No",'Applicable WLAs determination'!$A50,"") ->  | C43: =IF('Applicable WLAs determination'!B50="Yes",'Applicable WLAs determination'!$A50,"") -> 
A44: =IF('Applicable WLAs determination'!B51="No",'Applicable WLAs determination'!$A51,"") ->  | C44: =IF('Applicable WLAs determination'!B51="Yes",'Applicable WLAs determination'!$A51,"") -> 
A45: =IF('Applicable WLAs determination'!B52="No",'Applicable WLAs determination'!$A52,"") ->  | C45: =IF('Applicable WLAs determination'!B52="Yes",'Applicable WLAs determination'!$A52,"") -> 
A46: =IF('Applicable WLAs determination'!B53="No",'Applicable WLAs determination'!$A53,"") ->  | C46: =IF('Applicable WLAs determination'!B53="Yes",'Applicable WLAs determination'!$A53,"") -> 
A47: =IF('Applicable WLAs determination'!B54="No",'Applicable WLAs determination'!$A54,"") ->  | C47: =IF('Applicable WLAs determination'!B54="Yes",'Applicable WLAs determination'!$A54,"") -> 
A48: =IF('Applicable WLAs determination'!B55="No",'Applicable WLAs determination'!$A55,"") ->  | C48: =IF('Applicable WLAs determination'!B55="Yes",'Applicable WLAs determination'!$A55,"") -> 
A49: =IF('Applicable WLAs determination'!B56="No",'Applicable WLAs determination'!$A56,"") ->  | C49: =IF('Applicable WLAs determination'!B56="Yes",'Applicable WLAs determination'!$A56,"") -> 
A50: =IF('Applicable WLAs determination'!B57="No",'Applicable WLAs determination'!$A57,"") ->  | C50: =IF('Applicable WLAs determination'!B57="Yes",'Applicable WLAs determination'!$A57,"") -> 
A51: =IF('Applicable WLAs determination'!B58="No",'Applicable WLAs determination'!$A58,"") ->  | C51: =IF('Applicable WLAs determination'!B58="Yes",'Applicable WLAs determination'!$A58,"") -> 
A52: =IF('Applicable WLAs determination'!B59="No",'Applicable WLAs determination'!$A59,"") ->  | C52: =IF('Applicable WLAs determination'!B59="Yes",'Applicable WLAs determination'!$A59,"") -> 
A53: =IF('Applicable WLAs determination'!B60="No",'Applicable WLAs determination'!$A60,"") ->  | C53: =IF('Applicable WLAs determination'!B60="Yes",'Applicable WLAs determination'!$A60,"") -> 
A54: =IF('Applicable WLAs determination'!B61="No",'Applicable WLAs determination'!$A61,"") ->  | C54: =IF('Applicable WLAs determination'!B61="Yes",'Applicable WLAs determination'!$A61,"") -> 
A55: =IF('Applicable WLAs determination'!B62="No",'Applicable WLAs determination'!$A62,"") ->  | C55: =IF('Applicable WLAs determination'!B62="Yes",'Applicable WLAs determination'!$A62,"") -> 
A56: =IF('Applicable WLAs determination'!B63="No",'Applicable WLAs determination'!$A63,"") ->  | C56: =IF('Applicable WLAs determination'!B63="Yes",'Applicable WLAs determination'!$A63,"") -> 
A57: =IF('Applicable WLAs determination'!B64="No",'Applicable WLAs determination'!$A64,"") ->  | C57: =IF('Applicable WLAs determination'!B64="Yes",'Applicable WLAs determination'!$A64,"") -> 
A58: =IF('Applicable WLAs determination'!B65="No",'Applicable WLAs determination'!$A65,"") ->  | C58: =IF('Applicable WLAs determination'!B65="Yes",'Applicable WLAs determination'!$A65,"") -> 
A59: =IF('Applicable WLAs determination'!B66="No",'Applicable WLAs determination'!$A66,"") ->  | C59: =IF('Applicable WLAs determination'!B66="Yes",'Applicable WLAs determination'!$A66,"") -> 
A60: =IF('Applicable WLAs determination'!B67="No",'Applicable WLAs determination'!$A67,"") ->  | C60: =IF('Applicable WLAs determination'!B67="Yes",'Applicable WLAs determination'!$A67,"") -> 
A61: =IF('Applicable WLAs determination'!B68="No",'Applicable WLAs determination'!$A68,"") ->  | C61: =IF('Applicable WLAs determination'!B68="Yes",'Applicable WLAs determination'!$A68,"") -> 
A62: =IF('Applicable WLAs determination'!B69="No",'Applicable WLAs determination'!$A69,"") ->  | C62: =IF('Applicable WLAs determination'!B69="Yes",'Applicable WLAs determination'!$A69,"") -> 
A63: =IF('Applicable WLAs determination'!B70="No",'Applicable WLAs determination'!$A70,"") ->  | C63: =IF('Applicable WLAs determination'!B70="Yes",'Applicable WLAs determination'!$A70,"") -> 
A64: =IF('Applicable WLAs determination'!B71="No",'Applicable WLAs determination'!$A71,"") ->  | C64: =IF('Applicable WLAs determination'!B71="Yes",'Applicable WLAs determination'!$A71,"") -> 
A65: =IF('Applicable WLAs determination'!B72="No",'Applicable WLAs determination'!$A72,"") ->  | C65: =IF('Applicable WLAs determination'!B72="Yes",'Applicable WLAs determination'!$A72,"") -> 
A66: =IF('Applicable WLAs determination'!B73="No",'Applicable WLAs determination'!$A73,"") ->  | C66: =IF('Applicable WLAs determination'!B73="Yes",'Applicable WLAs determination'!$A73,"") -> 
A67: =IF('Applicable WLAs determination'!B74="No",'Applicable WLAs determination'!$A74,"") ->  | C67: =IF('Applicable WLAs determination'!B74="Yes",'Applicable WLAs determination'!$A74,"") -> 
A68: =IF('Applicable WLAs determination'!B75="No",'Applicable WLAs determination'!$A75,"") ->  | C68: =IF('Applicable WLAs determination'!B75="Yes",'Applicable WLAs determination'!$A75,"") -> 
A69: =IF('Applicable WLAs determination'!B76="No",'Applicable WLAs determination'!$A76,"") ->  | C69: =IF('Applicable WLAs determination'!B76="Yes",'Applicable WLAs determination'!$A76,"") -> 
A70: =IF('Applicable WLAs determination'!B77="No",'Applicable WLAs determination'!$A77,"") ->  | C70: =IF('Applicable WLAs determination'!B77="Yes",'Applicable WLAs determination'!$A77,"") -> 
A71: =IF('Applicable WLAs determination'!B78="No",'Applicable WLAs determination'!$A78,"") ->  | C71: =IF('Applicable WLAs determination'!B78="Yes",'Applicable WLAs determination'!$A78,"") -> 
A72: =IF('Applicable WLAs determination'!B79="No",'Applicable WLAs determination'!$A79,"") ->  | C72: =IF('Applicable WLAs determination'!B79="Yes",'Applicable WLAs determination'!$A79,"") -> 
A73: =IF('Applicable WLAs determination'!B80="No",'Applicable WLAs determination'!$A80,"") ->  | C73: =IF('Applicable WLAs determination'!B80="Yes",'Applicable WLAs determination'!$A80,"") -> 
A74: =IF('Applicable WLAs determination'!B81="No",'Applicable WLAs determination'!$A81,"") ->  | C74: =IF('Applicable WLAs determination'!B81="Yes",'Applicable WLAs determination'!$A81,"") -> 
A75: =IF('Applicable WLAs determination'!B82="No",'Applicable WLAs determination'!$A82,"") ->  | C75: =IF('Applicable WLAs determination'!B82="Yes",'Applicable WLAs determination'!$A82,"") -> 
A76: =IF('Applicable WLAs determination'!B83="No",'Applicable WLAs determination'!$A83,"") ->  | C76: =IF('Applicable WLAs determination'!B83="Yes",'Applicable WLAs determination'!$A83,"") -> 
A77: =IF('Applicable WLAs determination'!B84="No",'Applicable WLAs determination'!$A84,"") ->  | C77: =IF('Applicable WLAs determination'!B84="Yes",'Applicable WLAs determination'!$A84,"") -> 
A78: =IF('Applicable WLAs determination'!B85="No",'Applicable WLAs determination'!$A85,"") ->  | C78: =IF('Applicable WLAs determination'!B85="Yes",'Applicable WLAs determination'!$A85,"") -> 
A79: =IF('Applicable WLAs determination'!B86="No",'Applicable WLAs determination'!$A86,"") ->  | C79: =IF('Applicable WLAs determination'!B86="Yes",'Applicable WLAs determination'!$A86,"") -> 
A80: =IF('Applicable WLAs determination'!B87="No",'Applicable WLAs determination'!$A87,"") ->  | C80: =IF('Applicable WLAs determination'!B87="Yes",'Applicable WLAs determination'!$A87,"") -> 
A81: =IF('Applicable WLAs determination'!B88="No",'Applicable WLAs determination'!$A88,"") ->  | C81: =IF('Applicable WLAs determination'!B88="Yes",'Applicable WLAs determination'!$A88,"") -> 
A82: =IF('Applicable WLAs determination'!B89="No",'Applicable WLAs determination'!$A89,"") ->  | C82: =IF('Applicable WLAs determination'!B89="Yes",'Applicable WLAs determination'!$A89,"") -> 
A83: =IF('Applicable WLAs determination'!B90="No",'Applicable WLAs determination'!$A90,"") ->  | C83: =IF('Applicable WLAs determination'!B90="Yes",'Applicable WLAs determination'!$A90,"") -> 
A84: =IF('Applicable WLAs determination'!B91="No",'Applicable WLAs determination'!$A91,"") ->  | C84: =IF('Applicable WLAs determination'!B91="Yes",'Applicable WLAs determination'!$A91,"") -> 
A85: =IF('Applicable WLAs determination'!B92="No",'Applicable WLAs determination'!$A92,"") ->  | C85: =IF('Applicable WLAs determination'!B92="Yes",'Applicable WLAs determination'!$A92,"") -> 
A86: =IF('Applicable WLAs determination'!B93="No",'Applicable WLAs determination'!$A93,"") ->  | C86: =IF('Applicable WLAs determination'!B93="Yes",'Applicable WLAs determination'!$A93,"") -> 
A87: =IF('Applicable WLAs determination'!B94="No",'Applicable WLAs determination'!$A94,"") ->  | C87: =IF('Applicable WLAs determination'!B94="Yes",'Applicable WLAs determination'!$A94,"") -> 
A88: =IF('Applicable WLAs determination'!B95="No",'Applicable WLAs determination'!$A95,"") ->  | C88: =IF('Applicable WLAs determination'!B95="Yes",'Applicable WLAs determination'!$A95,"") -> 
A89: =IF('Applicable WLAs determination'!B96="No",'Applicable WLAs determination'!$A96,"") ->  | C89: =IF('Applicable WLAs determination'!B96="Yes",'Applicable WLAs determination'!$A96,"") -> 
A90: =IF('Applicable WLAs determination'!B97="No",'Applicable WLAs determination'!$A97,"") ->  | C90: =IF('Applicable WLAs determination'!B97="Yes",'Applicable WLAs determination'!$A97,"") -> 
A91: =IF('Applicable WLAs determination'!B98="No",'Applicable WLAs determination'!$A98,"") ->  | C91: =IF('Applicable WLAs determination'!B98="Yes",'Applicable WLAs determination'!$A98,"") -> 
A92: =IF('Applicable WLAs determination'!B99="No",'Applicable WLAs determination'!$A99,"") ->  | C92: =IF('Applicable WLAs determination'!B99="Yes",'Applicable WLAs determination'!$A99,"") -> 
A93: =IF('Applicable WLAs determination'!B100="No",'Applicable WLAs determination'!$A100,"") ->  | C93: =IF('Applicable WLAs determination'!B100="Yes",'Applicable WLAs determination'!$A100,"") -> 
A94: =IF('Applicable WLAs determination'!B101="No",'Applicable WLAs determination'!$A101,"") ->  | C94: =IF('Applicable WLAs determination'!B101="Yes",'Applicable WLAs determination'!$A101,"") -> 
A95: =IF('Applicable WLAs determination'!B102="No",'Applicable WLAs determination'!$A102,"") ->  | C95: =IF('Applicable WLAs determination'!B102="Yes",'Applicable WLAs determination'!$A102,"") -> 
A96: =IF('Applicable WLAs determination'!B103="No",'Applicable WLAs determination'!$A103,"") ->  | C96: =IF('Applicable WLAs determination'!B103="Yes",'Applicable WLAs determination'!$A103,"") -> 
A97: =IF('Applicable WLAs determination'!B104="No",'Applicable WLAs determination'!$A104,"") ->  | C97: =IF('Applicable WLAs determination'!B104="Yes",'Applicable WLAs determination'!$A104,"") -> 
A98: =IF('Applicable WLAs determination'!B105="No",'Applicable WLAs determination'!$A105,"") ->  | C98: =IF('Applicable WLAs determination'!B105="Yes",'Applicable WLAs determination'!$A105,"") -> 
A99: =IF('Applicable WLAs determination'!B106="No",'Applicable WLAs determination'!$A106,"") ->  | C99: =IF('Applicable WLAs determination'!B106="Yes",'Applicable WLAs determination'!$A106,"") -> 
A100: =IF('Applicable WLAs determination'!B107="No",'Applicable WLAs determination'!$A107,"") -> 

Sheet Dropdown lists (hidden)
A1: Structural or non-structural | B1: Permittee Name | C1: Coordinate system | D1: Implementation date | E1: Best management practice (BMP) | F1: Structural/non-structural | G1: BMP ownership | H1: Units | I1: Status | J1: BMP applied | K1: BMP Category | L1: Constructed basin | M1: Filter | N1: Infiltrator | O1: Swale or strip | P1: Manufactured device | Q1: BMP improvement/enhancement/retrofitting | R1: Chemical treatment of stormwater | S1: Eliminate illicit discharge/connection | T1: Establish or enhance ordinances | U1: Impervious disconnection | V1: Improved lawn/turf/vegetation/soil practices | W1: Stormwater reuse | X1: Supplemental employee education/training | Y1: Supplemental public education/outreach | Z1: Enhanced road salt management | AA1: Supplemental street sweeping | AB1: Will another permittee take credit for this BMP? | AC1: Will you be using this BMP for Category 1 or Category 2? (See Cumulative Reductions tab) | AD1: Date when BMP was implemented (yyyy) | AE1: Are you lumping BMPs? | AF1: How are you claiming to meet the WLA? | AG1: Enter applicable units | AH1: Method(s) used to calculate | AI1: Do you have the calculations available on file? | AJ1: Pollutant | AK1: How was WLA determined
A2: Not structural or quantifiable | B2: Albert Lea City MS4 | C2: UTM | D2: 2020 | E2: Constructed_basin | F2: Complete columns H through K | G2: Permittee (you) | H2: pounds reduced | I2: Planned | J2: X | K2: Constructed basin | L2: Dry pond/dry detention pond | M2: Bioretention with underdrain (rain garden) | N2: Bioretention with no underdrain (rain garden) | O2: Dry swale | P2: Drain inlet insert | Q2: BMP expansion | R2: Chemical dosing stations | S2: Increased implementation of illicit discharge detection and elimination ordinance | T2: Pet waste | U2: Rooftop disconnection | V2: Composting/mulching | W2: Cistern | X2: Contaminant source inventory | Y2: Presentations | Z2: Anti-icing | AA2: Increased sweeping frequency | AB2: Yes | AC2: Category 1 | AD2: 2020 | AE2: Yes | AF2: Pounds reduced | AG2: Pounds | AH2: P8 | AI2: Yes | AJ2: Total suspended solids (TSS) | AK2: Proportion of watershed area
A3: Structural and quantifiable | B3: Alexandria City MS4 | C3: Lat-long | D3: 2021 | E3: Filter | F3: Complete columns H through K | G3: Other MS4 permittee | H3: kilograms reduced | I3: Funded | K3: Filter | L3: Flow through pond | M3: Green roof | N3: Infiltration basin | O3: Filter strip/buffer | P3: Geocells | Q3: BMP improvement | R3: Permanent flocculation system | T3: Yard waste/leaves/grass clippings | U3: Pavement disconnection | V3: Yard waste collection | W3: Rain barrel | X3: Employee education | Y3: Publications | Z3: Automated vehicle loading | AA3: Modified sweeping schedule | AB3: No | AC3: Category 2 | AD3: 2019 | AE3: No | AF3: Percent reduction in load | AG3: Percent | AH3: MIDS Calculator | AI3: No | AJ3: Phosphorus | AK3: Proportion of watershed population
B4: Andover City MS4 | C4: Other | D4: 2022 | E4: Infiltrator | F4: Complete columns H through K | G4: Other | H4: % load reduction | I4: Under construction | K4: Infiltrator | L4: Forebay | M4: Iron enhanced filter | N4: Infiltration trench | O4: Grass channel/waterway | P4: Grit chamber | Q4: BMP maintenance | R4: Portable flocculation system | T4: Aquatic buffers | V4: Native planting | W4: Underground vault | X4: Staff training | Y4: Workshops/Clinics | Z4: Calibration of spreaders | AA4: Street sweeping | AB4: Unknown | AD4: 2018 | AF4: Loading rate (lb/ac/yr) | AG4: lb/ac/yr | AH4: MPCA Simple Estimator | AJ4: Nitrate | AK4: Loading based on land use
B5: Anoka City MS4 | C5: NA | D5: 2023 | E5: Swale_or_strip | F5: Complete columns H through K | H5: lbs/acre reduced | I5: Discontinued | K5: Swale_or_strip | L5: Gravel wetland | M5: Media filter | N5: Permeable pavement with no underdrain | O5: Level spreader | P5: Gross pollutant trap | Q5: Clean and repair stormwater structures | T5: Erosion and sediment control | V5: Nutrient (fertilizer) management | W5: Pond | Z5: Road temperature sensors | AA5: Vacuum sweeping | AD5: 2017 | AH5: WINSLAMM | AJ5: Dissolved oxygen | AK5: Modeling
B6: Anoka County MS4 | D6: 2024 | E6: BMP_improvement_enhancement_retrofitting | F6: No ID information needed | H6: kg/ha reduced | K6: BMP improvement/enhancement/retrofitting | L6: Multiple pond system | M6: Perimeter sand filter | N6: Tree trench/tree box/planter | O6: Wet swale | P6: Hood | Q6: Clean pipe and culverts | T6: Open space development | V6: Tree/shrub establishment | W6: Above-ground tank | Z6: Salt brine | AD6: 2016 | AH6: Other | AJ6: Oxygen demand | AK6: Monitoring
B7: Anoka Technical College MS4 | D7: 2025 | E7: Chemical_treatment_of_stormwater | F7: No ID information needed | H7: load (lbs) | K7: Chemical treatment of stormwater | L7: Pond/wetland system | M7: Permeable pavement with underdrain | N7: Underground infiltration | P7: Hydrodynamic separator | Q7: Ditch cleaning | T7: Stormwater control operation and maintenance | V7: Improved irrigation practices | Z7: Salt storage | AD7: 2015 | AK7: Other
B8: Arden Hills City MS4 | D8: entire permit cycle | E8: Eliminate_illicit_discharge_connection | F8: No ID information needed | H8: load (kg) | K8: Eliminate illicit discharge/connection | L8: Wet pond/wet detention pond | M8: Surface sand filter | P8: Manufactured filter | Q8: Erosion repairs | T8: Illicit discharges | V8: Porous turf | Z8: Sand storage | AD8: 2014 | AK8: Not applicable
B9: Austin City MS4 | E9: Enhanced_road_salt_management | F9: No ID information needed | K9: Enhanced road salt management | L9: Wetland | M9: Underground sand filter | P9: Oil/grit separator | Q9: Inspection | T9: Post construction controls | V9: Soil improvement | Z9: Use of treated salt | AD9: 2013
B10: Baxter City MS4 | E10: Establish_ordinance | F10: No ID information needed | K10: Establish ordinance | P10: Pollutant trap | Q10: Repair and line pipes and culverts | T10: Soil/land preservation | V10: Improved turf management | Z10: Winter maintenance education | AD10: 2012
B11: Benton County MS4 | E11: Impervious_disconnection | F11: No ID information needed | K11: Impervious disconnection | P11: SAFL Baffle | T11: Downspout disconnection | AD11: 2011
B12: Big Lake City MS4 | E12: Improved_lawn_turf_vegetation_soil_practices | F12: No ID information needed | K12: Improved lawn care practices | P12: SAFL Baffle sump manhole | T12: Fertilizer application | AD12: 2010
B13: Big Lake Township MS4 | E13: Manufactured_device | F13: No ID information needed | K13: Improved turf/vegetation/soil | P13: Sump | T13: Native plant buffer requirement | AD13: 2009
B14: Birchwood Village City MS4 | E14: Stormwater_reuse | F14: No ID information needed | K14: Manufactured device | P14: Sump manhole | T14: Salt management | AD14: 2008
B15: Bloomington City MS4 | E15: Supplemental_employee_education_training | F15: No ID information needed | K15: Stormwater reuse | P15: Swirl separator | AD15: 2007
B16: Brainerd City MS4 | E16: Supplemental_public_education_outreach | F16: No ID information needed | K16: Supplemental employee education/training | P16: Water quality inlet | AD16: 2006
B17: Brooklyn Center City MS4 | E17: Supplemental_street_sweeping | F17: No ID information needed | K17: Supplemental public education/outreach | AD17: 2005
B18: Buffalo city of MS4 | F18: No ID information needed | K18: Supplemental street sweeping | AD18: 2004
B19: Carver City MS4 | AD19: 2003
B20: Centerville City MS4 | AD20: 2002
B21: Century College MS4 | AD21: 2001
B22: Champlin City MS4 | AD22: 2000
B23: Cloquet City MS4 | AD23: 1999
B24: Columbia Heights City MS4 | AD24: 1998
B25: Coon Creek WD MS4 | AD25: 1997
B26: Apple Valley City MS4 | AD26: 1996
B27: Coon Rapids City MS4 | AD27: 1995
B28: Corcoran City MS4 | AD28: 1994
B29: Cottage Grove City MS4 | AD29: 1993
B30: Credit River Township MS4 | AD30: 1992
B31: Crystal City MS4 | AD31: 1991
B32: Bemidji City MS4 | AD32: 1990
B33: Dakota County Technical College MS4 | AD33: 1989
B34: Dayton City MS4 | AD34: 1988
B35: Deephaven City MS4 | AD35: 1987
B36: Dellwood City MS4 | AD36: 1986
B37: Detroit Lakes City MS4 | AD37: 1985
B38: Burnsville City MS4 | AD38: 1984
B39: Dilworth City MS4 | AD39: 1983
B40: Duluth City MS4 | AD40: 1982
B41: Cambridge City MS4 | AD41: 1981
B42: Capitol Region WD MS4 | AD42: 1980
B43: Eagan City MS4 | AD43: 1979
B44: East Bethel City MS4 | AD44: 1978
B45: East Grand Forks City MS4 | AD45: 1977
B46: Eden Prairie City MS4 | AD46: 1976
B47: Edina City MS4 | AD47: 1975
B48: Elk River City MS4 | AD48: 1974
B49: Elko New Market City MS4 | AD49: 1973
B50: Empire Township MS4 | AD50: 1972
B51: Excelsior City MS4 | AD51: 1971
B52: Fairmont City MS4 | AD52: 1970
B53: Falcon Heights City MS4 | AD53: 1969
B54: Faribault City MS4 | AD54: 1968
B55: Farmington City MS4 | AD55: 1967
B56: Federal Medical Center MS4 | AD56: 1966
B57: Fergus Falls City MS4 | AD57: 1965
B58: Forest Lake MS4 | AD58: 1964
B59: Fridley City MS4 | AD59: 1963
B60: Gem Lake City MS4 | AD60: 1962
B61: Glencoe City MS4 | AD61: 1961
B62: Golden Valley City MS4 | AD62: 1960
B63: Grand Rapids City MS4 | AD63: 1959
B64: Grant City MS4 | AD64: 1958
B65: Greenwood City MS4 | AD65: 1957
B66: Ham Lake City MS4 | AD66: 1956
B67: Hastings City MS4 | AD67: 1955
B68: Haven Township MS4 | AD68: 1954
B69: Haverhill Township MS4 | AD69: 1953
B70: Hennepin County MS4 | AD70: 1952
B71: Hennepin Technical College Brooklyn Pk - MS4 | AD71: 1951
B72: Hennepin Technical College Eden Prairie MS4 | AD72: 1950
B73: Hermantown City MS4
B74: Hibbing City MS4
B75: Hilltop City MS4
B76: Hopkins City MS4
B77: Houston County MS4
B78: Hugo City MS4
B79: Hutchinson City MS4
B80: Independence City MS4
B81: Inver Grove Heights City MS4
B82: Inver Hills Community College MS4
B83: Jackson Township MS4
B84: La Crescent City MS4
B85: La Crescent Township MS4
B86: Lake Elmo City MS4
B87: Lake Superior College - Duluth MS4
B88: Laketown Township MS4
B89: Lakeville City MS4
B90: Landfall City MS4
B91: Lauderdale City MS4
B92: Le Sauk Township MS4
B93: Lexington City MS4
B94: Lilydale City MS4
B95: Lino Lakes City MS4
B96: Litchfield City MS4
B97: Little Canada City MS4
B98: Little Falls City MS4
B99: Long Lake City MS4
B100: Loretto City MS4
B101: Louisville Township MS4
B102: Mahtomedi City MS4
B103: Mankato City MS4
B104: Maple Grove City MS4
B105: Maple Plain City MS4
B106: Maplewood City MS4
B107: Marion Township MS4
B108: Marshall City MS4
B109: Medicine Lake City MS4
B110: Medina City MS4
B111: Mendota City MS4
B112: Mendota Heights City MS4
B113: Metropolitan State University - MS4
B114: Midway Township MS4
B115: Minden Township MS4
B116: Minneapolis Municipal Storm Water
B117: Minnehaha Creek WD MS4
B118: Minnesota Correctional-Lino Lakes MS4
B119: Minnesota Correctional-St Cloud MS4
B120: Minnetonka Beach City MS4
B121: Minnetonka City MS4
B122: Minnetrista City MS4
B123: MN State Community and Tech College-Moorhead
B124: MN State University-Moorhead MS4
B125: MNDOT Metro District MS4
B126: MNDOT Outstate District MS4
B127: Montevideo City MS4
B128: Monticello City MS4
B129: Moorhead City MS4
B130: Morris City MS4
B131: Mound City MS4
B132: Mounds View City MS4
B133: Mpls Community/Technical College MS4
B134: New Brighton City MS4
B135: New Hope City MS4
B136: New Ulm City MS4
B137: Newport City MS4
B138: Normandale Community College MS4
B139: North Branch City MS4
B140: North Hennepin Community College - MS4
B141: North Mankato City MS4
B142: North Oaks City MS4
B143: North St Paul City MS4
B144: Northfield City MS4
B145: Northland Comm & Technical College - EGF - MS4
B146: Nowthen City of MS4
B147: Oak Grove City MS4
B148: Oakdale City MS4
B149: Olmsted County MS4
B150: Orono City MS4
B151: Osseo City MS4
B152: Otsego City MS4
B153: Owatonna City MS4
B154: Pine Springs City MS4
B155: Plymouth City MS4
B156: Prior Lake City MS4
B157: Prior Lake-Spring Lake WSD MS4
B158: Proctor City MS4
B159: Ramsey City MS4
B160: Ramsey County Public Works MS4
B161: Ramsey-Washington Metro WD MS4
B162: Red Wing City MS4
B163: Redwood Falls City MS4
B164: Rice Creek WD MS4
B165: Rice Lake Township MS4
B166: Richfield City MS4
B167: Robbinsdale City MS4
B168: Rochester City MS4
B169: Rochester Community & Technical College MS4
B170: Rochester Township MS4
B171: Rosemount City MS4
B172: Roseville City MS4
B173: Saint Paul College
B174: Sartell City MS4
B175: Sauk Rapids City MS4
B176: Sauk Rapids Township MS4
B177: Savage City MS4
B178: Scott County MS4
B179: Shakopee City MS4
B180: Sherburne County MS4
B181: Shoreview City MS4
B182: Shorewood City MS4
B183: South St Paul City MS4
B184: South Washington WD MS4
B185: Spring Lake Park City MS4
B186: Spring Lake Township MS4
B187: Spring Park City MS4
B188: St Anthony Village MS4
B189: St Bonifacius City MS4
B190: St Cloud City MS4
B191: St Cloud State University MS4
B192: St Cloud Technical College - MS4
B193: St Joseph City MS4
B194: St Joseph Township MS4
B195: St Louis County MS4
B196: St Louis Park City MS4
B197: St Michael City MS4
B198: St Paul Municipal Storm Water
B199: St Paul Park City MS4
B200: St Peter City MS4
... 25 more rows

Sheet List of TMDLs (hidden)
A1: TMDL ID | B1: Permittee name | C1: Waterbody + pollutant | D1: TMDL + pollutant | E1: Preferred ID | F1: TMDL project name | G1: Waterbody ID | H1: Type of WLA | I1: Numeric WLA | J1: Unit | K1: Percent reduction | L1: Flow condition | M1: Waterbody name | N1: Pollutant of concern | O1: Date approved | P1: Meeting WLA? | Q1: Notes
A2: 64 | B2: Albert Lea City | C2: Shell Rock River; Albert Lea Lake to Goose Creek - Fecal Coliform | D2: Lower Mississippi River Basin Fecal Coliform Bacteria TMDL - Fecal Coliform | E2: MS400263 | F2: Lower Mississippi River Basin Fecal Coliform Bacteria TMDL | G2: 07080202-501 | H2: Individual | I2: 0.25 | J2: 10^12 organisms/month | L2: Mid-Range | M2: Shell Rock River; Albert Lea Lake to Goose Creek | N2: Fecal Coliform | O2: 2006-04-05 | P2: y
A3: 2 | B3: Anoka County | C3: Golden Lake - Phosphorus | D3: Golden Lake TMDL - Phosphorus | E3: MS400066 | F3: Golden Lake TMDL | G3: 02-0045 | H3: Individual | I3: 0.01 | J3: lbs/day | L3: N/A | M3: Golden Lake | N3: Phosphorus | O3: 2009-09-30 | P3: y
A4: 10 | B4: Anoka County | C4: Hardwood Creek, Headwaters to Hwy 61 - Biochemical Oxygen Demand | D4: Hardwood Creek Impaired Biota and Dissolved Oxygen TMDL - Biochemical Oxygen Demand | E4: MS400066 | F4: Hardwood Creek Impaired Biota and Dissolved Oxygen TMDL | G4: 07010206-595 | H4: Categorical | I4: 10 | J4: lbs/day | L4: Mid-Range | M4: Hardwood Creek, Headwaters to Hwy 61 | N4: Biochemical Oxygen Demand | O4: 2009-06-18 | P4: y
A5: 11 | B5: Anoka County | C5: Hardwood Creek, Hwy 61 to Peltier Lk - Biochemical Oxygen Demand | D5: Hardwood Creek Impaired Biota and Dissolved Oxygen TMDL - Biochemical Oxygen Demand | E5: MS400066 | F5: Hardwood Creek Impaired Biota and Dissolved Oxygen TMDL | G5: 07010206-596 | H5: Categorical | I5: 10 | J5: lbs/day | L5: Mid-Range | M5: Hardwood Creek, Hwy 61 to Peltier Lk | N5: Biochemical Oxygen Demand | O5: 2009-06-18 | P5: y
A6: 12 | B6: Anoka County | C6: Hardwood Creek, Hwy 61 to Peltier Lk - TSS | D6: Hardwood Creek Impaired Biota and Dissolved Oxygen TMDL - TSS | E6: MS400066 | F6: Hardwood Creek Impaired Biota and Dissolved Oxygen TMDL | G6: 07010206-596 | H6: Categorical | I6: 38 | J6: lbs/day | L6: Mid-Range | M6: Hardwood Creek, Hwy 61 to Peltier Lk | N6: TSS | O6: 2009-06-18 | P6: y
A7: 116 | B7: Anoka County | C7: Silver Lake - Phosphorus | D7: Silver Lake TMDL - Phosphorus | E7: MS400066 | F7: Silver Lake TMDL | G7: 62-0083-00 | H7: Categorical | I7: 0.55 | J7: lbs/day | K7: 0.17 | L7: N/A | M7: Silver Lake | N7: Phosphorus | O7: 2010-07-29 | P7: y
A8: 87 | B8: Apple Valley City | C8: Keller Lake - Phosphorus | D8: Crystal, Keller, and Lee Lakes Nutrient Impairment TMDL - Phosphorus | E8: MS400074 | F8: Crystal, Keller, and Lee Lakes Nutrient Impairment TMDL | G8: 19-0025-00 | H8: Individual | I8: 0.312 | J8: lbs/day | L8: N/A | M8: Keller Lake | N8: Phosphorus | O8: 2011-09-30 | P8: n
A9: 85 | B9: Apple Valley City | C9: Long Lake - Phosphorus | D9: Long and Farquar Lakes Nutrient TMDL - Phosphorus | E9: MS400074 | F9: Long and Farquar Lakes Nutrient TMDL | G9: 19-0022-00 | H9: Individual | I9: 0.13 | J9: lbs/day | L9: N/A | M9: Long Lake | N9: Phosphorus | O9: 2009-04-08 | P9: n
A10: 86 | B10: Apple Valley City | C10: Farquar Lake - Phosphorus | D10: Long and Farquar Lakes Nutrient TMDL - Phosphorus | E10: MS400074 | F10: Long and Farquar Lakes Nutrient TMDL | G10: 19-0023-00 | H10: Individual | I10: 0.17 | J10: lbs/day | L10: N/A | M10: Farquar Lake | N10: Phosphorus | O10: 2009-04-08 | P10: n
A11: 35 | B11: Apple Valley City | C11: Vermillion River; South Br. Vermillion River to the Hastings Dam - Fecal Coliform | D11: Lower Mississippi River Basin Fecal Coliform Bacteria TMDL - Fecal Coliform | E11: MS400074 | F11: Lower Mississippi River Basin Fecal Coliform Bacteria TMDL | G11: 07040001-506 | H11: Categorical | I11: 1.57 | J11: 10^12 organisms/month | L11: Mid-Range | M11: Vermillion River; South Br. Vermillion River to the Hastings Dam | N11: Fecal Coliform | O11: 2006-04-05 | P11: n
A12: 36 | B12: Apple Valley City | C12: Vermillion River; Below trout stream portion to South Br. Vermillion River - Fecal Coliform | D12: Lower Mississippi River Basin Fecal Coliform Bacteria TMDL - Fecal Coliform | E12: MS400074 | F12: Lower Mississippi River Basin Fecal Coliform Bacteria TMDL | G12: 07040001-507 | H12: Categorical | I12: 0.36 | J12: 10^12 organisms/month | L12: Mid-Range | M12: Vermillion River; Below trout stream portion to South Br. Vermillion River | N12: Fecal Coliform | O12: 2006-04-05 | P12: n
A13: 34 | B13: Apple Valley City | C13: Vermillion River/Vermillion Slough, Hasting dam to Mississippi River - TSS | D13: Lower Vermillion River Watershed Turbidity TMDL - TSS | E13: MS400074 | F13: Lower Vermillion River Watershed Turbidity TMDL | G13: 07040001-504 | H13: Individual | I13: 75 | J13: kg/day | M13: Vermillion River/Vermillion Slough, Hasting dam to Mississippi River | N13: TSS | O13: 2009-09-29 | P13: y
A14: 63 | B14: Austin City | C14: Cedar River, Rose Creek to Woodbury Creek - Fecal Coliform | D14: Lower Mississippi River Basin Fecal Coliform Bacteria TMDL - Fecal Coliform | E14: MS400251 | F14: Lower Mississippi River Basin Fecal Coliform Bacteria TMDL | G14: 07080201-501 | H14: Categorical | I14: 0.47 | J14: 10^12 organisms/month | L14: Mid-Range | M14: Cedar River, Rose Creek to Woodbury Creek | N14: Fecal Coliform | O14: 2006-04-05 | P14: y
A15: 6 | B15: Benton County | C15: Elk River: Big Elk Lake to St. Francis - E. Coli | D15: Elk River Watershed – Multiple Impairments TMDL - E. Coli | E15: MS400067 | F15: Elk River Watershed – Multiple Impairments TMDL | G15: 07010203-579 | H15: Categorical | I15: 101.84 | J15: 10^9 organisms/day | K15: 0 | L15: Mid-Range | M15: Elk River: Big Elk Lake to St. Francis | N15: E. Coli | O15: 2012-06-14 | P15: n
A16: 4 | B16: Benton County | C16: Mayhew Lake - Phosphorus | D16: Elk River Watershed – Multiple Impairments TMDL - Phosphorus | E16: MS400067 | F16: Elk River Watershed – Multiple Impairments TMDL | G16: 05-0007-00 | H16: Categorical | I16: 0 | J16: lbs/day | L16: N/A | M16: Mayhew Lake | N16: Phosphorus | O16: 2012-06-14 | P16: n
A17: 119 | B17: Benton County | C17: Big Elk Lake - Phosphorus | D17: Elk River Watershed – Multiple Impairments TMDL - Phosphorus | E17: MS400067 | F17: Elk River Watershed – Multiple Impairments TMDL | G17: 71-0141-00 | H17: Categorical | I17: 7.48 | J17: lbs/day | L17: N/A | M17: Big Elk Lake | N17: Phosphorus | O17: 2012-06-14 | P17: n
A18: 7 | B18: Benton County | C18: Elk River: Big Elk Lake to St. Francis - TSS | D18: Elk River Watershed – Multiple Impairments TMDL - TSS | E18: MS400067 | F18: Elk River Watershed – Multiple Impairments TMDL | G18: 07010203-579 | H18: Categorical | I18: 0.03 | J18: tons/day | L18: Mid-Range | M18: Elk River: Big Elk Lake to St. Francis | N18: TSS | O18: 2012-06-14 | P18: n
A19: 5 | B19: Benton County | C19: Little Rock Lake - Phosphorus | D19: Little Rock Lake Nutrient TMDL - Phosphorus | E19: MS400067 | F19: Little Rock Lake Nutrient TMDL | G19: 05-0013-00 | H19: Categorical | I19: 0.5 | J19: kg/day | K19: 0.55 | L19: N/A | M19: Little Rock Lake | N19: Phosphorus | O19: 2012-02-02 | P19: y
A20: 6 | B20: Big Lake City | C20: Elk River: Big Elk Lake to St. Francis - E. Coli | D20: Elk River Watershed – Multiple Impairments TMDL - E. Coli | E20: MS400249 | F20: Elk River Watershed – Multiple Impairments TMDL | G20: 07010203-579 | H20: Categorical | I20: 101.84 | J20: 10^9 organisms/day | K20: 0 | L20: Mid-Range | M20: Elk River: Big Elk Lake to St. Francis | N20: E. Coli | O20: 2012-06-14 | P20: n
A21: 4 | B21: Big Lake City | C21: Mayhew Lake - Phosphorus | D21: Elk River Watershed – Multiple Impairments TMDL - Phosphorus | E21: MS400249 | F21: Elk River Watershed – Multiple Impairments TMDL | G21: 05-0007-00 | H21: Categorical | I21: 0 | J21: lbs/day | L21: N/A | M21: Mayhew Lake | N21: Phosphorus | O21: 2012-06-14 | P21: n
A22: 7 | B22: Big Lake City | C22: Elk River: Big Elk Lake to St. Francis - TSS | D22: Elk River Watershed – Multiple Impairments TMDL - TSS | E22: MS400249 | F22: Elk River Watershed – Multiple Impairments TMDL | G22: 07010203-579 | H22: Categorical | I22: 0.03 | J22: tons/day | L22: Mid-Range | M22: Elk River: Big Elk Lake to St. Francis | N22: TSS | O22: 2012-06-14 | P22: n
A23: 6 | B23: Big Lake Township | C23: Elk River: Big Elk Lake to St. Francis - E. Coli | D23: Elk River Watershed – Multiple Impairments TMDL - E. Coli | E23: MS400234 | F23: Elk River Watershed – Multiple Impairments TMDL | G23: 07010203-579 | H23: Categorical | I23: 101.84 | J23: 10^9 organisms/day | K23: 0 | L23: Mid-Range | M23: Elk River: Big Elk Lake to St. Francis | N23: E. Coli | O23: 2012-06-14 | Q23: Couldn't find attachment form
A24: 4 | B24: Big Lake Township | C24: Mayhew Lake - Phosphorus | D24: Elk River Watershed – Multiple Impairments TMDL - Phosphorus | E24: MS400234 | F24: Elk River Watershed – Multiple Impairments TMDL | G24: 05-0007-00 | H24: Categorical | I24: 0 | J24: lbs/day | L24: N/A | M24: Mayhew Lake | N24: Phosphorus | O24: 2012-06-14
A25: 7 | B25: Big Lake Township | C25: Elk River: Big Elk Lake to St. Francis - TSS | D25: Elk River Watershed – Multiple Impairments TMDL - TSS | E25: MS400234 | F25: Elk River Watershed – Multiple Impairments TMDL | G25: 07010203-579 | H25: Categorical | I25: 0.03 | J25: tons/day | L25: Mid-Range | M25: Elk River: Big Elk Lake to St. Francis | N25: TSS | O25: 2012-06-14
A26: 2 | B26: Blaine City | C26: Golden Lake - Phosphorus | D26: Golden Lake TMDL - Phosphorus | E26: MS400075 | F26: Golden Lake TMDL | G26: 02-0045 | H26: Categorical | I26: 0.38 | J26: lbs/day | L26: N/A | M26: Golden Lake | N26: Phosphorus | O26: 2009-09-30 | P26: n
A27: 28 | B27: Bloomington City | C27: Nine Mile Creek - Chloride | D27: Ninemile Creek: Impaired Biota, Turbidity & Chloride TMDL - Chloride | E27: MS400005 | F27: Ninemile Creek: Impaired Biota, Turbidity & Chloride TMDL | G27: 07020012-518 | H27: Categorical | I27: 5.164 | J27: tons/day | K27: 0.62 | M27: Nine Mile Creek | N27: Chloride | O27: 2010-11-29 | P27: n
A28: 9 | B28: Brooklyn Center City | C28: Shingle Creek; Lower Shingle Creek Watershed - Nitrogenous biochemical oxygen demand | D28: Shingle Creek and Bass Creek Biota and Dissolved Oxygen TMDL - Nitrogenous biochemical oxygen demand | E28: MS400006 | F28: Shingle Creek and Bass Creek Biota and Dissolved Oxygen TMDL | G28: 07010206-506 | H28: Categorical | I28: 11.8 | J28: kg/day | L28: N/A | M28: Shingle Creek; Lower Shingle Creek Watershed | N28: Nitrogenous biochemical oxygen demand | O28: 2011-11-04 | P28: n
A29: 9 | B29: Brooklyn Center City | C29: Shingle Creek; Upper Shingle Creek Watershed - Nitrogenous biochemical oxygen demand | D29: Shingle Creek and Bass Creek Biota and Dissolved Oxygen TMDL - Nitrogenous biochemical oxygen demand | E29: MS400006 | F29: Shingle Creek and Bass Creek Biota and Dissolved Oxygen TMDL | G29: 07010206-506 | H29: Categorical | I29: 35.8 | J29: kg/day | L29: N/A | M29: Shingle Creek; Upper Shingle Creek Watershed | N29: Nitrogenous biochemical oxygen demand | O29: 2011-11-04 | P29: n
A30: 8 | B30: Brooklyn Center City | C30: Shingle Creek - Chloride | D30: Shingle Creek Chloride TMDL - Chloride | E30: MS400006 | F30: Shingle Creek Chloride TMDL | G30: 07010206-506 | H30: Categorical | I30: 4.5 | J30: tons/day | L30: Mid-Range | M30: Shingle Creek | N30: Chloride | O30: 2007-02-14 | P30: n
A31: 8 | B31: Brooklyn Center City | C31: Shingle Creek - Chloride | D31: Shingle Creek Chloride TMDL - Chloride | E31: MS400006 | F31: Shingle Creek Chloride TMDL | G31: 07010206-506 | H31: Categorical | K31: 0.63 | L31: Winter Low Flow (60 to 100%) | M31: Shingle Creek | N31: Chloride | O31: 2007-02-14 | P31: n
A32: 8 | B32: Brooklyn Center City | C32: Shingle Creek - Chloride | D32: Shingle Creek Chloride TMDL - Chloride | E32: MS400006 | F32: Shingle Creek Chloride TMDL | G32: 07010206-506 | H32: Categorical | K32: 0.71 | L32: Winter Runoff (60% to 0%) | M32: Shingle Creek | N32: Chloride | O32: 2007-02-14 | P32: n
A33: 96 | B33: Brooklyn Center City | C33: North Twin Lake - Phosphorus | D33: Twin and Ryan Lakes Nutrient TMDL - Phosphorus | E33: MS400006 | F33: Twin and Ryan Lakes Nutrient TMDL | G33: 27-0042-01 | H33: Categorical | I33: 1.6 | J33: kg/day Average Precipitation Year | L33: N/A | M33: North Twin Lake | N33: Phosphorus | O33: 2007-11-09 | P33: n
A34: 96 | B34: Brooklyn Center City | C34: North Twin Lake - Phosphorus | D34: Twin and Ryan Lakes Nutrient TMDL - Phosphorus | E34: MS400006 | F34: Twin and Ryan Lakes Nutrient TMDL | G34: 27-0042-01 | H34: Categorical | I34: 2.7 | J34: kg/day Wet Precipitation Year | L34: N/A | M34: North Twin Lake | N34: Phosphorus | O34: 2007-11-09 | P34: n
A35: 96 | B35: Brooklyn Center City | C35: North Twin Lake - Phosphorus | D35: Twin and Ryan Lakes Nutrient TMDL - Phosphorus | E35: MS400006 | F35: Twin and Ryan Lakes Nutrient TMDL | G35: 27-0042-01 | H35: Categorical | I35: 1.4 | J35: kg/day Dry Precipitation Year | L35: N/A | M35: North Twin Lake | N35: Phosphorus | O35: 2007-11-09 | P35: n
A36: 97 | B36: Brooklyn Center City | C36: Middle Twin Lake - Phosphorus | D36: Twin and Ryan Lakes Nutrient TMDL - Phosphorus | E36: MS400006 | F36: Twin and Ryan Lakes Nutrient TMDL | G36: 27-0042-02 | H36: Categorical | I36: 0.4 | J36: kg/day Average Precipitation Year | L36: N/A | M36: Middle Twin Lake | N36: Phosphorus | O36: 2007-11-09 | P36: n
A37: 97 | B37: Brooklyn Center City | C37: Middle Twin Lake - Phosphorus | D37: Twin and Ryan Lakes Nutrient TMDL - Phosphorus | E37: MS400006 | F37: Twin and Ryan Lakes Nutrient TMDL | G37: 27-0042-02 | H37: Categorical | I37: 0.7 | J37: kg/day Wet Precipitation Year | L37: N/A | M37: Middle Twin Lake | N37: Phosphorus | O37: 2007-11-09 | P37: n
A38: 97 | B38: Brooklyn Center City | C38: Middle Twin Lake - Phosphorus | D38: Twin and Ryan Lakes Nutrient TMDL - Phosphorus | E38: MS400006 | F38: Twin and Ryan Lakes Nutrient TMDL | G38: 27-0042-02 | H38: Categorical | I38: 0.3 | J38: kg/day Dry Precipitation Year | L38: N/A | M38: Middle Twin Lake | N38: Phosphorus | O38: 2007-11-09 | P38: n
A39: 98 | B39: Brooklyn Center City | C39: South Twin Lake - Phosphorus | D39: Twin and Ryan Lakes Nutrient TMDL - Phosphorus | E39: MS400006 | F39: Twin and Ryan Lakes Nutrient TMDL | G39: 27-0042-03 | H39: Categorical | I39: 2.1 | J39: kg/day Average Precipitation Year | L39: N/A | M39: South Twin Lake | N39: Phosphorus | O39: 2007-11-09 | P39: n
A40: 98 | B40: Brooklyn Center City | C40: South Twin Lake - Phosphorus | D40: Twin and Ryan Lakes Nutrient TMDL - Phosphorus | E40: MS400006 | F40: Twin and Ryan Lakes Nutrient TMDL | G40: 27-0042-03 | H40: Categorical | I40: 3.3 | J40: kg/day Wet Precipitation Year | L40: N/A | M40: South Twin Lake | N40: Phosphorus | O40: 2007-11-09 | P40: n
A41: 98 | B41: Brooklyn Center City | C41: South Twin Lake - Phosphorus | D41: Twin and Ryan Lakes Nutrient TMDL - Phosphorus | E41: MS400006 | F41: Twin and Ryan Lakes Nutrient TMDL | G41: 27-0042-03 | H41: Categorical | I41: 2.1 | J41: kg/day Dry Precipitation Year | L41: N/A | M41: South Twin Lake | N41: Phosphorus | O41: 2007-11-09 | P41: n
A42: 100 | B42: Brooklyn Center City | C42: Ryan Lake - Phosphorus | D42: Twin and Ryan Lakes Nutrient TMDL - Phosphorus | E42: MS400006 | F42: Twin and Ryan Lakes Nutrient TMDL | G42: 27-0058-00 | H42: Categorical | I42: 0.5 | J42: kg/day Average Precipitation Year | L42: N/A | M42: Ryan Lake | N42: Phosphorus | O42: 2007-11-09 | P42: n
A43: 100 | B43: Brooklyn Center City | C43: Ryan Lake - Phosphorus | D43: Twin and Ryan Lakes Nutrient TMDL - Phosphorus | E43: MS400006 | F43: Twin and Ryan Lakes Nutrient TMDL | G43: 27-0058-00 | H43: Categorical | I43: 0.8 | J43: kg/day Wet Precipitation Year | L43: N/A | M43: Ryan Lake | N43: Phosphorus | O43: 2007-11-09 | P43: n
A44: 100 | B44: Brooklyn Center City | C44: Ryan Lake - Phosphorus | D44: Twin and Ryan Lakes Nutrient TMDL - Phosphorus | E44: MS400006 | F44: Twin and Ryan Lakes Nutrient TMDL | G44: 27-0058-00 | H44: Categorical | I44: 0.4 | J44: kg/day Dry Precipitation Year | L44: N/A | M44: Ryan Lake | N44: Phosphorus | O44: 2007-11-09 | P44: n
A45: 101 | B45: Brooklyn Park City | C45: Magda Lake - Phosphorus | D45: Lake Magda Nutrient TMDL - Phosphorus | E45: MS400007 | F45: Lake Magda Nutrient TMDL | G45: 27-0065 | H45: Categorical | I45: 0.029 | J45: kg/day | L45: N/A | M45: Magda Lake | N45: Phosphorus | O45: 2010-09-30 | P45: y
A46: 9 | B46: Brooklyn Park City | C46: Shingle Creek; Lower Shingle Creek Watershed - Nitrogenous biochemical oxygen demand | D46: Shingle Creek and Bass Creek Biota and Dissolved Oxygen TMDL - Nitrogenous biochemical oxygen demand | E46: MS400007 | F46: Shingle Creek and Bass Creek Biota and Dissolved Oxygen TMDL | G46: 07010206-506 | H46: Categorical | I46: 11.8 | J46: kg/day | L46: N/A | M46: Shingle Creek; Lower Shingle Creek Watershed | N46: Nitrogenous biochemical oxygen demand | O46: 2011-11-04 | P46: y
A47: 9 | B47: Brooklyn Park City | C47: Shingle Creek; Upper Shingle Creek Watershed - Nitrogenous biochemical oxygen demand | D47: Shingle Creek and Bass Creek Biota and Dissolved Oxygen TMDL - Nitrogenous biochemical oxygen demand | E47: MS400007 | F47: Shingle Creek and Bass Creek Biota and Dissolved Oxygen TMDL | G47: 07010206-506 | H47: Categorical | I47: 35.8 | J47: kg/day | L47: N/A | M47: Shingle Creek; Upper Shingle Creek Watershed | N47: Nitrogenous biochemical oxygen demand | O47: 2011-11-04 | P47: y
A48: 8 | B48: Brooklyn Park City | C48: Shingle Creek - Chloride | D48: Shingle Creek Chloride TMDL - Chloride | E48: MS400007 | F48: Shingle Creek Chloride TMDL | G48: 07010206-506 | H48: Categorical | I48: 4.5 | J48: tons/day | L48: Mid-Range | M48: Shingle Creek | N48: Chloride | O48: 2007-02-14 | P48: y
A49: 8 | B49: Brooklyn Park City | C49: Shingle Creek - Chloride | D49: Shingle Creek Chloride TMDL - Chloride | E49: MS400007 | F49: Shingle Creek Chloride TMDL | G49: 07010206-506 | H49: Categorical | K49: 0.63 | L49: Winter Low Flow (60 to 100%) | M49: Shingle Creek | N49: Chloride | O49: 2007-02-14 | P49: y
A50: 8 | B50: Brooklyn Park City | C50: Shingle Creek - Chloride | D50: Shingle Creek Chloride TMDL - Chloride | E50: MS400007 | F50: Shingle Creek Chloride TMDL | G50: 07010206-506 | H50: Categorical | K50: 0.71 | L50: Winter Runoff (60% to 0%) | M50: Shingle Creek | N50: Chloride | O50: 2007-02-14 | P50: y
A51: 96 | B51: Brooklyn Park City | C51: North Twin Lake - Phosphorus | D51: Twin and Ryan Lakes Nutrient TMDL - Phosphorus | E51: MS400007 | F51: Twin and Ryan Lakes Nutrient TMDL | G51: 27-0042-01 | H51: Categorical | I51: 1.6 | J51: kg/day Average Precipitation Year | L51: N/A | M51: North Twin Lake | N51: Phosphorus | O51: 2007-11-09 | P51: y
A52: 96 | B52: Brooklyn Park City | C52: North Twin Lake - Phosphorus | D52: Twin and Ryan Lakes Nutrient TMDL - Phosphorus | E52: MS400007 | F52: Twin and Ryan Lakes Nutrient TMDL | G52: 27-0042-01 | H52: Categorical | I52: 2.7 | J52: kg/day Wet Precipitation Year | L52: N/A | M52: North Twin Lake | N52: Phosphorus | O52: 2007-11-09 | P52: y
A53: 96 | B53: Brooklyn Park City | C53: North Twin Lake - Phosphorus | D53: Twin and Ryan Lakes Nutrient TMDL - Phosphorus | E53: MS400007 | F53: Twin and Ryan Lakes Nutrient TMDL | G53: 27-0042-01 | H53: Categorical | I53: 1.4 | J53: kg/day Dry Precipitation Year | L53: N/A | M53: North Twin Lake | N53: Phosphorus | O53: 2007-11-09 | P53: y
A54: 97 | B54: Brooklyn Park City | C54: Middle Twin Lake - Phosphorus | D54: Twin and Ryan Lakes Nutrient TMDL - Phosphorus | E54: MS400007 | F54: Twin and Ryan Lakes Nutrient TMDL | G54: 27-0042-02 | H54: Categorical | I54: 0.4 | J54: kg/day Average Precipitation Year | L54: N/A | M54: Middle Twin Lake | N54: Phosphorus | O54: 2007-11-09 | P54: y
A55: 97 | B55: Brooklyn Park City | C55: Middle Twin Lake - Phosphorus | D55: Twin and Ryan Lakes Nutrient TMDL - Phosphorus | E55: MS400007 | F55: Twin and Ryan Lakes Nutrient TMDL | G55: 27-0042-02 | H55: Categorical | I55: 0.7 | J55: kg/day Wet Precipitation Year | L55: N/A | M55: Middle Twin Lake | N55: Phosphorus | O55: 2007-11-09 | P55: y
A56: 97 | B56: Brooklyn Park City | C56: Middle Twin Lake - Phosphorus | D56: Twin and Ryan Lakes Nutrient TMDL - Phosphorus | E56: MS400007 | F56: Twin and Ryan Lakes Nutrient TMDL | G56: 27-0042-02 | H56: Categorical | I56: 0.3 | J56: kg/day Dry Precipitation Year | L56: N/A | M56: Middle Twin Lake | N56: Phosphorus | O56: 2007-11-09 | P56: y
A57: 98 | B57: Brooklyn Park City | C57: South Twin Lake - Phosphorus | D57: Twin and Ryan Lakes Nutrient TMDL - Phosphorus | E57: MS400007 | F57: Twin and Ryan Lakes Nutrient TMDL | G57: 27-0042-03 | H57: Categorical | I57: 2.1 | J57: kg/day Average Precipitation Year | L57: N/A | M57: South Twin Lake | N57: Phosphorus | O57: 2007-11-09 | P57: y
A58: 98 | B58: Brooklyn Park City | C58: South Twin Lake - Phosphorus | D58: Twin and Ryan Lakes Nutrient TMDL - Phosphorus | E58: MS400007 | F58: Twin and Ryan Lakes Nutrient TMDL | G58: 27-0042-03 | H58: Categorical | I58: 3.3 | J58: kg/day Wet Precipitation Year | L58: N/A | M58: South Twin Lake | N58: Phosphorus | O58: 2007-11-09 | P58: y
A59: 98 | B59: Brooklyn Park City | C59: South Twin Lake - Phosphorus | D59: Twin and Ryan Lakes Nutrient TMDL - Phosphorus | E59: MS400007 | F59: Twin and Ryan Lakes Nutrient TMDL | G59: 27-0042-03 | H59: Categorical | I59: 2.1 | J59: kg/day Dry Precipitation Year | L59: N/A | M59: South Twin Lake | N59: Phosphorus | O59: 2007-11-09 | P59: y
A60: 100 | B60: Brooklyn Park City | C60: Ryan Lake - Phosphorus | D60: Twin and Ryan Lakes Nutrient TMDL - Phosphorus | E60: MS400007 | F60: Twin and Ryan Lakes Nutrient TMDL | G60: 27-0058-00 | H60: Categorical | I60: 0.5 | J60: kg/day Average Precipitation Year | L60: N/A | M60: Ryan Lake | N60: Phosphorus | O60: 2007-11-09 | P60: y
A61: 100 | B61: Brooklyn Park City | C61: Ryan Lake - Phosphorus | D61: Twin and Ryan Lakes Nutrient TMDL - Phosphorus | E61: MS400007 | F61: Twin and Ryan Lakes Nutrient TMDL | G61: 27-0058-00 | H61: Categorical | I61: 0.8 | J61: kg/day Wet Precipitation Year | L61: N/A | M61: Ryan Lake | N61: Phosphorus | O61: 2007-11-09 | P61: y
A62: 100 | B62: Brooklyn Park City | C62: Ryan Lake - Phosphorus | D62: Twin and Ryan Lakes Nutrient TMDL - Phosphorus | E62: MS400007 | F62: Twin and Ryan Lakes Nutrient TMDL | G62: 27-0058-00 | H62: Categorical | I62: 0.4 | J62: kg/day Dry Precipitation Year | L62: N/A | M62: Ryan Lake | N62: Phosphorus | O62: 2007-11-09 | P62: y
A63: 87 | B63: Burnsville City | C63: Keller Lake - Phosphorus | D63: Crystal, Keller, and Lee Lakes Nutrient Impairment TMDL - Phosphorus | E63: MS400076 | F63: Crystal, Keller, and Lee Lakes Nutrient Impairment TMDL | G63: 19-0025-00 | H63: Individual | I63: 0.225 | J63: lbs/day | L63: N/A | M63: Keller Lake | N63: Phosphorus | O63: 2011-09-30 | P63: y | Q63: Says they are meeting WLAs but also have a compliance shcedule for all???
A64: 88 | B64: Burnsville City | C64: Crystal Lake - Phosphorus | D64: Crystal, Keller, and Lee Lakes Nutrient Impairment TMDL - Phosphorus | E64: MS400076 | F64: Crystal, Keller, and Lee Lakes Nutrient Impairment TMDL | G64: 19-0027-00 | H64: Individual | I64: 0.183 | J64: lbs/day | L64: N/A | M64: Crystal Lake | N64: Phosphorus | O64: 2011-09-30 | P64: y
A65: 35 | B65: Burnsville City | C65: Vermillion River; South Br. Vermillion River to the Hastings Dam - Fecal Coliform | D65: Lower Mississippi River Basin Fecal Coliform Bacteria TMDL - Fecal Coliform | E65: MS400076 | F65: Lower Mississippi River Basin Fecal Coliform Bacteria TMDL | G65: 07040001-506 | H65: Categorical | I65: 1.57 | J65: 10^12 organisms/month | L65: Mid-Range | M65: Vermillion River; South Br. Vermillion River to the Hastings Dam | N65: Fecal Coliform | O65: 2006-04-05 | P65: y
A66: 36 | B66: Burnsville City | C66: Vermillion River; Below trout stream portion to South Br. Vermillion River - Fecal Coliform | D66: Lower Mississippi River Basin Fecal Coliform Bacteria TMDL - Fecal Coliform | E66: MS400076 | F66: Lower Mississippi River Basin Fecal Coliform Bacteria TMDL | G66: 07040001-507 | H66: Categorical | I66: 0.36 | J66: 10^12 organisms/month | L66: Mid-Range | M66: Vermillion River; Below trout stream portion to South Br. Vermillion River | N66: Fecal Coliform | O66: 2006-04-05 | P66: y
A67: 34 | B67: Burnsville City | C67: Vermillion River/Vermillion Slough, Hasting dam to Mississippi River - TSS | D67: Lower Vermillion River Watershed Turbidity TMDL - TSS | E67: MS400076 | F67: Lower Vermillion River Watershed Turbidity TMDL | G67: 07040001-504 | H67: Individual | I67: 11 | J67: kg/day | M67: Vermillion River/Vermillion Slough, Hasting dam to Mississippi River | N67: TSS | O67: 2009-09-29 | P67: y
A68: 115 | B68: Capitol Region Watershed District | C68: Como Lake - Phosphorus | D68: Como Lake: Excess Nutrients TMDL - Phosphorus | E68: MS400206 | F68: Como Lake: Excess Nutrients TMDL | G68: 62-0055-00 | H68: Categorical | I68: 0.68 | J68: lbs/day | K68: 0.6 | L68: N/A | M68: Como Lake | N68: Phosphorus | O68: 2010-12-23 | P68: n
A69: 27 | B69: Carver City | C69: Carver Creek - TSS | D69: Carver Creek Turbidity TMDL - TSS | E69: MS400077 | F69: Carver Creek Turbidity TMDL | G69: 07020012-516 | H69: Individual | I69: 4.1 | J69: kg/day | K69: 0 | L69: Mid-Range | M69: Carver Creek | N69: TSS | O69: 2012-09-26 | P69: y
A70: 30 | B70: Carver County | C70: Bluff Creek; Headwaters to Rice Lake - TSS | D70: Bluff Creek Watershed Turbidity and Fish Bioassessment Impairments TMDL - TSS | E70: MS400070 | F70: Bluff Creek Watershed Turbidity and Fish Bioassessment Impairments TMDL | G70: 07020012-710 | H70: Individual | I70: 0.01 | J70: tons/day | L70: Mid-Range | M70: Bluff Creek; Headwaters to Rice Lake | N70: TSS | O70: 2013-06-28 | P70: n | Q70: Contradictory submittals
A71: 82 | B71: Carver County | C71: Burandt Lake - Phosphorus | D71: Burandt Lake Nutrient TMDL - Phosphorus | E71: MS400070 | F71: Burandt Lake Nutrient TMDL | G71: 10-0084 | H71: Categorical | I71: 0.13 | J71: kg/day | L71: N/A | M71: Burandt Lake | N71: Phosphorus | O71: 2008-11-26 | P71: y
A72: 27 | B72: Carver County | C72: Carver Creek - TSS | D72: Carver Creek Turbidity TMDL - TSS | E72: MS400070 | F72: Carver Creek Turbidity TMDL | G72: 07020012-516 | H72: Individual | I72: 1.5 | J72: kg/day | K72: 0 | L72: Mid-Range | M72: Carver Creek | N72: TSS | O72: 2012-09-26 | P72: y
A73: 79 | B73: Carver County | C73: Parley Lake - Phosphorus | D73: Minnehaha Creek Watershed District Lakes TMDL - Phosphorus | E73: MS400070 | F73: Minnehaha Creek Watershed District Lakes TMDL | G73: 10-0042 | H73: Individual | I73: 0.0126 | J73: lbs/day | L73: N/A | M73: Parley Lake | N73: Phosphorus | O73: 2011-04-25 | P73: y
A74: 80 | B74: Carver County | C74: Wassermann Lake - Phosphorus | D74: Minnehaha Creek Watershed District Lakes TMDL - Phosphorus | E74: MS400070 | F74: Minnehaha Creek Watershed District Lakes TMDL | G74: 10-0048 | H74: Individual | I74: 0.00337 | J74: lbs/day | L74: N/A | M74: Wassermann Lake | N74: Phosphorus | O74: 2011-04-25 | P74: n
A75: 46 | B75: Cascade Township | C75: Zumbro River; West Indian Creek to Mississippi River - Fecal Coliform | D75: Lower Mississippi River Basin Fecal Coliform Bacteria TMDL - Fecal Coliform | E75: MS400071 | F75: Lower Mississippi River Basin Fecal Coliform Bacteria TMDL | G75: 07040004-501 | H75: Categorical | I75: 2.35 | J75: 10^12 organisms/month | L75: Mid-Range | M75: Zumbro River; West Indian Creek to Mississippi River | N75: Fecal Coliform | O75: 2006-04-05 | P75: y
A76: 48 | B76: Cascade Township | C76: Zumbro River; Cold Creek to West Indian Creek - Fecal Coliform | D76: Lower Mississippi River Basin Fecal Coliform Bacteria TMDL - Fecal Coliform | E76: MS400071 | F76: Lower Mississippi River Basin Fecal Coliform Bacteria TMDL | G76: 07040004-502 | H76: Categorical | I76: 2.34 | J76: 10^12 organisms/month | L76: Mid-Range | M76: Zumbro River; Cold Creek to West Indian Creek | N76: Fecal Coliform | O76: 2006-04-05 | P76: y
A77: 49 | B77: Cascade Township | C77: South Fork Zumbro River; Cascade Creek to Lake Zumbro - Fecal Coliform | D77: Lower Mississippi River Basin Fecal Coliform Bacteria TMDL - Fecal Coliform | E77: MS400071 | F77: Lower Mississippi River Basin Fecal Coliform Bacteria TMDL | G77: 07040004-507 | H77: Categorical | I77: 2.23 | J77: 10^12 organisms/month | L77: Mid-Range | M77: South Fork Zumbro River; Cascade Creek to Lake Zumbro | N77: Fecal Coliform | O77: 2006-04-05 | P77: y
A78: 51 | B78: Cascade Township | C78: South Fork Zumbro River; Silver Lake Dam to Cascade Creek - Fecal Coliform | D78: Lower Mississippi River Basin Fecal Coliform Bacteria TMDL - Fecal Coliform | E78: MS400071 | F78: Lower Mississippi River Basin Fecal Coliform Bacteria TMDL | G78: 07040004-533 | H78: Categorical | I78: 1.4 | J78: 10^12 organisms/month | L78: Mid-Range | M78: South Fork Zumbro River; Silver Lake Dam to Cascade Creek | N78: Fecal Coliform | O78: 2006-04-05 | P78: y
A79: 52 | B79: Cascade Township | C79: South Fork Zumbro River; Bear Creek to Oakwood Dam - Fecal Coliform | D79: Lower Mississippi River Basin Fecal Coliform Bacteria TMDL - Fecal Coliform | E79: MS400071 | F79: Lower Mississippi River Basin Fecal Coliform Bacteria TMDL | G79: 07040004-535 | H79: Categorical | I79: 1.26 | J79: 10^12 organisms/month | L79: Mid-Range | M79: South Fork Zumbro River; Bear Creek to Oakwood Dam | N79: Fecal Coliform | O79: 2006-04-05 | P79: y
A80: 53 | B80: Cascade Township | C80: South Fork Zumbro River; Salem Creek to Bear Creek - Fecal Coliform | D80: Lower Mississippi River Basin Fecal Coliform Bacteria TMDL - Fecal Coliform | E80: MS400071 | F80: Lower Mississippi River Basin Fecal Coliform Bacteria TMDL | G80: 07040004-536 | H80: Categorical | I80: 0.44 | J80: 10^12 organisms/month | L80: Mid-Range | M80: South Fork Zumbro River; Salem Creek to Bear Creek | N80: Fecal Coliform | O80: 2006-04-05 | P80: y
A81: 47 | B81: Cascade Township | C81: Zumbro River; West Indian Cr to Mississippi River - TSS | D81: Zumbro River Watershed TMDL for Turbidity Impairments - TSS | E81: MS400071 | F81: Zumbro River Watershed TMDL for Turbidity Impairments | G81: 07040004-501 | H81: Catergorical | I81: 7.21 | J81: tons/day | L81: Mid-Range | M81: Zumbro River; West Indian Cr to Mississippi River | N81: TSS | O81: 2012-05-25 | P81: y
A82: 50 | B82: Cascade Township | C82: Zumbro River, South Fork; Cascade Cr to Zumbro Lk - TSS | D82: Zumbro River Watershed TMDL for Turbidity Impairments - TSS | E82: MS400071 | F82: Zumbro River Watershed TMDL for Turbidity Impairments | G82: 07040004-507 | H82: Catergorical | I82: 3.96 | J82: tons/day | L82: Mid-Range | M82: Zumbro River, South Fork; Cascade Cr to Zumbro Lk | N82: TSS | O82: 2012-05-25 | P82: y
A83: 60 | B83: Cascade Township | C83: Cascade Creek; Unnamed Cr to S Fk Zumbro R. - TSS | D83: Zumbro River Watershed TMDL for Turbidity Impairments - TSS | E83: MS400071 | F83: Zumbro River Watershed TMDL for Turbidity Impairments | G83: 07040004-581 | H83: Catergorical | I83: 0.81 | J83: tons/day | L83: Mid-Range | M83: Cascade Creek; Unnamed Cr to S Fk Zumbro R. | N83: TSS | O83: 2012-05-25 | P83: y
A84: 61 | B84: Cascade Township | C84: Kings Run; Unnamed Cr to Unnamed Cr - TSS | D84: Zumbro River Watershed TMDL for Turbidity Impairments - TSS | E84: MS400071 | F84: Zumbro River Watershed TMDL for Turbidity Impairments | G84: 07040004-601 | H84: Catergorical | I84: 0.7 | J84: tons/day | L84: Mid-Range | M84: Kings Run; Unnamed Cr to Unnamed Cr | N84: TSS | O84: 2012-05-25 | P84: y
A85: 62 | B85: Cascade Township | C85: Cascade Creek; Headwaters to Unnamed Cr - TSS | D85: Zumbro River Watershed TMDL for Turbidity Impairments - TSS | E85: MS400071 | F85: Zumbro River Watershed TMDL for Turbidity Impairments | G85: 07040004-639 | H85: Catergorical | I85: 0.14 | J85: tons/day | L85: Mid-Range | M85: Cascade Creek; Headwaters to Unnamed Cr | N85: TSS | O85: 2012-05-25 | P85: y
A86: 120 | B86: Century College | C86: Lake St. Croix - Phosphorus | D86: Lake St. Croix Nutrient TMDL - Phosphorus | E86: MS400171 | F86: Lake St. Croix Nutrient TMDL | G86: 82-0001 | H86: Categorical | I86: 24.1 | J86: lbs/day | K86: 0.34 | L86: N/A | M86: Lake St. Croix | N86: Phosphorus | O86: 2012-08-08 | P86: y
A87: 30 | B87: Chanhassen City | C87: Bluff Creek; Headwaters to Rice Lake - TSS | D87: Bluff Creek Watershed Turbidity and Fish Bioassessment Impairments TMDL - TSS | E87: MS400079 | F87: Bluff Creek Watershed Turbidity and Fish Bioassessment Impairments TMDL | G87: 07020012-710 | H87: Individual | I87: 0.29 | J87: tons/day | L87: Mid-Range | M87: Bluff Creek; Headwaters to Rice Lake | N87: TSS | O87: 2013-06-28 | P87: n
A88: 77 | B88: Chanhassen City | C88: Lake Virginia - Phosphorus | D88: Minnehaha Creek Watershed District Lakes TMDL - Phosphorus | E88: MS400079 | F88: Minnehaha Creek Watershed District Lakes TMDL | G88: 10-0015 | H88: Individual | I88: 0.16 | J88: lbs/day | K88: 0.33 | L88: N/A | M88: Lake Virginia | N88: Phosphorus | O88: 2011-04-25 | P88: n
A89: 30 | B89: Chaska City | C89: Bluff Creek; Headwaters to Rice Lake - TSS | D89: Bluff Creek Watershed Turbidity and Fish Bioassessment Impairments TMDL - TSS | E89: MS400080 | F89: Bluff Creek Watershed Turbidity and Fish Bioassessment Impairments TMDL | G89: 07020012-710 | H89: Individual | I89: 0.03 | J89: tons/day | L89: Mid-Range | M89: Bluff Creek; Headwaters to Rice Lake | N89: TSS | O89: 2013-06-28 | P89: n
A90: 2 | B90: Circle Pines City | C90: Golden Lake - Phosphorus | D90: Golden Lake TMDL - Phosphorus | E90: MS400009 | F90: Golden Lake TMDL | G90: 02-0045 | H90: Categorical | I90: 0.38 | J90: lbs/day | L90: N/A | M90: Golden Lake | N90: Phosphorus | O90: 2009-09-30 | P90: y
A91: 116 | B91: Columbia Heights City | C91: Silver Lake - Phosphorus | D91: Silver Lake TMDL - Phosphorus | E91: MS400010 | F91: Silver Lake TMDL | G91: 62-0083-00 | H91: Categorical | I91: 0.55 | J91: lbs/day | K91: 0.17 | L91: N/A | M91: Silver Lake | N91: Phosphorus | O91: 2010-07-29 | P91: n
A92: 110 | B92: Corcoran City | C92: Lake Sarah (West and East Bays) - Phosphorus | D92: Lake Sarah Nutrient TMDL - Phosphorus | E92: MS400081 | F92: Lake Sarah Nutrient TMDL | G92: 27-0191-01 & 27-0191-02 | H92: Individual | I92: 0.277 | J92: lbs/day | L92: N/A | M92: Lake Sarah (West and East Bays) | N92: Phosphorus | O92: 2011-04-25 | P92: n
A93: 120 | B93: Cottage Grove City | C93: Lake St. Croix - Phosphorus | D93: Lake St. Croix Nutrient TMDL - Phosphorus | E93: MS400082 | F93: Lake St. Croix Nutrient TMDL | G93: 82-0001 | H93: Categorical | I93: 24.1 | J93: lbs/day | K93: 0.34 | L93: N/A | M93: Lake St. Croix | N93: Phosphorus | O93: 2012-08-08 | P93: y
A94: 9 | B94: Crystal City | C94: Shingle Creek; Lower Shingle Creek Watershed - Nitrogenous biochemical oxygen demand | D94: Shingle Creek and Bass Creek Biota and Dissolved Oxygen TMDL - Nitrogenous biochemical oxygen demand | E94: MS400012 | F94: Shingle Creek and Bass Creek Biota and Dissolved Oxygen TMDL | G94: 07010206-506 | H94: Categorical | I94: 11.8 | J94: kg/day | L94: N/A | M94: Shingle Creek; Lower Shingle Creek Watershed | N94: Nitrogenous biochemical oxygen demand | O94: 2011-11-04 | P94: n
A95: 9 | B95: Crystal City | C95: Shingle Creek; Upper Shingle Creek Watershed - Nitrogenous biochemical oxygen demand | D95: Shingle Creek and Bass Creek Biota and Dissolved Oxygen TMDL - Nitrogenous biochemical oxygen demand | E95: MS400012 | F95: Shingle Creek and Bass Creek Biota and Dissolved Oxygen TMDL | G95: 07010206-506 | H95: Categorical | I95: 35.8 | J95: kg/day | L95: N/A | M95: Shingle Creek; Upper Shingle Creek Watershed | N95: Nitrogenous biochemical oxygen demand | O95: 2011-11-04 | P95: n
A96: 8 | B96: Crystal City | C96: Shingle Creek - Chloride | D96: Shingle Creek Chloride TMDL - Chloride | E96: MS400012 | F96: Shingle Creek Chloride TMDL | G96: 07010206-506 | H96: Categorical | I96: 4.5 | J96: tons/day | L96: Mid-Range | M96: Shingle Creek | N96: Chloride | O96: 2007-02-14 | P96: n
A97: 8 | B97: Crystal City | C97: Shingle Creek - Chloride | D97: Shingle Creek Chloride TMDL - Chloride | E97: MS400012 | F97: Shingle Creek Chloride TMDL | G97: 07010206-506 | H97: Categorical | K97: 0.63 | L97: Winter Low Flow (60% to 100%) | M97: Shingle Creek | N97: Chloride | O97: 2007-02-14 | P97: n
A98: 8 | B98: Crystal City | C98: Shingle Creek - Chloride | D98: Shingle Creek Chloride TMDL - Chloride | E98: MS400012 | F98: Shingle Creek Chloride TMDL | G98: 07010206-506 | H98: Categorical | K98: 0.71 | L98: Winter Runoff (60% to 0%) | M98: Shingle Creek | N98: Chloride | O98: 2007-02-14 | P98: n
A99: 96 | B99: Crystal City | C99: North Twin Lake - Phosphorus | D99: Twin and Ryan Lakes Nutrient TMDL - Phosphorus | E99: MS400012 | F99: Twin and Ryan Lakes Nutrient TMDL | G99: 27-0042-01 | H99: Categorical | I99: 1.6 | J99: kg/day Average Precipitation Year | L99: N/A | M99: North Twin Lake | N99: Phosphorus | O99: 2007-11-09 | P99: n
A100: 96 | B100: Crystal City | C100: North Twin Lake - Phosphorus | D100: Twin and Ryan Lakes Nutrient TMDL - Phosphorus | E100: MS400012 | F100: Twin and Ryan Lakes Nutrient TMDL | G100: 27-0042-01 | H100: Categorical | I100: 2.7 | J100: kg/day Wet Precipitation Year | L100: N/A | M100: North Twin Lake | N100: Phosphorus | O100: 2007-11-09 | P100: n
A101: 96 | B101: Crystal City | C101: North Twin Lake - Phosphorus | D101: Twin and Ryan Lakes Nutrient TMDL - Phosphorus | E101: MS400012 | F101: Twin and Ryan Lakes Nutrient TMDL | G101: 27-0042-01 | H101: Categorical | I101: 1.4 | J101: kg/day Dry Precipitation Year | L101: N/A | M101: North Twin Lake | N101: Phosphorus | O101: 2007-11-09 | P101: n
A102: 97 | B102: Crystal City | C102: Middle Twin Lake - Phosphorus | D102: Twin and Ryan Lakes Nutrient TMDL - Phosphorus | E102: MS400012 | F102: Twin and Ryan Lakes Nutrient TMDL | G102: 27-0042-02 | H102: Categorical | I102: 0.4 | J102: kg/day Average Precipitation Year | L102: N/A | M102: Middle Twin Lake | N102: Phosphorus | O102: 2007-11-09 | P102: n
A103: 97 | B103: Crystal City | C103: Middle Twin Lake - Phosphorus | D103: Twin and Ryan Lakes Nutrient TMDL - Phosphorus | E103: MS400012 | F103: Twin and Ryan Lakes Nutrient TMDL | G103: 27-0042-02 | H103: Categorical | I103: 0.7 | J103: kg/day Wet Precipitation Year | L103: N/A | M103: Middle Twin Lake | N103: Phosphorus | O103: 2007-11-09 | P103: n
A104: 97 | B104: Crystal City | C104: Middle Twin Lake - Phosphorus | D104: Twin and Ryan Lakes Nutrient TMDL - Phosphorus | E104: MS400012 | F104: Twin and Ryan Lakes Nutrient TMDL | G104: 27-0042-02 | H104: Categorical | I104: 0.3 | J104: kg/day Dry Precipitation Year | L104: N/A | M104: Middle Twin Lake | N104: Phosphorus | O104: 2007-11-09 | P104: n
A105: 98 | B105: Crystal City | C105: South Twin Lake - Phosphorus | D105: Twin and Ryan Lakes Nutrient TMDL - Phosphorus | E105: MS400012 | F105: Twin and Ryan Lakes Nutrient TMDL | G105: 27-0042-03 | H105: Categorical | I105: 2.1 | J105: kg/day Average Precipitation Year | L105: N/A | M105: South Twin Lake | N105: Phosphorus | O105: 2007-11-09 | P105: n
A106: 98 | B106: Crystal City | C106: South Twin Lake - Phosphorus | D106: Twin and Ryan Lakes Nutrient TMDL - Phosphorus | E106: MS400012 | F106: Twin and Ryan Lakes Nutrient TMDL | G106: 27-0042-03 | H106: Categorical | I106: 3.3 | J106: kg/day Wet Precipitation Year | L106: N/A | M106: South Twin Lake | N106: Phosphorus | O106: 2007-11-09 | P106: n
A107: 98 | B107: Crystal City | C107: South Twin Lake - Phosphorus | D107: Twin and Ryan Lakes Nutrient TMDL - Phosphorus | E107: MS400012 | F107: Twin and Ryan Lakes Nutrient TMDL | G107: 27-0042-03 | H107: Categorical | I107: 2.1 | J107: kg/day Dry Precipitation Year | L107: N/A | M107: South Twin Lake | N107: Phosphorus | O107: 2007-11-09 | P107: n
A108: 100 | B108: Crystal City | C108: Ryan Lake - Phosphorus | D108: Twin and Ryan Lakes Nutrient TMDL - Phosphorus | E108: MS400012 | F108: Twin and Ryan Lakes Nutrient TMDL | G108: 27-0058-00 | H108: Categorical | I108: 0.5 | J108: kg/day Average Precipitation Year | L108: N/A | M108: Ryan Lake | N108: Phosphorus | O108: 2007-11-09 | P108: n
A109: 100 | B109: Crystal City | C109: Ryan Lake - Phosphorus | D109: Twin and Ryan Lakes Nutrient TMDL - Phosphorus | E109: MS400012 | F109: Twin and Ryan Lakes Nutrient TMDL | G109: 27-0058-00 | H109: Categorical | I109: 0.8 | J109: kg/day Wet Precipitation Year | L109: N/A | M109: Ryan Lake | N109: Phosphorus | O109: 2007-11-09 | P109: n
A110: 100 | B110: Crystal City | C110: Ryan Lake - Phosphorus | D110: Twin and Ryan Lakes Nutrient TMDL - Phosphorus | E110: MS400012 | F110: Twin and Ryan Lakes Nutrient TMDL | G110: 27-0058-00 | H110: Categorical | I110: 0.4 | J110: kg/day Dry Precipitation Year | L110: N/A | M110: Ryan Lake | N110: Phosphorus | O110: 2007-11-09 | P110: n
A111: 87 | B111: Dakota County | C111: Keller Lake - Phosphorus | D111: Crystal, Keller, and Lee Lakes Nutrient Impairment TMDL - Phosphorus | E111: MS400132 | F111: Crystal, Keller, and Lee Lakes Nutrient Impairment TMDL | G111: 19-0025-00 | H111: Individual | I111: 0.016 | J111: lbs/day | L111: N/A | M111: Keller Lake | N111: Phosphorus | O111: 2011-09-30 | P111: y
A112: 88 | B112: Dakota County | C112: Crystal Lake - Phosphorus | D112: Crystal, Keller, and Lee Lakes Nutrient Impairment TMDL - Phosphorus | E112: MS400132 | F112: Crystal, Keller, and Lee Lakes Nutrient Impairment TMDL | G112: 19-0027-00 | H112: Individual | I112: 0.022 | J112: lbs/day | L112: N/A | M112: Crystal Lake | N112: Phosphorus | O112: 2011-09-30 | P112: y
A113: 89 | B113: Dakota County | C113: Lee Lake - Phosphorus | D113: Crystal, Keller, and Lee Lakes Nutrient Impairment TMDL - Phosphorus | E113: MS400132 | F113: Crystal, Keller, and Lee Lakes Nutrient Impairment TMDL | G113: 19-0029-00 | H113: Individual | I113: 0.005 | J113: lbs/day | L113: N/A | M113: Lee Lake | N113: Phosphorus | O113: 2011-09-30 | P113: y
A114: 90 | B114: Dakota County | C114: Fish Lake - Phosphorus | D114: Fish Lake Nutrient TMDL - Phosphorus | E114: MS400132 | F114: Fish Lake Nutrient TMDL | G114: 19-0057-00 | H114: Individual | I114: 0.049 | J114: lbs/day | L114: N/A | M114: Fish Lake | N114: Phosphorus | O114: 2010-09-09 | P114: y
A115: 85 | B115: Dakota County | C115: Long Lake - Phosphorus | D115: Long and Farquar Lakes Nutrient TMDL - Phosphorus | E115: MS400132 | F115: Long and Farquar Lakes Nutrient TMDL | G115: 19-0022-00 | H115: Individual | I115: 0.03 | J115: lbs/day | L115: N/A | M115: Long Lake | N115: Phosphorus | O115: 2009-04-08 | P115: y
A116: 86 | B116: Dakota County | C116: Farquar Lake - Phosphorus | D116: Long and Farquar Lakes Nutrient TMDL - Phosphorus | E116: MS400132 | F116: Long and Farquar Lakes Nutrient TMDL | G116: 19-0023-00 | H116: Individual | I116: 0.08 | J116: lbs/day | L116: N/A | M116: Farquar Lake | N116: Phosphorus | O116: 2009-04-08 | P116: y
A117: 34 | B117: Dakota County | C117: Vermillion River/Vermillion Slough, Hasting dam to Mississippi River - TSS | D117: Lower Vermillion River Watershed Turbidity TMDL - TSS | E117: MS400132 | F117: Lower Vermillion River Watershed Turbidity TMDL | G117: 07040001-504 | H117: Individual | K117: 0 | M117: Vermillion River/Vermillion Slough, Hasting dam to Mississippi River | N117: TSS | O117: 2009-09-29 | P117: y
A118: 113 | B118: Dellwood City | C118: Bald Eagle Lake - Phosphorus | D118: Bald Eagle Lake: Excess Nutrients TMDL - Phosphorus | E118: MS400084 | F118: Bald Eagle Lake: Excess Nutrients TMDL | G118: 62-0002 | H118: Categorical | I118: 719 | J118: lbs/year | K118: 0.38 | L118: N/A | M118: Bald Eagle Lake | N118: Phosphorus | O118: 2012-06-11 | P118: n
A119: 3 | B119: Duluth Township | C119: Knife River - TSS | D119: Knife River Turbidity TMDL - TSS | E119: MS400134 | F119: Knife River Turbidity TMDL | G119: 04010102-504 | H119: Individual | I119: 0.031 | J119: tons/day | L119: Mid-Range | M119: Knife River | N119: TSS | O119: 2010-07-02 | P119: n
A120: 90 | B120: Eagan City | C120: Fish Lake - Phosphorus | D120: Fish Lake Nutrient TMDL - Phosphorus | E120: MS400014 | F120: Fish Lake Nutrient TMDL | G120: 19-0057-00 | H120: Individual | I120: 0.72 | J120: lbs/day | L120: N/A | M120: Fish Lake | N120: Phosphorus | O120: 2010-09-09 | P120: n
A121: 35 | B121: Eagan City | C121: Vermillion River; South Br. Vermillion River to the Hastings Dam - Fecal Coliform | D121: Lower Mississippi River Basin Fecal Coliform Bacteria TMDL - Fecal Coliform | E121: MS400014 | F121: Lower Mississippi River Basin Fecal Coliform Bacteria TMDL | G121: 07040001-506 | H121: Categorical | I121: 1.57 | J121: 10^12 organisms/month | L121: Mid-Range | M121: Vermillion River; South Br. Vermillion River to the Hastings Dam | N121: Fecal Coliform | O121: 2006-04-05 | P121: y
A122: 36 | B122: Eagan City | C122: Vermillion River; Below trout stream portion to South Br. Vermillion River - Fecal Coliform | D122: Lower Mississippi River Basin Fecal Coliform Bacteria TMDL - Fecal Coliform | E122: MS400014 | F122: Lower Mississippi River Basin Fecal Coliform Bacteria TMDL | G122: 07040001-507 | H122: Categorical | I122: 0.36 | J122: 10^12 organisms/month | L122: Mid-Range | M122: Vermillion River; Below trout stream portion to South Br. Vermillion River | N122: Fecal Coliform | O122: 2006-04-05 | P122: y
A123: 120 | B123: East Bethel City | C123: Lake St. Croix - Phosphorus | D123: Lake St. Croix Nutrient TMDL - Phosphorus | E123: MS400087 | F123: Lake St. Croix Nutrient TMDL | G123: 82-0001 | H123: Categorical | I123: 24.1 | J123: lbs/day | K123: 0.34 | L123: N/A | M123: Lake St. Croix | N123: Phosphorus | O123: 2012-08-08 | P123: n
A124: 1 | B124: East Bethel City | C124: Martin Lake - Phosphorus | D124: Typo Lake and Martin Lake TMDL - Phosphorus | E124: MS400087 | F124: Typo Lake and Martin Lake TMDL | G124: 02-0034-00 | H124: Individual | I124: 0.019 | J124: lbs/day | K124: 0 | L124: N/A | M124: Martin Lake | N124: Phosphorus | O124: 2012-06-20 | P124: n
A125: 28 | B125: Eden Prairie City | C125: Nine Mile Creek - Chloride | D125: Ninemile Creek: Impaired Biota, Turbidity & Chloride TMDL - Chloride | E125: MS400015 | F125: Ninemile Creek: Impaired Biota, Turbidity & Chloride TMDL | G125: 07020012-518 | H125: Categorical | I125: 5.164 | J125: tons/day | K125: 0.62 | M125: Nine Mile Creek | N125: Chloride | O125: 2010-11-29 | P125: y
A126: 28 | B126: Edina City | C126: Nine Mile Creek - Chloride | D126: Ninemile Creek: Impaired Biota, Turbidity & Chloride TMDL - Chloride | E126: MS400016 | F126: Ninemile Creek: Impaired Biota, Turbidity & Chloride TMDL | G126: 07020012-518 | H126: Categorical | I126: 5.164 | J126: tons/day | K126: 0.62 | M126: Nine Mile Creek | N126: Chloride | O126: 2010-11-29 | P126: n
A127: 35 | B127: Empire Township | C127: Vermillion River; South Br. Vermillion River to the Hastings Dam - Fecal Coliform | D127: Lower Mississippi River Basin Fecal Coliform Bacteria TMDL - Fecal Coliform | E127: MS400135 | F127: Lower Mississippi River Basin Fecal Coliform Bacteria TMDL | G127: 07040001-506 | H127: Categorical | I127: 1.57 | J127: 10^12 organisms/month | L127: Mid-Range | M127: Vermillion River; South Br. Vermillion River to the Hastings Dam | N127: Fecal Coliform | O127: 2006-04-05 | P127: n
A128: 36 | B128: Empire Township | C128: Vermillion River; Below trout stream portion to South Br. Vermillion River - Fecal Coliform | D128: Lower Mississippi River Basin Fecal Coliform Bacteria TMDL - Fecal Coliform | E128: MS400135 | F128: Lower Mississippi River Basin Fecal Coliform Bacteria TMDL | G128: 07040001-507 | H128: Categorical | I128: 0.36 | J128: 10^12 organisms/month | L128: Mid-Range | M128: Vermillion River; Below trout stream portion to South Br. Vermillion River | N128: Fecal Coliform | O128: 2006-04-05 | P128: n
A129: 34 | B129: Empire Township | C129: Vermillion River/Vermillion Slough, Hasting dam to Mississippi River - TSS | D129: Lower Vermillion River Watershed Turbidity TMDL - TSS | E129: MS400135 | F129: Lower Vermillion River Watershed Turbidity TMDL | G129: 07040001-504 | H129: Individual | I129: 279 | J129: kg/day | M129: Vermillion River/Vermillion Slough, Hasting dam to Mississippi River | N129: TSS | O129: 2009-09-29 | P129: n
A130: 16 | B130: Fairmont City | C130: Blue Earth River; Le Sueur River to Minnesota River - Fecal Coliform | D130: Blue Earth River Basin Fecal Coliform TMDL - Fecal Coliform | E130: MS400239 | F130: Blue Earth River Basin Fecal Coliform TMDL | G130: 07020009-501 | H130: Categorical | I130: 0.42 | J130: 10^12 organisms/day | L130: Mid-Range | M130: Blue Earth River; Le Sueur River to Minnesota River | N130: Fecal Coliform | O130: 2007-06-07 | P130: n
A131: 17 | B131: Fairmont City | C131: Center Creek; Lily Creek to Blue Earth River - Fecal Coliform | D131: Blue Earth River Basin Fecal Coliform TMDL - Fecal Coliform | E131: MS400239 | F131: Blue Earth River Basin Fecal Coliform TMDL | G131: 07020009-503 | H131: Individual | I131: 0.32 | J131: 10^12 organisms/day | L131: Mid-Range | M131: Center Creek; Lily Creek to Blue Earth River | N131: Fecal Coliform | O131: 2007-06-07 | P131: n
A132: 18 | B132: Fairmont City | C132: Blue Earth River; Rapidan Dam to Le Sueur River - Fecal Coliform | D132: Blue Earth River Basin Fecal Coliform TMDL - Fecal Coliform | E132: MS400239 | F132: Blue Earth River Basin Fecal Coliform TMDL | G132: 07020009-509 | H132: Individual | I132: 0.35 | J132: 10^12 organisms/day | L132: Mid-Range | M132: Blue Earth River; Rapidan Dam to Le Sueur River | N132: Fecal Coliform | O132: 2007-06-07 | P132: n
A133: 19 | B133: Fairmont City | C133: Dutch Creek; Headwaters to Hall Lk - Fecal Coliform | D133: Blue Earth River Basin Fecal Coliform TMDL - Fecal Coliform | E133: MS400239 | F133: Blue Earth River Basin Fecal Coliform TMDL | G133: 07020009-522 | H133: Individual | I133: 0.02 | J133: 10^12 organisms/day | L133: Mid-Range | M133: Dutch Creek; Headwaters to Hall Lk | N133: Fecal Coliform | O133: 2007-06-07 | P133: n
A134: 20 | B134: Fairmont City | C134: Lily Creek; Headwaters to Center Creek - Fecal Coliform | D134: Blue Earth River Basin Fecal Coliform TMDL - Fecal Coliform | E134: MS400239 | F134: Blue Earth River Basin Fecal Coliform TMDL | G134: 07020009-525 | H134: Individual | I134: 0.01 | J134: 10^12 organisms/day | L134: Mid-Range | M134: Lily Creek; Headwaters to Center Creek | N134: Fecal Coliform | O134: 2007-06-07 | P134: n
A135: 21 | B135: Fairmont City | C135: Center Creek; George Lake to Lily Creek - Fecal Coliform | D135: Blue Earth River Basin Fecal Coliform TMDL - Fecal Coliform | E135: MS400239 | F135: Blue Earth River Basin Fecal Coliform TMDL | G135: 07020009-526 | H135: Individual | I135: 0.24 | J135: 10^12 organisms/day | L135: Mid-Range | M135: Center Creek; George Lake to Lily Creek | N135: Fecal Coliform | O135: 2007-06-07 | P135: n
A136: 23 | B136: Fairmont City | C136: Minnesota River; Bevens Cr to Sand Cr - Phosphorus | D136: Lower Minnesota River Dissolved Oxygen TMDL - Phosphorus | E136: MS400239 | F136: Lower Minnesota River Dissolved Oxygen TMDL | G136: 07020012-501 | H136: Categorical | I136: 30.5 | J136: lbs/day | K136: 0.3 | M136: Minnesota River; Bevens Cr to Sand Cr | N136: Phosphorus | O136: 2004-09-28 | P136: n
A137: 24 | B137: Fairmont City | C137: Minnesota River; RM 22 to Mississippi R - Phosphorus | D137: Lower Minnesota River Dissolved Oxygen TMDL - Phosphorus | E137: MS400239 | F137: Lower Minnesota River Dissolved Oxygen TMDL | G137: 07020012-505 | H137: Categorical | I137: 30.5 | J137: lbs/day | K137: 0.3 | M137: Minnesota River; RM 22 to Mississippi R | N137: Phosphorus | O137: 2004-09-28 | P137: n
A138: 25 | B138: Fairmont City | C138: Minnesota River; Carver Cr to RM 22 - Phosphorus | D138: Lower Minnesota River Dissolved Oxygen TMDL - Phosphorus | E138: MS400239 | F138: Lower Minnesota River Dissolved Oxygen TMDL | G138: 07020012-506 | H138: Categorical | I138: 30.5 | J138: lbs/day | K138: 0.3 | M138: Minnesota River; Carver Cr to RM 22 | N138: Phosphorus | O138: 2004-09-28 | P138: n
A139: 29 | B139: Fairmont City | C139: Minnesota River; Sand Cr to Carver Cr - Phosphorus | D139: Lower Minnesota River Dissolved Oxygen TMDL - Phosphorus | E139: MS400239 | F139: Lower Minnesota River Dissolved Oxygen TMDL | G139: 07020012-532 | H139: Categorical | I139: 30.5 | J139: lbs/day | K139: 0.3 | M139: Minnesota River; Sand Cr to Carver Cr | N139: Phosphorus | O139: 2004-09-28 | P139: n
A140: 115 | B140: Falcon Heights City | C140: Como Lake - Phosphorus | D140: Como Lake: Excess Nutrients TMDL - Phosphorus | E140: MS400018 | F140: Como Lake: Excess Nutrients TMDL | G140: 62-0055-00 | H140: Categorical | I140: 0.68 | J140: lbs/day | K140: 0.6 | L140: N/A | M140: Como Lake | N140: Phosphorus | O140: 2010-12-23 | P140: n
A141: 37 | B141: Faribault City | C141: Cannon River, HUC boundary in Rice Lk Bottoms to Vermillion Slough/Mississippi R - TSS | D141: Lower Cannon River Turbidity TMDL - TSS | E141: MS400233 | F141: Lower Cannon River Turbidity TMDL | G141: 07040001-511 | H141: Categorical | I141: 3 | J141: tons/day | L141: Mid-Range | M141: Cannon River, HUC boundary in Rice Lk Bottoms to Vermillion Slough/Mississippi R | N141: TSS | O141: 2007-07-13 | P141: y
A142: 39 | B142: Faribault City | C142: Cannon River, Pine Creek to Belle Creek - TSS | D142: Lower Cannon River Turbidity TMDL - TSS | E142: MS400233 | F142: Lower Cannon River Turbidity TMDL | G142: 07040002-502 | H142: Categorical | I142: 2.7 | J142: tons/day | L142: Mid-Range | M142: Cannon River, Pine Creek to Belle Creek | N142: TSS | O142: 2007-07-13 | P142: y
A143: 38 | B143: Faribault City | C143: Cannon River, Pine Creek to Belle Creek - Fecal Coliform | D143: Lower Mississippi River Basin Fecal Coliform Bacteria TMDL - Fecal Coliform | E143: MS400233 | F143: Lower Mississippi River Basin Fecal Coliform Bacteria TMDL | G143: 07040002-502 | H143: Categorical | I143: 1.12 | J143: 10^12 organisms/month | L143: Mid-Range | M143: Cannon River, Pine Creek to Belle Creek | N143: Fecal Coliform | O143: 2006-04-05 | P143: y
A144: 41 | B144: Faribault City | C144: Cannon River, Northfield Dam to Lake Byllesby Inlet - Fecal Coliform | D144: Lower Mississippi River Basin Fecal Coliform Bacteria TMDL - Fecal Coliform | E144: MS400233 | F144: Lower Mississippi River Basin Fecal Coliform Bacteria TMDL | G144: 07040002-509 | H144: Categorical | I144: 1.07 | J144: 10^12 organisms/month | L144: Mid-Range | M144: Cannon River, Northfield Dam to Lake Byllesby Inlet | N144: Fecal Coliform | O144: 2006-04-05 | P144: y
A145: 42 | B145: Faribault City | C145: Straight River, Rush Creek to Cannon River - Fecal Coliform | D145: Lower Mississippi River Basin Fecal Coliform Bacteria TMDL - Fecal Coliform | E145: MS400233 | F145: Lower Mississippi River Basin Fecal Coliform Bacteria TMDL | G145: 07040002-515 | H145: Categorical | I145: 0.8 | J145: 10^12 organisms/month | L145: Mid-Range | M145: Straight River, Rush Creek to Cannon River | N145: Fecal Coliform | O145: 2006-04-05 | P145: y
A146: 35 | B146: Farmington City | C146: Vermillion River; South Br. Vermillion River to the Hastings Dam - Fecal Coliform | D146: Lower Mississippi River Basin Fecal Coliform Bacteria TMDL - Fecal Coliform | E146: MS400090 | F146: Lower Mississippi River Basin Fecal Coliform Bacteria TMDL | G146: 07040001-506 | H146: Categorical | I146: 1.57 | J146: 10^12 organisms/month | L146: Mid-Range | M146: Vermillion River; South Br. Vermillion River to the Hastings Dam | N146: Fecal Coliform | O146: 2006-04-05 | P146: y
A147: 36 | B147: Farmington City | C147: Vermillion River; Below trout stream portion to South Br. Vermillion River - Fecal Coliform | D147: Lower Mississippi River Basin Fecal Coliform Bacteria TMDL - Fecal Coliform | E147: MS400090 | F147: Lower Mississippi River Basin Fecal Coliform Bacteria TMDL | G147: 07040001-507 | H147: Categorical | I147: 0.36 | J147: 10^12 organisms/month | L147: Mid-Range | M147: Vermillion River; Below trout stream portion to South Br. Vermillion River | N147: Fecal Coliform | O147: 2006-04-05 | P147: y
A148: 34 | B148: Farmington City | C148: Vermillion River/Vermillion Slough, Hasting dam to Mississippi River - TSS | D148: Lower Vermillion River Watershed Turbidity TMDL - TSS | E148: MS400090 | F148: Lower Vermillion River Watershed Turbidity TMDL | G148: 07040001-504 | H148: Individual | I148: 94 | J148: kg/day | M148: Vermillion River/Vermillion Slough, Hasting dam to Mississippi River | N148: TSS | O148: 2009-09-29 | P148: y
A149: 46 | B149: Federal Medical Center | C149: Zumbro River; West Indian Creek to Mississippi River - Fecal Coliform | D149: Lower Mississippi River Basin Fecal Coliform Bacteria TMDL - Fecal Coliform | E149: MS400175 | F149: Lower Mississippi River Basin Fecal Coliform Bacteria TMDL | G149: 07040004-501 | H149: Categorical | I149: 2.35 | J149: 10^12 organisms/month | L149: Mid-Range | M149: Zumbro River; West Indian Creek to Mississippi River | N149: Fecal Coliform | O149: 2006-04-05 | P149: n | Q149: did not fill out their attachment form
A150: 48 | B150: Federal Medical Center | C150: Zumbro River; Cold Creek to West Indian Creek - Fecal Coliform | D150: Lower Mississippi River Basin Fecal Coliform Bacteria TMDL - Fecal Coliform | E150: MS400175 | F150: Lower Mississippi River Basin Fecal Coliform Bacteria TMDL | G150: 07040004-502 | H150: Categorical | I150: 2.34 | J150: 10^12 organisms/month | L150: Mid-Range | M150: Zumbro River; Cold Creek to West Indian Creek | N150: Fecal Coliform | O150: 2006-04-05 | P150: n
A151: 49 | B151: Federal Medical Center | C151: South Fork Zumbro River; Cascade Creek to Lake Zumbro - Fecal Coliform | D151: Lower Mississippi River Basin Fecal Coliform Bacteria TMDL - Fecal Coliform | E151: MS400175 | F151: Lower Mississippi River Basin Fecal Coliform Bacteria TMDL | G151: 07040004-507 | H151: Categorical | I151: 2.23 | J151: 10^12 organisms/month | L151: Mid-Range | M151: South Fork Zumbro River; Cascade Creek to Lake Zumbro | N151: Fecal Coliform | O151: 2006-04-05 | P151: n
A152: 51 | B152: Federal Medical Center | C152: South Fork Zumbro River; Silver Lake Dam to Cascade Creek - Fecal Coliform | D152: Lower Mississippi River Basin Fecal Coliform Bacteria TMDL - Fecal Coliform | E152: MS400175 | F152: Lower Mississippi River Basin Fecal Coliform Bacteria TMDL | G152: 07040004-533 | H152: Categorical | I152: 1.4 | J152: 10^12 organisms/month | L152: Mid-Range | M152: South Fork Zumbro River; Silver Lake Dam to Cascade Creek | N152: Fecal Coliform | O152: 2006-04-05 | P152: n
A153: 52 | B153: Federal Medical Center | C153: South Fork Zumbro River; Bear Creek to Oakwood Dam - Fecal Coliform | D153: Lower Mississippi River Basin Fecal Coliform Bacteria TMDL - Fecal Coliform | E153: MS400175 | F153: Lower Mississippi River Basin Fecal Coliform Bacteria TMDL | G153: 07040004-535 | H153: Categorical | I153: 1.26 | J153: 10^12 organisms/month | L153: Mid-Range | M153: South Fork Zumbro River; Bear Creek to Oakwood Dam | N153: Fecal Coliform | O153: 2006-04-05 | P153: n
A154: 53 | B154: Federal Medical Center | C154: South Fork Zumbro River; Salem Creek to Bear Creek - Fecal Coliform | D154: Lower Mississippi River Basin Fecal Coliform Bacteria TMDL - Fecal Coliform | E154: MS400175 | F154: Lower Mississippi River Basin Fecal Coliform Bacteria TMDL | G154: 07040004-536 | H154: Categorical | I154: 0.44 | J154: 10^12 organisms/month | L154: Mid-Range | M154: South Fork Zumbro River; Salem Creek to Bear Creek | N154: Fecal Coliform | O154: 2006-04-05 | P154: n
A155: 47 | B155: Federal Medical Center | C155: Zumbro River; West Indian Cr to Mississippi River - TSS | D155: Zumbro River Watershed TMDL for Turbidity Impairments - TSS | E155: MS400175 | F155: Zumbro River Watershed TMDL for Turbidity Impairments | G155: 07040004-501 | H155: Catergorical | I155: 7.21 | J155: tons/day | L155: Mid-Range | M155: Zumbro River; West Indian Cr to Mississippi River | N155: TSS | O155: 2012-05-25 | P155: n
A156: 50 | B156: Federal Medical Center | C156: Zumbro River, South Fork; Cascade Cr to Zumbro Lk - TSS | D156: Zumbro River Watershed TMDL for Turbidity Impairments - TSS | E156: MS400175 | F156: Zumbro River Watershed TMDL for Turbidity Impairments | G156: 07040004-507 | H156: Catergorical | I156: 3.96 | J156: tons/day | L156: Mid-Range | M156: Zumbro River, South Fork; Cascade Cr to Zumbro Lk | N156: TSS | O156: 2012-05-25 | P156: n
A157: 55 | B157: Federal Medical Center | C157: Bear Creek; Willow Cr to S Fk Zumbro R. - TSS | D157: Zumbro River Watershed TMDL for Turbidity Impairments - TSS | E157: MS400175 | F157: Zumbro River Watershed TMDL for Turbidity Impairments | G157: 07040004-538 | H157: Catergorical | I157: 2.63 | J157: tons/day | L157: Mid-Range | M157: Bear Creek; Willow Cr to S Fk Zumbro R. | N157: TSS | O157: 2012-05-25 | P157: n
A158: 58 | B158: Federal Medical Center | C158: Silver Creek; Unnamed Cr to Unnamed Cr - TSS | D158: Zumbro River Watershed TMDL for Turbidity Impairments - TSS | E158: MS400175 | F158: Zumbro River Watershed TMDL for Turbidity Impairments | G158: 07040004-552 | H158: Catergorical | I158: 0.11 | J158: tons/day | L158: Mid-Range | M158: Silver Creek; Unnamed Cr to Unnamed Cr | N158: TSS | O158: 2012-05-25 | P158: n
A159: 59 | B159: Federal Medical Center | C159: Silver Creek; Unnamed Cr to Silver Lk S Fk Zumbro R. - TSS | D159: Zumbro River Watershed TMDL for Turbidity Impairments - TSS | E159: MS400175 | F159: Zumbro River Watershed TMDL for Turbidity Impairments | G159: 07040004-553 | H159: Catergorical | I159: 0.21 | J159: tons/day | L159: Mid-Range | M159: Silver Creek; Unnamed Cr to Silver Lk S Fk Zumbro R. | N159: TSS | O159: 2012-05-25 | P159: n
A160: 83 | B160: Forest Lake City | C160: Comfort Lake - Phosphorus | D160: Comfort Lake-Forest Lake Watershed District Six Lakes TMDL - Phosphorus | E160: MS400262 | F160: Comfort Lake-Forest Lake Watershed District Six Lakes TMDL | G160: 13-0053-00 | H160: Individual | I160: 1.35 | J160: lbs/day | L160: N/A | M160: Comfort Lake | N160: Phosphorus | O160: 2010-06-07 | P160: n
A161: 84 | B161: Forest Lake City | C161: Little Comfort Lake - Phosphorus | D161: Comfort Lake-Forest Lake Watershed District Six Lakes TMDL - Phosphorus | E161: MS400262 | F161: Comfort Lake-Forest Lake Watershed District Six Lakes TMDL | G161: 13-0054-00 | H161: Individual | I161: 0.01 | J161: lbs/day | L161: N/A | M161: Little Comfort Lake | N161: Phosphorus | O161: 2010-06-07 | P161: n
A162: 122 | B162: Forest Lake City | C162: Shields Lake - Phosphorus | D162: Comfort Lake-Forest Lake Watershed District Six Lakes TMDL - Phosphorus | E162: MS400262 | F162: Comfort Lake-Forest Lake Watershed District Six Lakes TMDL | G162: 82-0162-00 | H162: Individual | I162: 0.049 | J162: lbs/day | L162: N/A | M162: Shields Lake | N162: Phosphorus | O162: 2010-06-07 | P162: n
A163: 120 | B163: Forest Lake City | C163: Lake St. Croix - Phosphorus | D163: Lake St. Croix Nutrient TMDL - Phosphorus | E163: MS400262 | F163: Lake St. Croix Nutrient TMDL | G163: 82-0001 | H163: Categorical | I163: 24.1 | J163: lbs/day | K163: 0.34 | L163: N/A | M163: Lake St. Croix | N163: Phosphorus | O163: 2012-08-08 | P163: n
A164: 105 | B164: Golden Valley City | C164: Medicine Lake - Phosphorus | D164: Medicine Lake Excess Nutrients TMDL - Phosphorus | E164: MS400021 | F164: Medicine Lake Excess Nutrients TMDL | G164: 27-0104-00 | H164: Categorical | I164: 8.44 | J164: lbs/day | L164: N/A | M164: Medicine Lake | N164: Phosphorus | O164: 2011-02-08 | P164: y
A165: 93 | B165: Golden Valley City | C165: Sweeney Lake - Phosphorus | D165: Sweeney Lake Total Phosphorus TMDL - Phosphorus | E165: MS400021 | F165: Sweeney Lake Total Phosphorus TMDL | G165: 27-0035-01 | H165: Categorical | I165: 4 | J165: lbs/day | K165: 0.15 | L165: N/A | M165: Sweeney Lake | N165: Phosphorus | O165: 2011-08-10 | P165: y
A166: 94 | B166: Golden Valley City | C166: Wirth Lake - Phosphorus | D166: Wirth Lake: Excess Nutrients TMDL - Phosphorus | E166: MS400021 | F166: Wirth Lake: Excess Nutrients TMDL | G166: 27-0037 | H166: Categorical | I166: 0.104 | J166: lbs/day | L166: N/A | M166: Wirth Lake | N166: Phosphorus | O166: 2010-10-25 | P166: y
A167: 113 | B167: Grant City | C167: Bald Eagle Lake - Phosphorus | D167: Bald Eagle Lake: Excess Nutrients TMDL - Phosphorus | E167: MS400091 | F167: Bald Eagle Lake: Excess Nutrients TMDL | G167: 62-0002 | H167: Categorical | I167: 719 | J167: lbs/year | K167: 0.38 | L167: N/A | M167: Bald Eagle Lake | N167: Phosphorus | O167: 2012-06-11 | P167: n
A168: 120 | B168: Grant City | C168: Lake St. Croix - Phosphorus | D168: Lake St. Croix Nutrient TMDL - Phosphorus | E168: MS400091 | F168: Lake St. Croix Nutrient TMDL | G168: 82-0001 | H168: Categorical | I168: 24.1 | J168: lbs/day | K168: 0.34 | L168: N/A | M168: Lake St. Croix | N168: Phosphorus | O168: 2012-08-08 | P168: n
A169: 35 | B169: Hastings City | C169: Vermillion River; South Br. Vermillion River to the Hastings Dam - Fecal Coliform | D169: Lower Mississippi River Basin Fecal Coliform Bacteria TMDL - Fecal Coliform | E169: MS400240 | F169: Lower Mississippi River Basin Fecal Coliform Bacteria TMDL | G169: 07040001-506 | H169: Categorical | I169: 1.57 | J169: 10^12 organisms/month | L169: Mid-Range | M169: Vermillion River; South Br. Vermillion River to the Hastings Dam | N169: Fecal Coliform | O169: 2006-04-05 | Q169: Couldn't find attachment form
A170: 34 | B170: Hastings City | C170: Vermillion River/Vermillion Slough, Hasting dam to Mississippi River - TSS | D170: Lower Vermillion River Watershed Turbidity TMDL - TSS | E170: MS400240 | F170: Lower Vermillion River Watershed Turbidity TMDL | G170: 07040001-504 | H170: Individual | I170: 64 | J170: kg/day | M170: Vermillion River/Vermillion Slough, Hasting dam to Mississippi River | N170: TSS | O170: 2009-09-29
A171: 6 | B171: Haven Township | C171: Elk River: Big Elk Lake to St. Francis - E. Coli | D171: Elk River Watershed – Multiple Impairments TMDL - E. Coli | E171: MS400136 | F171: Elk River Watershed – Multiple Impairments TMDL | G171: 07010203-579 | H171: Categorical | I171: 101.84 | J171: 10^9 organisms/day | K171: 0 | L171: Mid-Range | M171: Elk River: Big Elk Lake to St. Francis | N171: E. Coli | O171: 2012-06-14 | P171: n
A172: 4 | B172: Haven Township | C172: Mayhew Lake - Phosphorus | D172: Elk River Watershed – Multiple Impairments TMDL - Phosphorus | E172: MS400136 | F172: Elk River Watershed – Multiple Impairments TMDL | G172: 05-0007-00 | H172: Categorical | I172: 0 | J172: lbs/day | L172: N/A | M172: Mayhew Lake | N172: Phosphorus | O172: 2012-06-14 | P172: n
A173: 119 | B173: Haven Township | C173: Big Elk Lake - Phosphorus | D173: Elk River Watershed – Multiple Impairments TMDL - Phosphorus | E173: MS400136 | F173: Elk River Watershed – Multiple Impairments TMDL | G173: 71-0141-00 | H173: Categorical | I173: 7.48 | J173: lbs/day | L173: N/A | M173: Big Elk Lake | N173: Phosphorus | O173: 2012-06-14 | P173: n
A174: 7 | B174: Haven Township | C174: Elk River: Big Elk Lake to St. Francis - TSS | D174: Elk River Watershed – Multiple Impairments TMDL - TSS | E174: MS400136 | F174: Elk River Watershed – Multiple Impairments TMDL | G174: 07010203-579 | H174: Categorical | I174: 0.03 | J174: tons/day | L174: Mid-Range | M174: Elk River: Big Elk Lake to St. Francis | N174: TSS | O174: 2012-06-14 | P174: n
A175: 46 | B175: Haverhill Township | C175: Zumbro River; West Indian Creek to Mississippi River - Fecal Coliform | D175: Lower Mississippi River Basin Fecal Coliform Bacteria TMDL - Fecal Coliform | E175: MS400137 | F175: Lower Mississippi River Basin Fecal Coliform Bacteria TMDL | G175: 07040004-501 | H175: Categorical | I175: 2.35 | J175: 10^12 organisms/month | L175: Mid-Range | M175: Zumbro River; West Indian Creek to Mississippi River | N175: Fecal Coliform | O175: 2006-04-05 | P175: y
A176: 48 | B176: Haverhill Township | C176: Zumbro River; Cold Creek to West Indian Creek - Fecal Coliform | D176: Lower Mississippi River Basin Fecal Coliform Bacteria TMDL - Fecal Coliform | E176: MS400137 | F176: Lower Mississippi River Basin Fecal Coliform Bacteria TMDL | G176: 07040004-502 | H176: Categorical | I176: 2.34 | J176: 10^12 organisms/month | L176: Mid-Range | M176: Zumbro River; Cold Creek to West Indian Creek | N176: Fecal Coliform | O176: 2006-04-05 | P176: y
A177: 49 | B177: Haverhill Township | C177: South Fork Zumbro River; Cascade Creek to Lake Zumbro - Fecal Coliform | D177: Lower Mississippi River Basin Fecal Coliform Bacteria TMDL - Fecal Coliform | E177: MS400137 | F177: Lower Mississippi River Basin Fecal Coliform Bacteria TMDL | G177: 07040004-507 | H177: Categorical | I177: 2.23 | J177: 10^12 organisms/month | L177: Mid-Range | M177: South Fork Zumbro River; Cascade Creek to Lake Zumbro | N177: Fecal Coliform | O177: 2006-04-05 | P177: y
A178: 51 | B178: Haverhill Township | C178: South Fork Zumbro River; Silver Lake Dam to Cascade Creek - Fecal Coliform | D178: Lower Mississippi River Basin Fecal Coliform Bacteria TMDL - Fecal Coliform | E178: MS400137 | F178: Lower Mississippi River Basin Fecal Coliform Bacteria TMDL | G178: 07040004-533 | H178: Categorical | I178: 1.4 | J178: 10^12 organisms/month | L178: Mid-Range | M178: South Fork Zumbro River; Silver Lake Dam to Cascade Creek | N178: Fecal Coliform | O178: 2006-04-05 | P178: y
A179: 52 | B179: Haverhill Township | C179: South Fork Zumbro River; Bear Creek to Oakwood Dam - Fecal Coliform | D179: Lower Mississippi River Basin Fecal Coliform Bacteria TMDL - Fecal Coliform | E179: MS400137 | F179: Lower Mississippi River Basin Fecal Coliform Bacteria TMDL | G179: 07040004-535 | H179: Categorical | I179: 1.26 | J179: 10^12 organisms/month | L179: Mid-Range | M179: South Fork Zumbro River; Bear Creek to Oakwood Dam | N179: Fecal Coliform | O179: 2006-04-05 | P179: y
A180: 53 | B180: Haverhill Township | C180: South Fork Zumbro River; Salem Creek to Bear Creek - Fecal Coliform | D180: Lower Mississippi River Basin Fecal Coliform Bacteria TMDL - Fecal Coliform | E180: MS400137 | F180: Lower Mississippi River Basin Fecal Coliform Bacteria TMDL | G180: 07040004-536 | H180: Categorical | I180: 0.44 | J180: 10^12 organisms/month | L180: Mid-Range | M180: South Fork Zumbro River; Salem Creek to Bear Creek | N180: Fecal Coliform | O180: 2006-04-05 | P180: y
A181: 47 | B181: Haverhill Township | C181: Zumbro River; West Indian Cr to Mississippi River - TSS | D181: Zumbro River Watershed TMDL for Turbidity Impairments - TSS | E181: MS400137 | F181: Zumbro River Watershed TMDL for Turbidity Impairments | G181: 07040004-501 | H181: Catergorical | I181: 7.21 | J181: tons/day | L181: Mid-Range | M181: Zumbro River; West Indian Cr to Mississippi River | N181: TSS | O181: 2012-05-25 | P181: y
A182: 50 | B182: Haverhill Township | C182: Zumbro River, South Fork; Cascade Cr to Zumbro Lk - TSS | D182: Zumbro River Watershed TMDL for Turbidity Impairments - TSS | E182: MS400137 | F182: Zumbro River Watershed TMDL for Turbidity Impairments | G182: 07040004-507 | H182: Catergorical | I182: 3.96 | J182: tons/day | L182: Mid-Range | M182: Zumbro River, South Fork; Cascade Cr to Zumbro Lk | N182: TSS | O182: 2012-05-25 | P182: y
A183: 55 | B183: Haverhill Township | C183: Bear Creek; Willow Cr to S Fk Zumbro R. - TSS | D183: Zumbro River Watershed TMDL for Turbidity Impairments - TSS | E183: MS400137 | F183: Zumbro River Watershed TMDL for Turbidity Impairments | G183: 07040004-538 | H183: Catergorical | I183: 2.63 | J183: tons/day | L183: Mid-Range | M183: Bear Creek; Willow Cr to S Fk Zumbro R. | N183: TSS | O183: 2012-05-25 | P183: y
A184: 58 | B184: Haverhill Township | C184: Silver Creek; Unnamed Cr to Unnamed Cr - TSS | D184: Zumbro River Watershed TMDL for Turbidity Impairments - TSS | E184: MS400137 | F184: Zumbro River Watershed TMDL for Turbidity Impairments | G184: 07040004-552 | H184: Catergorical | I184: 0.11 | J184: tons/day | L184: Mid-Range | M184: Silver Creek; Unnamed Cr to Unnamed Cr | N184: TSS | O184: 2012-05-25 | P184: y
A185: 59 | B185: Haverhill Township | C185: Silver Creek; Unnamed Cr to Silver Lk S Fk Zumbro R. - TSS | D185: Zumbro River Watershed TMDL for Turbidity Impairments - TSS | E185: MS400137 | F185: Zumbro River Watershed TMDL for Turbidity Impairments | G185: 07040004-553 | H185: Catergorical | I185: 0.21 | J185: tons/day | L185: Mid-Range | M185: Silver Creek; Unnamed Cr to Silver Lk S Fk Zumbro R. | N185: TSS | O185: 2012-05-25 | P185: y
A186: 106 | B186: Hennepin County | C186: Eagle Lake - Phosphorus | D186: Cedar Island, Pike, and Eagle Lakes Nutrient TMDL - Phosphorus | E186: MS400138 | F186: Cedar Island, Pike, and Eagle Lakes Nutrient TMDL | G186: 27-0111-01 | H186: Categorical | I186: 0.81 | J186: kg/day | L186: N/A | M186: Eagle Lake | N186: Phosphorus | O186: 2010-04-14 | P186: n
A187: 107 | B187: Hennepin County | C187: Pike Lake - Phosphorus | D187: Cedar Island, Pike, and Eagle Lakes Nutrient TMDL - Phosphorus | E187: MS400138 | F187: Cedar Island, Pike, and Eagle Lakes Nutrient TMDL | G187: 27-0111-02 | H187: Categorical | I187: 0.35 | J187: kg/day | L187: N/A | M187: Pike Lake | N187: Phosphorus | O187: 2010-04-14 | P187: n
A188: 108 | B188: Hennepin County | C188: Cedar Island Lake - Phosphorus | D188: Cedar Island, Pike, and Eagle Lakes Nutrient TMDL - Phosphorus | E188: MS400138 | F188: Cedar Island, Pike, and Eagle Lakes Nutrient TMDL | G188: 27-0119-00 | H188: Categorical | I188: 0.133 | J188: kg/day | L188: N/A | M188: Cedar Island Lake | N188: Phosphorus | O188: 2010-04-14 | P188: n
A189: 92 | B189: Hennepin County | C189: Crystal Lake - Phosphorus | D189: Crystal Lake Nutrient TMDL - Phosphorus | E189: MS400138 | F189: Crystal Lake Nutrient TMDL | G189: 27-0034 | H189: Categorical | I189: 0.22 | J189: kg/day | L189: N/A | M189: Crystal Lake | N189: Phosphorus | O189: 2009-03-25 | P189: n
A190: 109 | B190: Hennepin County | C190: Lake Independence - Phosphorus | D190: Lake Independence Phosphorus TMDL - Phosphorus | E190: MS400138 | F190: Lake Independence Phosphorus TMDL | G190: 27-0176-00 | H190: Individual | I190: ** | J190: lbs/day | K190: 0 | L190: N/A | M190: Lake Independence | N190: Phosphorus | O190: 2007-02-23 | P190: y
A191: 91 | B191: Hennepin County | C191: Lake Nokomis - Phosphorus | D191: Minnehaha Creek Watershed District Lakes TMDL - Phosphorus | E191: MS400138 | F191: Minnehaha Creek Watershed District Lakes TMDL | G191: 27-0019 | H191: Individual | I191: 0.0303 | J191: lbs/day | K191: 0.3 | L191: N/A | M191: Lake Nokomis | N191: Phosphorus | O191: 2011-04-25 | P191: n
A192: 28 | B192: Hennepin County | C192: Nine Mile Creek - Chloride | D192: Ninemile Creek: Impaired Biota, Turbidity & Chloride TMDL - Chloride | E192: MS400138 | F192: Ninemile Creek: Impaired Biota, Turbidity & Chloride TMDL | G192: 07020012-518 | H192: Individual | I192: 0.463 | J192: tons/day | K192: 0.78 | M192: Nine Mile Creek | N192: Chloride | O192: 2010-11-29 | P192: n
A193: 102 | B193: Hennepin County | C193: Bass Lake - Phosphorus | D193: Schmidt, Pomerleau and Bass Lakes Nutrient TMDL - Phosphorus | E193: MS400138 | F193: Schmidt, Pomerleau and Bass Lakes Nutrient TMDL | G193: 27-0098 | H193: Categorical | I193: 1.12 | J193: kg/day | L193: N/A | M193: Bass Lake | N193: Phosphorus | O193: 2009-09-25 | P193: n
A194: 9 | B194: Hennepin County | C194: Shingle Creek; Lower Shingle Creek Watershed - Nitrogenous biochemical oxygen demand | D194: Shingle Creek and Bass Creek Biota and Dissolved Oxygen TMDL - Nitrogenous biochemical oxygen demand | E194: MS400138 | F194: Shingle Creek and Bass Creek Biota and Dissolved Oxygen TMDL | G194: 07010206-506 | H194: Categorical | I194: 11.8 | J194: kg/day | L194: N/A | M194: Shingle Creek; Lower Shingle Creek Watershed | N194: Nitrogenous biochemical oxygen demand | O194: 2011-11-04 | P194: n
A195: 9 | B195: Hennepin County | C195: Shingle Creek; Upper Shingle Creek Watershed - Nitrogenous biochemical oxygen demand | D195: Shingle Creek and Bass Creek Biota and Dissolved Oxygen TMDL - Nitrogenous biochemical oxygen demand | E195: MS400138 | F195: Shingle Creek and Bass Creek Biota and Dissolved Oxygen TMDL | G195: 07010206-506 | H195: Categorical | I195: 35.8 | J195: kg/day | L195: N/A | M195: Shingle Creek; Upper Shingle Creek Watershed | N195: Nitrogenous biochemical oxygen demand | O195: 2011-11-04 | P195: n
A196: 8 | B196: Hennepin County | C196: Shingle Creek - Chloride | D196: Shingle Creek Chloride TMDL - Chloride | E196: MS400138 | F196: Shingle Creek Chloride TMDL | G196: 07010206-506 | H196: Categorical | I196: 4.5 | J196: tons/day | L196: Mid-Range | M196: Shingle Creek | N196: Chloride | O196: 2007-02-14 | P196: n
A197: 8 | B197: Hennepin County | C197: Shingle Creek - Chloride | D197: Shingle Creek Chloride TMDL - Chloride | E197: MS400138 | F197: Shingle Creek Chloride TMDL | G197: 07010206-506 | H197: Categorical | K197: 0.63 | L197: Winter Low Flow (60% to 100%) | M197: Shingle Creek | N197: Chloride | O197: 2007-02-14 | P197: n
A198: 8 | B198: Hennepin County | C198: Shingle Creek - Chloride | D198: Shingle Creek Chloride TMDL - Chloride | E198: MS400138 | F198: Shingle Creek Chloride TMDL | G198: 07010206-506 | H198: Categorical | K198: 0.71 | L198: Winter Runoff (60% to 0%) | M198: Shingle Creek | N198: Chloride | O198: 2007-02-14 | P198: n
A199: 116 | B199: Hennepin County | C199: Silver Lake - Phosphorus | D199: Silver Lake TMDL - Phosphorus | E199: MS400138 | F199: Silver Lake TMDL | G199: 62-0083-00 | H199: Categorical | I199: 0.55 | J199: lbs/day | K199: 0.17 | L199: N/A | M199: Silver Lake | N199: Phosphorus | O199: 2010-07-29 | P199: n
A200: 93 | B200: Hennepin County | C200: Sweeney Lake - Phosphorus | D200: Sweeney Lake Total Phosphorus TMDL - Phosphorus | E200: MS400138 | F200: Sweeney Lake Total Phosphorus TMDL | G200: 27-0035-01 | H200: Categorical | I200: 4 | J200: lbs/day | K200: 0.15 | L200: N/A | M200: Sweeney Lake | N200: Phosphorus | O200: 2011-08-10 | P200: n
... 426 more rows

Sheet BMPs (hidden)
B1: EntryID | C1: Permittee | D1: MS4ID | E1: ReportingYear | F1: BMPActivity | G1: BMPDescription | H1: StructuralNonStructural | I1: BMPID | J1: ycoord | K1: xcoord | L1: CoordSystem | M1: Ownership | N1: OtherOwner | O1: YearImplemented | P1: Notes | Q1: TMDL
B2: MS400074-1 | C2: Apple Valley | D2: MS400074 | E2: 2014 | F2: Constructed_basin | G2: Wet pond/wet detention pond | H2: Structural | I2: EVR-P13 | J2: 44.75809 | K2: 93.177815 | L2: Lat-long | M2: Permittee (you) | N2: NA | O2: 0 | P2: expand existing basin | Q2: Farquar Lake - Phophorus
B3: MS400074-2 | C3: Apple Valley | D3: MS400074 | E3: 2014 | F3: Infiltrator | G3: Bioretention with no underdrain (rain garden) | H3: Structural | I3: EVR-P13.1 | J3: 44.762487 | K3: 93.186434 | L3: Lat-long | M3: Other | N3: IDS 196 | O3: 0 | P3: 0 | Q3: Farquar Lake - Phophorus
B4: MS400074-3 | C4: Apple Valley | D4: MS400074 | E4: 2014 | F4: Infiltrator | G4: Bioretention with no underdrain (rain garden) | H4: Structural | I4: EVR-P13.2 | J4: 44.761169 | K4: 93.183751 | L4: Lat-long | M4: Other | N4: IDS 196 | O4: 0 | P4: 0 | Q4: Farquar Lake - Phophorus
B5: MS400074-4 | C5: Apple Valley | D5: MS400074 | E5: 2014 | F5: Filter | G5: Bioretention with underdrain (rain garden) | H5: Structural | I5: EVR-P12.1 | J5: 44.755331 | K5: 93.180048 | L5: Lat-long | M5: Permittee (you) | N5: 0 | O5: 0 | P5: 0 | Q5: Farquar Lake - Phophorus
B6: MS400074-5 | C6: Apple Valley | D6: MS400074 | E6: 2014 | F6: Filter | G6: Bioretention with underdrain (rain garden) | H6: Structural | I6: EVR-P12.2 | J6: 44.756365 | K6: 93.180485 | L6: Lat-long | M6: Permittee (you) | N6: NA | O6: 0 | P6: 0 | Q6: Farquar Lake - Phophorus
B7: MS400074-6 | C7: Apple Valley | D7: MS400074 | E7: 2014 | F7: Filter | G7: Iron enhanced filter | H7: Structural | I7: EVR-P17.2, EVR-P17.1 | J7: 44.757594 | K7: 93.179925 | L7: Lat-long | M7: Permittee (you) | N7: NA | O7: 0 | P7: 0 | Q7: Farquar Lake - Phophorus
B8: MS400074-7 | C8: Apple Valley | D8: MS400074 | E8: 2014 | F8: Chemical_treatment_of_stormwater | G8: 0 | H8: Non-Structural | I8: NA | J8: NA | K8: NA | L8: NA | M8: Permittee (you) | N8: NA | O8: 0 | P8: EVR-P12 Alum Treatments 23lbs | Q8: Farquar Lake - Phophorus
B9: MS400074-8 | C9: Apple Valley | D9: MS400074 | E9: 2014 | F9: Chemical_treatment_of_stormwater | G9: 0 | H9: Non-Structural | I9: NA | J9: NA | K9: NA | L9: NA | M9: Permittee (you) | N9: NA | O9: 0 | P9: EVR-P170 Alum Treatments 9lbs | Q9: Farquar Lake - Phophorus
B10: MS400074-9 | C10: Apple Valley | D10: MS400074 | E10: 2014 | F10: Supplemental_public_education_outreach | G10: 0 | H10: Non-Structural | I10: NA | J10: NA | K10: NA | L10: NA | M10: Permittee (you) | N10: NA | O10: 0 | P10: Public Education Focus on Raingardens | Q10: Farquar Lake - Phophorus
B11: MS400074-10 | C11: Apple Valley | D11: MS400074 | E11: 2014 | F11: Constructed_basin | G11: Wet pond/wet detention pond | H11: Structural | I11: KL-P2.1 | J11: 44.723741 | K11: 93.249281 | L11: Lat-long | M11: Permittee (you) | N11: NA | O11: 0 | P11: In Burnsville Park but Apple Valley installed and owns and operates | Q11: Keller Lake - Phosphorus
B12: MS400074-11 | C12: Apple Valley | D12: MS400074 | E12: 2014 | F12: Supplemental_public_education_outreach | G12: 0 | H12: Non-Structural | I12: NA | J12: NA | K12: NA | L12: NA | M12: Permittee (you) | N12: NA | O12: 0 | P12: Public Education Focus on Raingardens | Q12: Keller Lake - Phosphorus
B13: MS400074-12 | C13: Apple Valley | D13: MS400074 | E13: 2014 | F13: Constructed_basin | G13: Wet pond/wet detention pond | H13: Structural | I13: EVR-P13 | J13: 44.75809 | K13: 93.177815 | L13: Lat-long | M13: Permittee (you) | N13: NA | O13: 0 | P13: expand existing basin | Q13: Long Lake - Phosphorus
B14: MS400074-13 | C14: Apple Valley | D14: MS400074 | E14: 2014 | F14: Infiltrator | G14: Bioretention with no underdrain (rain garden) | H14: Structural | I14: EVR-P13.1 | J14: 44.762487 | K14: 93.186434 | L14: Lat-long | M14: Other | N14: IDS 196 | O14: 0 | P14: 0 | Q14: Long Lake - Phosphorus
B15: MS400074-14 | C15: Apple Valley | D15: MS400074 | E15: 2014 | F15: Infiltrator | G15: Bioretention with no underdrain (rain garden) | H15: Structural | I15: EVR-P13.2 | J15: 44.761169 | K15: 93.183751 | L15: Lat-long | M15: Other | N15: IDS 196 | O15: 0 | P15: 0 | Q15: Long Lake - Phosphorus
B16: MS400074-15 | C16: Apple Valley | D16: MS400074 | E16: 2014 | F16: Filter | G16: Bioretention with underdrain (rain garden) | H16: Structural | I16: EVR-P12.1 | J16: 44.755331 | K16: 93.180048 | L16: Lat-long | M16: Permittee (you) | N16: 0 | O16: 0 | P16: 0 | Q16: Long Lake - Phosphorus
B17: MS400074-16 | C17: Apple Valley | D17: MS400074 | E17: 2014 | F17: Filter | G17: Bioretention with underdrain (rain garden) | H17: Structural | I17: EVR-P12.2 | J17: 44.756365 | K17: 93.180485 | L17: Lat-long | M17: Permittee (you) | N17: NA | O17: 0 | P17: 0 | Q17: Long Lake - Phosphorus
B18: MS400074-17 | C18: Apple Valley | D18: MS400074 | E18: 2014 | F18: Filter | G18: Iron enhanced filter | H18: Structural | I18: EVR-P17.2, EVR-P17.1 | J18: 44.757594 | K18: 93.179925 | L18: Lat-long | M18: Permittee (you) | N18: NA | O18: 0 | P18: 0 | Q18: Long Lake - Phosphorus
B19: MS400074-18 | C19: Apple Valley | D19: MS400074 | E19: 2014 | F19: Chemical_treatment_of_stormwater | G19: 0 | H19: Non-Structural | I19: NA | J19: NA | K19: NA | L19: NA | M19: Permittee (you) | N19: NA | O19: 0 | P19: EVR-P12 Alum Treatments 23lbs | Q19: Long Lake - Phosphorus
